Workbook

Sheet Addresses
A1: Адреса
A401: PRIZM-M2JY-3AXN-NWGL-5G2VK
A402: PRIZM-GDY9-UUYG-XPMF-83CK3
A403: PRIZM-JKP6-8UXS-67DL-DCQ6N
A404: PRIZM-4U3S-KB6N-H7TF-6GNUR
A405: PRIZM-HXW9-QJ2U-KVDU-4UG3S
A406: PRIZM-95PQ-6397-X3RA-5Y65Y
A407: PRIZM-W4PQ-F5XH-CNM7-CE9ES
A408: PRIZM-GN9Z-7LUB-RX62-4VYSW
A409: PRIZM-MNK9-HKDB-52WP-DP4UJ
A410: PRIZM-8BFQ-ZM35-K7ZF-BF67W
A411: PRIZM-BL52-NUF8-7QVV-6GRM9
A412: PRIZM-LK24-7TYV-MFAP-MKX8A
A413: PRIZM-K6TL-YSAG-HF96-ZEUVC
A414: PRIZM-CT2A-FKHY-VH97-ZXNKZ
A415: PRIZM-SY6K-WAV8-ETM8-CDMV8
A416: PRIZM-MRKT-LZKR-7BU7-9H68P
A417: PRIZM-7WZF-N4W8-F83T-9VF5N
A418: PRIZM-VQMM-J2R5-LCEX-D53WA
A419: PRIZM-KKA2-JPU7-Y2SU-P5BPN
A420: PRIZM-RHSB-QTMQ-USXT-ZTXHD
A421: PRIZM-7FAG-9M7X-A3SF-PDZEM
A422: PRIZM-B3QD-JWR7-7HNN-2VZL7
A423: PRIZM-C2VJ-6SC9-SR5W-23HJM
A424: PRIZM-WZBB-EKLZ-DSM6-26M7T
A425: PRIZM-2U4K-VYQY-HMUK-37B2F
A426: PRIZM-Y55D-67U7-3AKM-ZN97G
A427: PRIZM-TTSZ-V3D3-MANQ-5AUJ9
A428: PRIZM-Z2FH-AZ2Y-GVPF-6PULY
A429: PRIZM-3BZS-W4RQ-7J8H-3JUVK
A430: PRIZM-3VV6-H67E-RPD8-RY4E7
A431: PRIZM-T9NC-H3NL-3RRM-6XQD6
A432: PRIZM-KK74-FPHF-4YVK-6GXDL
A433: PRIZM-J2JY-LHZF-G8NF-Z8NJQ
A434: PRIZM-SN2Z-HTN6-YD7Q-ZT5F6
A435: PRIZM-LRKX-2K3Z-JX6M-74GV5
A436: PRIZM-LWMW-GNTT-CE6S-PD72P
A437: PRIZM-F48R-4GFC-MX5C-ABLLF
A438: PRIZM-LAPF-QC5M-S63E-6GXA7
A439: PRIZM-CJG8-4HTX-2G9F-DJW9H
A440: PRIZM-ALJ8-SQXH-V3QB-2MUJZ
A441: PRIZM-9N4M-ECQ5-9SEP-P6FN6
A442: PRIZM-8CDN-74HP-GG6G-Z4DFM
A443: PRIZM-LKSK-GK9C-HSBJ-P5HXD

Sheet Report
A1: ДОЛЯ | C1: ЦЕНА: | D1: USD | E1: =REPLACE(pzm_price[Column1.2.1],FIND(".",pzm_price[Column1.2.1]),1,",") -> $0,002945 | I1: ДАТА | J1: БУДУЩЕЕ | K1: ОБЩИЙ БАЛАНС | M1: ЭМИССИЯ В ДЕНЬ | O1: БАЛАНС ГЕНЕЗИСА | Q1: СФОРЖЕНО | T1: ТЕКУЩИЙ БЛОК | W1: ТЕК. ВРЕМЯ | AG1: Column1.2.1
A2: =O3/K2 ->  | I2: =IF(J2>0,NOW()+$J$2,"-") -> - | J2: 0 | K2: =SUM(C3+K3) -> 0 | L2: =K2*RIGHT($E$1,LEN($E$1)-IF(EXACT($D$1,"UAH"),3,1)) -> 0 | M2: 650000 | O2: =IF(J2>0,O3+genesis_daily_increase*future,"-") -> - | W2: =IF(J2>0,W3+J2*86400,"-") -> - | AG2: $0.002945
A3: ВСЕГО: | B3: =COUNTA(Main_table[ACCOUNT_ID]) -> 0 | C3: =SUM(Main_table[BALANCE]) -> 0 | D3: =SUM(Main_table[HOLD]) -> 0 | E3: - | F3: - | G3: - | H3: =SUM(Main_table[ACTIVE_BALANCE]) -> 0 | I3: =NOW() -> 2022-09-15T19:15:33.010 | J3: - | K3: =SUM(Main_table[PAR]) -> 0 | L3: =K3*RIGHT($E$1,LEN($E$1)-IF(EXACT($D$1,"UAH"),3,1)) -> 0 | M3: =SUM(Main_table[DAILY_PAR]) -> 0 | N3: =M3*RIGHT($E$1,LEN($E$1)-IF(EXACT($D$1,"UAH"),3,1)) -> 0 | O3: 3028618994 | Q3: =SUM(Main_table[BLOCKS]) -> 0 | R3: =SUM(Main_table[COMMISSIONS]) -> 0 | S3: =SUM(Main_table[(C.U.)..]) -> 0 | T3: 2050526 | U3: =SUM(Main_table[COMMISSION]) -> 0 | V3: =SUM(Main_table[(C.U.)…]) -> 0 | W3: 121698773 | AG3: 22
A4: № | B4: ACCOUNT_ID | C4: BALANCE | D4: HOLD | E4: HIERARCHY | F4: FOLLOWERS | G4: MULTIPLIER | H4: ACTIVE_BALANCE | I4: START | J4: DAY_IN_HOLD | K4: PAR | L4: (C.U.) | M4: DAILY_PAR | N4: (C.U.). | O4: STATUS | P4: PARATAX | Q4: BLOCKS | R4: COMMISSIONS | S4: (C.U.).. | T4: LAST_BLOCK | U4: COMMISSION | V4: (C.U.)… | W4: TIME | AG4: RUB | AH4: ru
AG5: USD | AH5: en
AG6: EUR | AH6: it
AG7: UAH | AH7: uk
AG8: =VLOOKUP(D1,AG4:AH7,2,0) -> en

Sheet Calc
B1: PRIZM-3X4T-CG8W-UZAG-8CAG7 | G1: tool.prizm.space
B2: БАЛАНС АККАУНТА | D2: =G2+D3 -> 985217.3 | E2: АКТИВНЫЙ БАЛАНС | G2: 985217.3
B3: БАЛАНС HOLD | D3: 0 | E3: ХОЛД СТАТУС | G3: =IF(AND(D2-D3<=110000,D8-D9<=100000),D8-D9,"OFF") -> OFF
B4: 700000 | C4: БАЛАНС ГЕНЕЗИСА | D4: 3114473207 | E4: СТАРТ ПАРАМАЙНИГА | G4: =NOW()-B11 -> 2022-09-15T18:32:23.010
B5: СТРУКТУРА | D5: 73392437.79 | E5: ПОСЛЕДОВАТЕЛИ | G5: 101 | N5: tool.prizm.space
B6: ТЕКУЩЕЕ ВРЕМЯ | D6: 130546520 | E6: МНОЖИТЕЛЬ | G6: 1.1088 | N6: wallet.prizm.space
B7: МЕТКА ВРЕМЕНИ | D7: 130543930 | E7: СФОРЖЕНО БЛОКОВ | G7: 0 | N7: paracalc.prizm.space
B8: ТЕКУЩИЙ БЛОК | D8: 2192803 | E8: СФОРЖЕНО КОМИССИИ | G8: 0 | N8: localhost:9976
B9: ПОСЛЕДНИЙ БЛОК | D9: 0 | E9: КОМИССИЯ В ПОС. БЛОКЕ | G9: 0
B10: ДЕНЬ | C10: ДАТА | D10: =IF(G3="off","ПАР","ГИБРПАР") -> ПАР | E10: /ДЕНЬ | F10: ПАРАТАКС | G10: ГЕНЕЗИС | N10: =MATCH(MAX($N$13:$N$742),$N$13:$N$742,0)+13 -> 98
B11: =(D6-D7)/86400 -> 0.02997685185 | C11: =NOW() -> 2022-09-15T19:15:33.010 | D11: =ABS(N11) -> 3.15 | E11: =ABS(Paracalc(D2,D3,D5,D4,(D6-D7)/86400 + 1,D8-D9<=100000))-D11 -> 105.69 | F11: =IF($G$6>0,1-E11*100/$G$2/$G$6,0) -> 0.9903250517 | G11: =D4 -> 3114473207 | N11: =Paracalc(D2,D3,D5,D4,(D6-D7)/86400,G3<=100000) -> 3.15
B12: =INDEX($B$1:$G$742,IF($N$11>0,$N$12,742),1) -> 86 | C12: =INDEX($B$1:$G$742,IF($N$11>0,$N$12,742),2) -> 2022-12-10T18:32:23.010 | D12: =INDEX($B$1:$G$742,IF($N$11>0,$N$12,742),3) -> 14782.7 | E12: =INDEX($B$1:$G$742,IF($N$11>0,$N$12,742),4) -> 0 | F12: =IF($G$6>0,1-E12*100/$G$2/$G$6,0) -> 1 | G12: =INDEX($B$1:$G$742,IF($N$11>0,$N$12,742),6) -> 3174652223 | N12: =IF(N10>744,743,N10) -> 98
B13: =ROUNDUP(B11,0) -> 1 | C13: =$G$4+B13 -> 2022-09-16T18:32:23.010 | D13: =ABS(N13) -> 105.63 | E13: =D14-D13 -> 106.76 | F13: =IF($G$6>0,1-E13*100/$G$2/$G$6,0) -> 0.9902271031 | G13: =G11+(B13-B11)*IF(ISNUMBER(B4),B4,0) -> 3115152223 | N13: =IF(ISBLANK(B13),743,Paracalc($D$2,$D$3,$D$5,G13,B13,$G$3<=100000)) -> 105.63
B14: =B13+1 -> 2 | C14: 2022-09-17T18:32:23.010 | D14: =ABS(N14) -> 212.39 | E14: =D15-D14 -> 107.89 | F14: =IF($G$6>0,1-E14*100/$G$2/$G$6,0) -> 0.990123662 | G14: =G13+IF(ISNUMBER($B$4),$B$4,0) -> 3115852223 | N14: 212.39
B15: 3 | C15: 2022-09-18T18:32:23.010 | D15: 320.28 | E15: 109.05 | F15: 0.9900174746 | G15: 3116552223 | N15: 320.28
B16: =B15+1 -> 4 | C16: =C15+1 -> 2022-09-19T18:32:23.010 | D16: 429.33 | E16: 110.21 | F16: 0.9899112873 | G16: 3117252223 | N16: 429.33
B17: 5 | C17: 2022-09-20T18:32:23.010 | D17: 539.54 | E17: 111.39 | F17: 0.9898032691 | G17: 3117952223 | N17: 539.54
B18: 6 | C18: 2022-09-21T18:32:23.010 | D18: 650.93 | E18: 112.57 | F18: 0.989695251 | G18: 3118652223 | N18: 650.93
B19: 7 | C19: 2022-09-22T18:32:23.010 | D19: 763.5 | E19: 113.78 | F19: 0.9895844866 | G19: 3119352223 | N19: 763.5
B20: 8 | C20: 2022-09-23T18:32:23.010 | D20: 877.28 | E20: 114.99 | F20: 0.9894737222 | G20: 3120052223 | N20: 877.28
B21: 9 | C21: 2022-09-24T18:32:23.010 | D21: 992.27 | E21: 116.23 | F21: 0.9893602116 | G21: 3120752223 | N21: 992.27
B22: 10 | C22: 2022-09-25T18:32:23.010 | D22: 1108.5 | E22: 117.46 | F22: 0.9892476164 | G22: 3121452223 | N22: 1108.5
B23: 11 | C23: 2022-09-26T18:32:23.010 | D23: 1225.96 | E23: 118.72 | F23: 0.989132275 | G23: 3122152223 | N23: 1225.96
B24: 12 | C24: 2022-09-27T18:32:23.010 | D24: 1344.68 | E24: 119.98 | F24: 0.9890169336 | G24: 3122852223 | N24: 1344.68
B25: 13 | C25: 2022-09-28T18:32:23.010 | D25: 1464.66 | E25: 121.27 | F25: 0.9888988459 | G25: 3123552223 | N25: 1464.66
B26: 14 | C26: 2022-09-29T18:32:23.010 | D26: 1585.93 | E26: 122.57 | F26: 0.9887798429 | G26: 3124252223 | N26: 1585.93
B27: 15 | C27: 2022-09-30T18:32:23.010 | D27: 1708.5 | E27: 123.87 | F27: 0.9886608398 | G27: 3124952223 | N27: 1708.5
B28: 16 | C28: 2022-10-01T18:32:23.010 | D28: 1832.37 | E28: 125.2 | F28: 0.9885390905 | G28: 3125652223 | N28: 1832.37
B29: 17 | C29: 2022-10-02T18:32:23.010 | D29: 1957.57 | E29: 126.54 | F29: 0.9884164258 | G29: 3126352223 | N29: 1957.57
B30: 18 | C30: 2022-10-03T18:32:23.010 | D30: 2084.11 | E30: 127.9 | F30: 0.9882919303 | G30: 3127052223 | N30: 2084.11
B31: 19 | C31: 2022-10-04T18:32:23.010 | D31: 2212.01 | E31: 129.26 | F31: 0.9881674348 | G31: 3127752223 | N31: 2212.01
B32: 20 | C32: 2022-10-05T18:32:23.010 | D32: 2341.27 | E32: 130.65 | F32: 0.9880401931 | G32: 3128452223 | N32: 2341.27
B33: 21 | C33: 2022-10-06T18:32:23.010 | D33: 2471.92 | E33: 132.04 | F33: 0.9879129514 | G33: 3129152223 | N33: 2471.92
B34: 22 | C34: 2022-10-07T18:32:23.010 | D34: 2603.96 | E34: 133.46 | F34: 0.9877829634 | G34: 3129852223 | N34: 2603.96
B35: 23 | C35: 2022-10-08T18:32:23.010 | D35: 2737.42 | E35: 134.89 | F35: 0.9876520601 | G35: 3130552223 | N35: 2737.42
B36: 24 | C36: 2022-10-09T18:32:23.010 | D36: 2872.31 | E36: 136.33 | F36: 0.9875202413 | G36: 3131252223 | N36: 2872.31
B37: 25 | C37: 2022-10-10T18:32:23.010 | D37: 3008.64 | E37: 137.8 | F37: 0.9873856763 | G37: 3131952223 | N37: 3008.64
B38: 26 | C38: 2022-10-11T18:32:23.010 | D38: 3146.44 | E38: 139.27 | F38: 0.9872511113 | G38: 3132652223 | N38: 3146.44
B39: 27 | C39: 2022-10-12T18:32:23.010 | D39: 3285.71 | E39: 140.76 | F39: 0.9871147155 | G39: 3133352223 | N39: 3285.71
B40: 28 | C40: 2022-10-13T18:32:23.010 | D40: 3426.47 | E40: 142.27 | F40: 0.9869764889 | G40: 3134052223 | N40: 3426.47
B41: 29 | C41: 2022-10-14T18:32:23.010 | D41: 3568.74 | E41: 143.8 | F41: 0.9868364314 | G41: 3134752223 | N41: 3568.74
B42: 30 | C42: 2022-10-15T18:32:23.010 | D42: 3712.54 | E42: 145.34 | F42: 0.9866954586 | G42: 3135452223 | N42: 3712.54
B43: 31 | C43: 2022-10-16T18:32:23.010 | D43: 3857.88 | E43: 146.9 | F43: 0.9865526549 | G43: 3136152223 | N43: 3857.88
B44: 32 | C44: 2022-10-17T18:32:23.010 | D44: 4004.78 | E44: 148.47 | F44: 0.9864089359 | G44: 3136852223 | N44: 4004.78
B45: 33 | C45: 2022-10-18T18:32:23.010 | D45: 4153.25 | E45: 150.07 | F45: 0.9862624706 | G45: 3137552223 | N45: 4153.25
B46: 34 | C46: 2022-10-19T18:32:23.010 | D46: 4303.32 | E46: 151.68 | F46: 0.9861150899 | G46: 3138252223 | N46: 4303.32
B47: 35 | C47: 2022-10-20T18:32:23.010 | D47: 4455 | E47: 153.3 | F47: 0.9859667937 | G47: 3138952223 | N47: 4455
B48: 36 | C48: 2022-10-21T18:32:23.010 | D48: 4608.3 | E48: 154.95 | F48: 0.9858157514 | G48: 3139652223 | N48: 4608.3
B49: 37 | C49: 2022-10-22T18:32:23.010 | D49: 4763.25 | E49: 156.61 | F49: 0.9856637937 | G49: 3140352223 | N49: 4763.25
B50: 38 | C50: 2022-10-23T18:32:23.010 | D50: 4919.86 | E50: 158.3 | F50: 0.9855090897 | G50: 3141052223 | N50: 4919.86
B51: 39 | C51: 2022-10-24T18:32:23.010 | D51: 5078.16 | E51: 159.99 | F51: 0.9853543857 | G51: 3141752223 | N51: 5078.16
B52: 40 | C52: 2022-10-25T18:32:23.010 | D52: 5238.15 | E52: 161.72 | F52: 0.9851960201 | G52: 3142452223 | N52: 5238.15
B53: 41 | C53: 2022-10-26T18:32:23.010 | D53: 5399.87 | E53: 163.45 | F53: 0.9850376545 | G53: 3143152223 | N53: 5399.87
B54: 42 | C54: 2022-10-27T18:32:23.010 | D54: 5563.32 | E54: 165.2 | F54: 0.9848774581 | G54: 3143852223 | N54: 5563.32
B55: 43 | C55: 2022-10-28T18:32:23.010 | D55: 5728.52 | E55: 166.98 | F55: 0.9847145155 | G55: 3144552223 | N55: 5728.52
B56: 44 | C56: 2022-10-29T18:32:23.010 | D56: 5895.5 | E56: 168.78 | F56: 0.984549742 | G56: 3145252223 | N56: 5895.5
B57: 45 | C57: 2022-10-30T18:32:23.010 | D57: 6064.28 | E57: 170.59 | F57: 0.9843840531 | G57: 3145952223 | N57: 6064.28
B58: 46 | C58: 2022-10-31T18:32:23.010 | D58: 6234.87 | E58: 172.42 | F58: 0.9842165334 | G58: 3146652223 | N58: 6234.87
B59: 47 | C59: 2022-11-01T18:32:23.010 | D59: 6407.29 | E59: 174.28 | F59: 0.9840462675 | G59: 3147352223 | N59: 6407.29
B60: 48 | C60: 2022-11-02T18:32:23.010 | D60: 6581.57 | E60: 176.15 | F60: 0.9838750862 | G60: 3148052223 | N60: 6581.57
B61: 49 | C61: 2022-11-03T18:32:23.010 | D61: 6757.72 | E61: 178.04 | F61: 0.9837020741 | G61: 3148752223 | N61: 6757.72
B62: 50 | C62: 2022-11-04T18:32:23.010 | D62: 6935.76 | E62: 179.96 | F62: 0.9835263157 | G62: 3149452223 | N62: 6935.76
B63: 51 | C63: 2022-11-05T18:32:23.010 | D63: 7115.72 | E63: 181.9 | F63: 0.9833487266 | G63: 3150152223 | N63: 7115.72
B64: 52 | C64: 2022-11-06T18:32:23.010 | D64: 7297.62 | E64: 183.85 | F64: 0.983170222 | G64: 3150852223 | N64: 7297.62
B65: 53 | C65: 2022-11-07T18:32:23.010 | D65: 7481.47 | E65: 185.83 | F65: 0.9829889712 | G65: 3151552223 | N65: 7481.47
B66: 54 | C66: 2022-11-08T18:32:23.010 | D66: 7667.3 | E66: 187.83 | F66: 0.9828058896 | G66: 3152252223 | N66: 7667.3
B67: 55 | C67: 2022-11-09T18:32:23.010 | D67: 7855.13 | E67: 189.85 | F67: 0.9826209771 | G67: 3152952223 | N67: 7855.13
B68: 56 | C68: 2022-11-10T18:32:23.010 | D68: 8044.98 | E68: 191.9 | F68: 0.9824333185 | G68: 3153652223 | N68: 8044.98
B69: 57 | C69: 2022-11-11T18:32:23.010 | D69: 8236.88 | E69: 193.96 | F69: 0.9822447444 | G69: 3154352223 | N69: 8236.88
B70: 58 | C70: 2022-11-12T18:32:23.010 | D70: 8430.84 | E70: 196.05 | F70: 0.9820534241 | G70: 3155052223 | N70: 8430.84
B71: 59 | C71: 2022-11-13T18:32:23.010 | D71: 8626.89 | E71: 198.16 | F71: 0.981860273 | G71: 3155752223 | N71: 8626.89
B72: 60 | C72: 2022-11-14T18:32:23.010 | D72: 8825.05 | E72: 200.29 | F72: 0.9816652911 | G72: 3156452223 | N72: 8825.05
B73: 61 | C73: 2022-11-15T18:32:23.010 | D73: 9025.34 | E73: 202.45 | F73: 0.9814675629 | G73: 3157152223 | N73: 9025.34
B74: 62 | C74: 2022-11-16T18:32:23.010 | D74: 9227.79 | E74: 204.63 | F74: 0.9812680039 | G74: 3157852223 | N74: 9227.79
B75: 63 | C75: 2022-11-17T18:32:23.010 | D75: 9432.42 | E75: 206.84 | F75: 0.9810656988 | G75: 3158552223 | N75: 9432.42
B76: 64 | C76: 2022-11-18T18:32:23.010 | D76: 9639.26 | E76: 209.06 | F76: 0.9808624782 | G76: 3159252223 | N76: 9639.26
B77: 65 | C77: 2022-11-19T18:32:23.010 | D77: 9848.32 | E77: 211.32 | F77: 0.9806555959 | G77: 3159952223 | N77: =IF(ISBLANK(B77),743,Paracalc($D$2,$D$3,$D$5,G77,B77,$G$3<=100000)) -> 9848.32
B78: =B77+1 -> 66 | C78: 2022-11-20T18:32:23.010 | D78: =ABS(N78) -> 10059.64 | E78: =D79-D78 -> 213.6 | F78: =IF($G$6>0,1-E78*100/$G$2/$G$6,0) -> 0.9804468829 | G78: =G77+IF(ISNUMBER($B$4),$B$4,0) -> 3160652223 | N78: 10059.64
B79: 67 | C79: 2022-11-21T18:32:23.010 | D79: 10273.24 | E79: 215.89 | F79: 0.9802372544 | G79: 3161352223 | N79: 10273.24
B80: 68 | C80: 2022-11-22T18:32:23.010 | D80: 10489.13 | E80: 218.23 | F80: 0.9800230489 | G80: 3162052223 | N80: 10489.13
B81: 69 | C81: 2022-11-23T18:32:23.010 | D81: 10707.36 | E81: 220.57 | F81: 0.9798088434 | G81: 3162752223 | N81: 10707.36
B82: 70 | C82: 2022-11-24T18:32:23.010 | D82: 10927.93 | E82: 222.96 | F82: 0.9795900609 | G82: 3163452223 | N82: 10927.93
B83: 71 | C83: 2022-11-25T18:32:23.010 | D83: 11150.89 | E83: 225.35 | F83: 0.9793712783 | G83: 3164152223 | N83: 11150.89
B84: 72 | C84: 2022-11-26T18:32:23.010 | D84: 11376.24 | E84: 227.79 | F84: 0.9791479188 | G84: 3164852223 | N84: 11376.24
B85: 73 | C85: 2022-11-27T18:32:23.010 | D85: 11604.03 | E85: 230.24 | F85: 0.9789236438 | G85: 3165552223 | N85: 11604.03
B86: 74 | C86: 2022-11-28T18:32:23.010 | D86: 11834.27 | E86: 232.73 | F86: 0.9786957072 | G86: 3166252223 | N86: 11834.27
B87: 75 | C87: 2022-11-29T18:32:23.010 | D87: 12067 | E87: 235.24 | F87: 0.9784659397 | G87: 3166952223 | N87: 12067
B88: 76 | C88: 2022-11-30T18:32:23.010 | D88: 12302.24 | E88: 237.78 | F88: 0.9782334261 | G88: 3167652223 | N88: 12302.24
B89: 77 | C89: 2022-12-01T18:32:23.010 | D89: 12540.02 | E89: 240.34 | F89: 0.9779990816 | G89: 3168352223 | N89: 12540.02
B90: 78 | C90: 2022-12-02T18:32:23.010 | D90: 12780.36 | E90: 242.93 | F90: 0.9777619909 | G90: 3169052223 | N90: 12780.36
B91: 79 | C91: 2022-12-03T18:32:23.010 | D91: 13023.29 | E91: 245.56 | F91: 0.9775212386 | G91: 3169752223 | N91: 13023.29
B92: 80 | C92: 2022-12-04T18:32:23.010 | D92: 13268.85 | E92: 248.2 | F92: 0.9772795708 | G92: 3170452223 | N92: 13268.85
B93: 81 | C93: 2022-12-05T18:32:23.010 | D93: 13517.05 | E93: 250.89 | F93: 0.977033326 | G93: 3171152223 | N93: 13517.05
B94: 82 | C94: 2022-12-06T18:32:23.010 | D94: 13767.94 | E94: 253.59 | F94: 0.9767861659 | G94: 3171852223 | N94: 13767.94
B95: 83 | C95: 2022-12-07T18:32:23.010 | D95: 14021.53 | E95: 256.33 | F95: 0.976535344 | G95: 3172552223 | N95: 14021.53
B96: 84 | C96: 2022-12-08T18:32:23.010 | D96: 14277.86 | E96: 259.1 | F96: 0.976281776 | G96: 3173252223 | N96: 14277.86
B97: 85 | C97: 2022-12-09T18:32:23.010 | D97: 14536.96 | E97: 245.74 | F97: 0.9775047612 | G97: 3173952223 | N97: 14536.96
B98: 86 | C98: 2022-12-10T18:32:23.010 | D98: 14782.7 | E98: 0 | F98: 1 | G98: 3174652223 | N98: -14782.7
B99: 87 | C99: 2022-12-11T18:32:23.010 | D99: 14782.7 | E99: 0 | F99: 1 | G99: 3175352223 | N99: -14782.7
B100: 88 | C100: 2022-12-12T18:32:23.010 | D100: 14782.7 | E100: 0 | F100: 1 | G100: 3176052223 | N100: -14782.7
B101: 89 | C101: 2022-12-13T18:32:23.010 | D101: 14782.7 | E101: 0 | F101: 1 | G101: 3176752223 | N101: -14782.7
B102: 90 | C102: 2022-12-14T18:32:23.010 | D102: 14782.7 | E102: 0 | F102: 1 | G102: 3177452223 | N102: -14782.7
B103: 91 | C103: 2022-12-15T18:32:23.010 | D103: 14782.7 | E103: 0 | F103: 1 | G103: 3178152223 | N103: -14782.7
B104: 92 | C104: 2022-12-16T18:32:23.010 | D104: 14782.7 | E104: 0 | F104: 1 | G104: 3178852223 | N104: -14782.7
B105: 93 | C105: 2022-12-17T18:32:23.010 | D105: 14782.7 | E105: 0 | F105: 1 | G105: 3179552223 | N105: -14782.7
B106: 94 | C106: 2022-12-18T18:32:23.010 | D106: 14782.7 | E106: 0 | F106: 1 | G106: 3180252223 | N106: -14782.7
B107: 95 | C107: 2022-12-19T18:32:23.010 | D107: 14782.7 | E107: 0 | F107: 1 | G107: 3180952223 | N107: -14782.7
B108: 96 | C108: 2022-12-20T18:32:23.010 | D108: 14782.7 | E108: 0 | F108: 1 | G108: 3181652223 | N108: -14782.7
B109: 97 | C109: 2022-12-21T18:32:23.010 | D109: 14782.7 | E109: 0 | F109: 1 | G109: 3182352223 | N109: -14782.7
B110: 98 | C110: 2022-12-22T18:32:23.010 | D110: 14782.7 | E110: 0 | F110: 1 | G110: 3183052223 | N110: -14782.7
B111: 99 | C111: 2022-12-23T18:32:23.010 | D111: 14782.7 | E111: 0 | F111: 1 | G111: 3183752223 | N111: -14782.7
B112: 100 | C112: 2022-12-24T18:32:23.010 | D112: 14782.7 | E112: 0 | F112: 1 | G112: 3184452223 | N112: -14782.7
B113: 101 | C113: 2022-12-25T18:32:23.010 | D113: 14782.7 | E113: 0 | F113: 1 | G113: 3185152223 | N113: -14782.7
B114: 102 | C114: 2022-12-26T18:32:23.010 | D114: 14782.7 | E114: 0 | F114: 1 | G114: 3185852223 | N114: -14782.7
B115: 103 | C115: 2022-12-27T18:32:23.010 | D115: 14782.7 | E115: 0 | F115: 1 | G115: 3186552223 | N115: -14782.7
B116: 104 | C116: 2022-12-28T18:32:23.010 | D116: 14782.7 | E116: 0 | F116: 1 | G116: 3187252223 | N116: -14782.7
B117: 105 | C117: 2022-12-29T18:32:23.010 | D117: 14782.7 | E117: 0 | F117: 1 | G117: 3187952223 | N117: -14782.7
B118: 106 | C118: 2022-12-30T18:32:23.010 | D118: 14782.7 | E118: 0 | F118: 1 | G118: 3188652223 | N118: -14782.7
B119: 107 | C119: 2022-12-31T18:32:23.010 | D119: 14782.7 | E119: 0 | F119: 1 | G119: 3189352223 | N119: -14782.7
B120: 108 | C120: 2023-01-01T18:32:23.010 | D120: 14782.7 | E120: 0 | F120: 1 | G120: 3190052223 | N120: -14782.7
B121: 109 | C121: 2023-01-02T18:32:23.010 | D121: 14782.7 | E121: 0 | F121: 1 | G121: 3190752223 | N121: -14782.7
B122: 110 | C122: 2023-01-03T18:32:23.010 | D122: 14782.7 | E122: 0 | F122: 1 | G122: 3191452223 | N122: -14782.7
B123: 111 | C123: 2023-01-04T18:32:23.010 | D123: 14782.7 | E123: 0 | F123: 1 | G123: 3192152223 | N123: -14782.7
B124: 112 | C124: 2023-01-05T18:32:23.010 | D124: 14782.7 | E124: 0 | F124: 1 | G124: 3192852223 | N124: -14782.7
B125: 113 | C125: 2023-01-06T18:32:23.010 | D125: 14782.7 | E125: 0 | F125: 1 | G125: 3193552223 | N125: -14782.7
B126: 114 | C126: 2023-01-07T18:32:23.010 | D126: 14782.7 | E126: 0 | F126: 1 | G126: 3194252223 | N126: -14782.7
B127: 115 | C127: 2023-01-08T18:32:23.010 | D127: 14782.7 | E127: 0 | F127: 1 | G127: 3194952223 | N127: -14782.7
B128: 116 | C128: 2023-01-09T18:32:23.010 | D128: 14782.7 | E128: 0 | F128: 1 | G128: 3195652223 | N128: -14782.7
B129: 117 | C129: 2023-01-10T18:32:23.010 | D129: 14782.7 | E129: 0 | F129: 1 | G129: 3196352223 | N129: -14782.7
B130: 118 | C130: 2023-01-11T18:32:23.010 | D130: 14782.7 | E130: 0 | F130: 1 | G130: 3197052223 | N130: -14782.7
B131: 119 | C131: 2023-01-12T18:32:23.010 | D131: 14782.7 | E131: 0 | F131: 1 | G131: 3197752223 | N131: -14782.7
B132: 120 | C132: 2023-01-13T18:32:23.010 | D132: 14782.7 | E132: 0 | F132: 1 | G132: 3198452223 | N132: -14782.7
B133: 121 | C133: 2023-01-14T18:32:23.010 | D133: 14782.7 | E133: 0 | F133: 1 | G133: 3199152223 | N133: -14782.7
B134: 122 | C134: 2023-01-15T18:32:23.010 | D134: 14782.7 | E134: 0 | F134: 1 | G134: 3199852223 | N134: -14782.7
B135: 123 | C135: 2023-01-16T18:32:23.010 | D135: 14782.7 | E135: 0 | F135: 1 | G135: 3200552223 | N135: -14782.7
B136: 124 | C136: 2023-01-17T18:32:23.010 | D136: 14782.7 | E136: 0 | F136: 1 | G136: 3201252223 | N136: -14782.7
B137: 125 | C137: 2023-01-18T18:32:23.010 | D137: 14782.7 | E137: 0 | F137: 1 | G137: 3201952223 | N137: -14782.7
B138: 126 | C138: 2023-01-19T18:32:23.010 | D138: 14782.7 | E138: 0 | F138: 1 | G138: 3202652223 | N138: -14782.7
B139: 127 | C139: 2023-01-20T18:32:23.010 | D139: 14782.7 | E139: 0 | F139: 1 | G139: 3203352223 | N139: -14782.7
B140: 128 | C140: 2023-01-21T18:32:23.010 | D140: 14782.7 | E140: 0 | F140: 1 | G140: 3204052223 | N140: -14782.7
B141: 129 | C141: 2023-01-22T18:32:23.010 | D141: 14782.7 | E141: 0 | F141: 1 | G141: 3204752223 | N141: =IF(ISBLANK(B141),743,Paracalc($D$2,$D$3,$D$5,G141,B141,$G$3<=100000)) -> -14782.7
B142: =B141+1 -> 130 | C142: 2023-01-23T18:32:23.010 | D142: =ABS(N142) -> 14782.7 | E142: =D143-D142 -> 0 | F142: =IF($G$6>0,1-E142*100/$G$2/$G$6,0) -> 1 | G142: =G141+IF(ISNUMBER($B$4),$B$4,0) -> 3205452223 | N142: -14782.7
B143: 131 | C143: 2023-01-24T18:32:23.010 | D143: 14782.7 | E143: 0 | F143: 1 | G143: 3206152223 | N143: -14782.7
B144: 132 | C144: 2023-01-25T18:32:23.010 | D144: 14782.7 | E144: 0 | F144: 1 | G144: 3206852223 | N144: -14782.7
B145: 133 | C145: 2023-01-26T18:32:23.010 | D145: 14782.7 | E145: 0 | F145: 1 | G145: 3207552223 | N145: -14782.7
B146: 134 | C146: 2023-01-27T18:32:23.010 | D146: 14782.7 | E146: 0 | F146: 1 | G146: 3208252223 | N146: -14782.7
B147: 135 | C147: 2023-01-28T18:32:23.010 | D147: 14782.7 | E147: 0 | F147: 1 | G147: 3208952223 | N147: -14782.7
B148: 136 | C148: 2023-01-29T18:32:23.010 | D148: 14782.7 | E148: 0 | F148: 1 | G148: 3209652223 | N148: -14782.7
B149: 137 | C149: 2023-01-30T18:32:23.010 | D149: 14782.7 | E149: 0 | F149: 1 | G149: 3210352223 | N149: -14782.7
B150: 138 | C150: 2023-01-31T18:32:23.010 | D150: 14782.7 | E150: 0 | F150: 1 | G150: 3211052223 | N150: -14782.7
B151: 139 | C151: 2023-02-01T18:32:23.010 | D151: 14782.7 | E151: 0 | F151: 1 | G151: 3211752223 | N151: -14782.7
B152: 140 | C152: 2023-02-02T18:32:23.010 | D152: 14782.7 | E152: 0 | F152: 1 | G152: 3212452223 | N152: -14782.7
B153: 141 | C153: 2023-02-03T18:32:23.010 | D153: 14782.7 | E153: 0 | F153: 1 | G153: 3213152223 | N153: -14782.7
B154: 142 | C154: 2023-02-04T18:32:23.010 | D154: 14782.7 | E154: 0 | F154: 1 | G154: 3213852223 | N154: -14782.7
B155: 143 | C155: 2023-02-05T18:32:23.010 | D155: 14782.7 | E155: 0 | F155: 1 | G155: 3214552223 | N155: -14782.7
B156: 144 | C156: 2023-02-06T18:32:23.010 | D156: 14782.7 | E156: 0 | F156: 1 | G156: 3215252223 | N156: -14782.7
B157: 145 | C157: 2023-02-07T18:32:23.010 | D157: 14782.7 | E157: 0 | F157: 1 | G157: 3215952223 | N157: -14782.7
B158: 146 | C158: 2023-02-08T18:32:23.010 | D158: 14782.7 | E158: 0 | F158: 1 | G158: 3216652223 | N158: -14782.7
B159: 147 | C159: 2023-02-09T18:32:23.010 | D159: 14782.7 | E159: 0 | F159: 1 | G159: 3217352223 | N159: -14782.7
B160: 148 | C160: 2023-02-10T18:32:23.010 | D160: 14782.7 | E160: 0 | F160: 1 | G160: 3218052223 | N160: -14782.7
B161: 149 | C161: 2023-02-11T18:32:23.010 | D161: 14782.7 | E161: 0 | F161: 1 | G161: 3218752223 | N161: -14782.7
B162: 150 | C162: 2023-02-12T18:32:23.010 | D162: 14782.7 | E162: 0 | F162: 1 | G162: 3219452223 | N162: -14782.7
B163: 151 | C163: 2023-02-13T18:32:23.010 | D163: 14782.7 | E163: 0 | F163: 1 | G163: 3220152223 | N163: -14782.7
B164: 152 | C164: 2023-02-14T18:32:23.010 | D164: 14782.7 | E164: 0 | F164: 1 | G164: 3220852223 | N164: -14782.7
B165: 153 | C165: 2023-02-15T18:32:23.010 | D165: 14782.7 | E165: 0 | F165: 1 | G165: 3221552223 | N165: -14782.7
B166: 154 | C166: 2023-02-16T18:32:23.010 | D166: 14782.7 | E166: 0 | F166: 1 | G166: 3222252223 | N166: -14782.7
B167: 155 | C167: 2023-02-17T18:32:23.010 | D167: 14782.7 | E167: 0 | F167: 1 | G167: 3222952223 | N167: -14782.7
B168: 156 | C168: 2023-02-18T18:32:23.010 | D168: 14782.7 | E168: 0 | F168: 1 | G168: 3223652223 | N168: -14782.7
B169: 157 | C169: 2023-02-19T18:32:23.010 | D169: 14782.7 | E169: 0 | F169: 1 | G169: 3224352223 | N169: -14782.7
B170: 158 | C170: 2023-02-20T18:32:23.010 | D170: 14782.7 | E170: 0 | F170: 1 | G170: 3225052223 | N170: -14782.7
B171: 159 | C171: 2023-02-21T18:32:23.010 | D171: 14782.7 | E171: 0 | F171: 1 | G171: 3225752223 | N171: -14782.7
B172: 160 | C172: 2023-02-22T18:32:23.010 | D172: 14782.7 | E172: 0 | F172: 1 | G172: 3226452223 | N172: -14782.7
B173: 161 | C173: 2023-02-23T18:32:23.010 | D173: 14782.7 | E173: 0 | F173: 1 | G173: 3227152223 | N173: -14782.7
B174: 162 | C174: 2023-02-24T18:32:23.010 | D174: 14782.7 | E174: 0 | F174: 1 | G174: 3227852223 | N174: -14782.7
B175: 163 | C175: 2023-02-25T18:32:23.010 | D175: 14782.7 | E175: 0 | F175: 1 | G175: 3228552223 | N175: -14782.7
B176: 164 | C176: 2023-02-26T18:32:23.010 | D176: 14782.7 | E176: 0 | F176: 1 | G176: 3229252223 | N176: -14782.7
B177: 165 | C177: 2023-02-27T18:32:23.010 | D177: 14782.7 | E177: 0 | F177: 1 | G177: 3229952223 | N177: -14782.7
B178: 166 | C178: 2023-02-28T18:32:23.010 | D178: 14782.7 | E178: 0 | F178: 1 | G178: 3230652223 | N178: -14782.7
B179: 167 | C179: 2023-03-01T18:32:23.010 | D179: 14782.7 | E179: 0 | F179: 1 | G179: 3231352223 | N179: -14782.7
B180: 168 | C180: 2023-03-02T18:32:23.010 | D180: 14782.7 | E180: 0 | F180: 1 | G180: 3232052223 | N180: -14782.7
B181: 169 | C181: 2023-03-03T18:32:23.010 | D181: 14782.7 | E181: 0 | F181: 1 | G181: 3232752223 | N181: -14782.7
B182: 170 | C182: 2023-03-04T18:32:23.010 | D182: 14782.7 | E182: 0 | F182: 1 | G182: 3233452223 | N182: -14782.7
B183: 171 | C183: 2023-03-05T18:32:23.010 | D183: 14782.7 | E183: 0 | F183: 1 | G183: 3234152223 | N183: -14782.7
B184: 172 | C184: 2023-03-06T18:32:23.010 | D184: 14782.7 | E184: 0 | F184: 1 | G184: 3234852223 | N184: -14782.7
B185: 173 | C185: 2023-03-07T18:32:23.010 | D185: 14782.7 | E185: 0 | F185: 1 | G185: 3235552223 | N185: -14782.7
B186: 174 | C186: 2023-03-08T18:32:23.010 | D186: 14782.7 | E186: 0 | F186: 1 | G186: 3236252223 | N186: -14782.7
B187: 175 | C187: 2023-03-09T18:32:23.010 | D187: 14782.7 | E187: 0 | F187: 1 | G187: 3236952223 | N187: -14782.7
B188: 176 | C188: 2023-03-10T18:32:23.010 | D188: 14782.7 | E188: 0 | F188: 1 | G188: 3237652223 | N188: -14782.7
B189: 177 | C189: 2023-03-11T18:32:23.010 | D189: 14782.7 | E189: 0 | F189: 1 | G189: 3238352223 | N189: -14782.7
B190: 178 | C190: 2023-03-12T18:32:23.010 | D190: 14782.7 | E190: 0 | F190: 1 | G190: 3239052223 | N190: -14782.7
B191: 179 | C191: 2023-03-13T18:32:23.010 | D191: 14782.7 | E191: 0 | F191: 1 | G191: 3239752223 | N191: -14782.7
B192: 180 | C192: 2023-03-14T18:32:23.010 | D192: 14782.7 | E192: 0 | F192: 1 | G192: 3240452223 | N192: -14782.7
B193: 181 | C193: 2023-03-15T18:32:23.010 | D193: 14782.7 | E193: 0 | F193: 1 | G193: 3241152223 | N193: -14782.7
B194: 182 | C194: 2023-03-16T18:32:23.010 | D194: 14782.7 | E194: 0 | F194: 1 | G194: 3241852223 | N194: -14782.7
B195: 183 | C195: 2023-03-17T18:32:23.010 | D195: 14782.7 | E195: 0 | F195: 1 | G195: 3242552223 | N195: -14782.7
B196: 184 | C196: 2023-03-18T18:32:23.010 | D196: 14782.7 | E196: 0 | F196: 1 | G196: 3243252223 | N196: -14782.7
B197: 185 | C197: 2023-03-19T18:32:23.010 | D197: 14782.7 | E197: 0 | F197: 1 | G197: 3243952223 | N197: -14782.7
B198: 186 | C198: 2023-03-20T18:32:23.010 | D198: 14782.7 | E198: 0 | F198: 1 | G198: 3244652223 | N198: -14782.7
B199: 187 | C199: 2023-03-21T18:32:23.010 | D199: 14782.7 | E199: 0 | F199: 1 | G199: 3245352223 | N199: -14782.7
B200: 188 | C200: 2023-03-22T18:32:23.010 | D200: 14782.7 | E200: 0 | F200: 1 | G200: 3246052223 | N200: -14782.7
... 543 more rows

Sheet 0
B1: БАЛАНС | D1: 100001 | F1: ДОХОДНОСТЬ | H1: БАЛАНС | J1: 105001 | L1: ДОХОДНОСТЬ | N1: БАЛАНС | P1: 109001 | R1: ДОХОДНОСТЬ
B2: БАЛАНС ACCOUNT HOLD | D2: 1 | H2: БАЛАНС ACCOUNT HOLD | J2: 1 | N2: БАЛАНС ACCOUNT HOLD | P2: 1
B3: СТРУКТУРНЫЙ БАЛАНС | D3: 0 | H3: СТРУКТУРНЫЙ БАЛАНС | J3: 0 | N3: СТРУКТУРНЫЙ БАЛАНС | P3: 0
B4: ДНИ | C4: ГЕНЕЗИС | D4: ПАР | E4: /ДЕНЬ | F4: % В МЕСЯЦ | G4: % В ГОД | H4: ДНИ | I4: ГЕНЕЗИС | J4: ПАР | K4: /ДЕНЬ | L4: % В МЕСЯЦ | M4: % В ГОД | N4: ДНИ | O4: ГЕНЕЗИС | P4: ПАР | Q4: /ДЕНЬ | R4: % В МЕСЯЦ | S4: % В ГОД
B5: 1539 | C5: 2940000000 | D5: =ABS(Paracalc($D$1,$D$2,$D$3,C5,B5,1)) -> 112082.29 | E5: =ABS(Paracalc($D$1,$D$2,$D$3,C5,B5+1,1))-D5 -> 72.83 | F5: =D5/(B5/30.416)/(D1-D2) -> 0.02215136408 | G5: =F5*12 -> 0.265816369 | H5: 1539 | I5: 2940000000 | J5: =ABS(Paracalc($J$1,$J$2,$J$3,I5,H5,1)) -> 117686.4 | K5: =ABS(Paracalc($J$1,$J$2,$J$3,I5,H5+1,1))-J5 -> 76.47 | L5: =J5/(H5/30.416)/(J1-J2) -> 0.02215136324 | M5: =L5*12 -> 0.2658163589 | N5: 1539 | O5: 2940000000 | P5: =ABS(Paracalc($P$1,$P$2,$P$3,O5,N5,1)) -> 122169.69 | Q5: =ABS(Paracalc($P$1,$P$2,$P$3,O5,N5+1,1))-P5 -> 79.39 | R5: =P5/(N5/30.416)/(P1-P2) -> 0.02215136298 | S5: =R5*12 -> 0.2658163557
B6: 1530 | C6: =C5+60000000 -> 3000000000 | D6: 107100 | E6: 70 | F6: =D6/(B6/30.416)/(D1-D2) -> 0.0212912 | G6: =F6*12 -> 0.2554944 | H6: 1530 | I6: =I5+60000000 -> 3000000000 | J6: =ABS(Paracalc($J$1,$J$2,$J$3,I6,H6,1)) -> 112455 | K6: 73.5 | L6: =J6/(H6/30.416)/(J1-J2) -> 0.0212912 | M6: =L6*12 -> 0.2554944 | N6: 1530 | O6: =O5+60000000 -> 3000000000 | P6: 116739 | Q6: 76.3 | R6: =P6/(N6/30.416)/(P1-P2) -> 0.0212912 | S6: =R6*12 -> 0.2554944
B7: 1520 | C7: 3060000000 | D7: 102186.56 | E7: 67.22 | F7: =D7/(B7/30.416)/(D1-D2) -> 0.02044806848 | G7: 0.2453768218 | H7: 1520 | I7: 3060000000 | J7: 107295.88 | K7: 70.59 | L7: =J7/(H7/30.416)/(J1-J2) -> 0.02044806696 | M7: 0.2453768035 | N7: 1520 | O7: 3060000000 | P7: 111383.35 | Q7: 73.27 | R7: =P7/(N7/30.416)/(P1-P2) -> 0.02044806841 | S7: 0.2453768209
B8: 1511 | C8: 3120000000 | D8: 97477.63 | E8: 64.51 | F8: =D8/(B8/30.416)/(D1-D2) -> 0.01962196952 | G8: 0.2354636342 | H8: 1511 | I8: 3120000000 | J8: 102351.51 | K8: 67.74 | L8: =J8/(H8/30.416)/(J1-J2) -> 0.01962196923 | M8: 0.2354636308 | N8: 1511 | O8: 3120000000 | P8: 106250.61 | Q8: 70.32 | R8: =P8/(N8/30.416)/(P1-P2) -> 0.01962196828 | S8: 0.2354636194
B9: 1501 | C9: 3180000000 | D9: 92839.85 | E9: 61.85 | F9: =D9/(B9/30.416)/(D1-D2) -> 0.01881290391 | G9: 0.225754847 | H9: 1501 | I9: 3180000000 | J9: 97481.84 | K9: 64.94 | L9: =J9/(H9/30.416)/(J1-J2) -> 0.01881290343 | M9: 0.2257548412 | N9: 1501 | O9: 3180000000 | P9: 101195.43 | Q9: 67.42 | R9: =P9/(N9/30.416)/(P1-P2) -> 0.01881290271 | S9: 0.2257548325
B10: 1491 | C10: 3240000000 | D10: 88338.76 | E10: 59.25 | F10: =D10/(B10/30.416)/(D1-D2) -> 0.01802087005 | G10: 0.2162504406 | H10: 1491 | I10: 3240000000 | J10: 92755.7 | K10: 62.21 | L10: =J10/(H10/30.416)/(J1-J2) -> 0.01802087044 | M10: 0.2162504452 | N10: 1491 | O10: 3240000000 | P10: 96289.25 | Q10: 64.58 | R10: =P10/(N10/30.416)/(P1-P2) -> 0.01802087035 | S10: 0.2162504442
B11: 1481 | C11: 3300000000 | D11: 83972.7 | E11: 56.7 | F11: =D11/(B11/30.416)/(D1-D2) -> 0.017245872 | G11: 0.206950464 | H11: 1481 | I11: 3300000000 | J11: 88171.33 | K11: 59.54 | L11: =J11/(H11/30.416)/(J1-J2) -> 0.01724587102 | M11: 0.2069504523 | N11: 1481 | O11: 3300000000 | P11: 91530.24 | Q11: 61.8 | R11: =P11/(N11/30.416)/(P1-P2) -> 0.01724587143 | S11: 0.2069504572
B12: 1471 | C12: 3360000000 | D12: 79739.96 | E12: 54.21 | F12: =D12/(B12/30.416)/(D1-D2) -> 0.01648790363 | G12: 0.1978548435 | H12: 1471 | I12: 3360000000 | J12: 83726.96 | K12: 56.92 | L12: =J12/(H12/30.416)/(J1-J2) -> 0.01648790402 | M12: 0.1978548482 | N12: 1471 | O12: 3360000000 | P12: 86916.56 | Q12: 59.09 | R12: =P12/(N12/30.416)/(P1-P2) -> 0.01648790431 | S12: 0.1978548517
B13: 1460 | C13: 3420000000 | D13: 75587.12 | E13: 51.77 | F13: =D13/(B13/30.416)/(D1-D2) -> 0.01574697152 | G13: 0.1889636582 | H13: 1460 | I13: 3420000000 | J13: 79366.47 | K13: 54.36 | L13: =J13/(H13/30.416)/(J1-J2) -> 0.01574697033 | M13: 0.188963644 | N13: 1460 | O13: 3420000000 | P13: 82389.96 | Q13: 56.43 | R13: =P13/(N13/30.416)/(P1-P2) -> 0.01574697137 | S13: 0.1889636564
B14: 1449 | C14: 3480000000 | D14: 71569 | E14: 49.4 | F14: =D14/(B14/30.416)/(D1-D2) -> 0.01502306904 | G14: 0.1802768285 | H14: 1449 | I14: 3480000000 | J14: 75147.45 | K14: 51.87 | L14: =J14/(H14/30.416)/(J1-J2) -> 0.01502306904 | M14: 0.1802768285 | N14: 1449 | O14: 3480000000 | P14: 78010.21 | Q14: 53.84 | R14: =P14/(N14/30.416)/(P1-P2) -> 0.01502306904 | S14: 0.1802768285
B15: 1438 | C15: 3540000000 | D15: 67683.78 | E15: 47.07 | F15: =D15/(B15/30.416)/(D1-D2) -> 0.01431620203 | G15: 0.1717944244 | H15: 1438 | I15: 3540000000 | J15: 71067.97 | K15: 49.42 | L15: =J15/(H15/30.416)/(J1-J2) -> 0.01431620224 | M15: 0.1717944268 | N15: 1438 | O15: 3540000000 | P15: 73775.32 | Q15: 51.3 | R15: =P15/(N15/30.416)/(P1-P2) -> 0.014316202 | S15: 0.1717944239
B16: 1427 | C16: 3600000000 | D16: 63929.6 | E16: 44.8 | F16: =D16/(B16/30.416)/(D1-D2) -> 0.013626368 | G16: 0.163516416 | H16: 1427 | I16: 3600000000 | J16: 67126.08 | K16: 47.04 | L16: =J16/(H16/30.416)/(J1-J2) -> 0.013626368 | M16: 0.163516416 | N16: 1427 | O16: 3600000000 | P16: 69683.26 | Q16: 48.83 | R16: =P16/(N16/30.416)/(P1-P2) -> 0.01362636722 | S16: 0.1635164066
B17: 1415 | C17: 3660000000 | D17: 60262.02 | E17: 42.58 | F17: =D17/(B17/30.416)/(D1-D2) -> 0.01295356608 | G17: 0.155442793 | H17: 1415 | I17: 3660000000 | J17: 63275.12 | K17: 44.71 | L17: =J17/(H17/30.416)/(J1-J2) -> 0.01295356588 | M17: 0.1554427905 | N17: 1415 | O17: 3660000000 | P17: 65685.6 | Q17: 46.42 | R17: =P17/(N17/30.416)/(P1-P2) -> 0.01295356573 | S17: 0.1554427887
B18: 1403 | C18: 3720000000 | D18: 56726.09 | E18: 40.43 | F18: =D18/(B18/30.416)/(D1-D2) -> 0.01229779582 | G18: 0.1475735498 | H18: 1403 | I18: 3720000000 | J18: 59562.4 | K18: 42.45 | L18: =J18/(H18/30.416)/(J1-J2) -> 0.01229779695 | M18: 0.1475735635 | N18: 1403 | O18: 3720000000 | P18: 61831.44 | Q18: 44.07 | R18: =P18/(N18/30.416)/(P1-P2) -> 0.0122977962 | S18: 0.1475735544
B19: 1390 | C19: 3780000000 | D19: 53281.48 | E19: 38.33 | F19: =D19/(B19/30.416)/(D1-D2) -> 0.01165906112 | G19: 0.1399087334 | H19: 1390 | I19: 3780000000 | J19: 55945.55 | K19: 40.25 | L19: =J19/(H19/30.416)/(J1-J2) -> 0.01165906029 | M19: 0.1399087234 | N19: 1390 | O19: 3780000000 | P19: 58076.81 | Q19: 41.78 | R19: =P19/(N19/30.416)/(P1-P2) -> 0.01165906048 | S19: 0.1399087257
B20: 1378 | C20: 3840000000 | D20: 50004.86 | E20: 36.29 | F20: =D20/(B20/30.416)/(D1-D2) -> 0.0110373572 | G20: 0.1324482864 | H20: 1378 | I20: 3840000000 | J20: 52505.1 | K20: 38.1 | L20: =J20/(H20/30.416)/(J1-J2) -> 0.01103735657 | M20: 0.1324482788 | N20: 1378 | O20: 3840000000 | P20: 54505.3 | Q20: 39.55 | R20: =P20/(N20/30.416)/(P1-P2) -> 0.01103735772 | S20: 0.1324482927
B21: 1364 | C21: 3900000000 | D21: 46785.2 | E21: 34.3 | F21: =D21/(B21/30.416)/(D1-D2) -> 0.010432688 | G21: 0.125192256 | H21: 1364 | I21: 3900000000 | J21: 49124.46 | K21: 36.01 | L21: =J21/(H21/30.416)/(J1-J2) -> 0.010432688 | M21: 0.125192256 | N21: 1364 | O21: 3900000000 | P21: 50995.86 | Q21: 37.39 | R21: =P21/(N21/30.416)/(P1-P2) -> 0.01043268636 | S21: 0.1251922364
B22: 1351 | C22: 3960000000 | D22: 43729.16 | E22: 32.37 | F22: =D22/(B22/30.416)/(D1-D2) -> 0.009845049079 | G22: 0.1181405889 | H22: 1351 | I22: 3960000000 | J22: 45915.62 | K22: 33.99 | L22: =J22/(H22/30.416)/(J1-J2) -> 0.009845049508 | M22: 0.1181405941 | N22: 1351 | O22: 3960000000 | P22: 47664.79 | Q22: 35.28 | R22: =P22/(N22/30.416)/(P1-P2) -> 0.009845050236 | S22: 0.1181406028
B23: 1337 | C23: 4020000000 | D23: 40767.8 | E23: 30.49 | F23: =D23/(B23/30.416)/(D1-D2) -> 0.00927444581 | G23: 0.1112933497 | H23: 1337 | I23: 4020000000 | J23: 42806.19 | K23: 32.02 | L23: =J23/(H23/30.416)/(J1-J2) -> 0.00927444581 | M23: 0.1112933497 | N23: 1337 | O23: 4020000000 | P23: 44436.9 | Q23: 33.24 | R23: =P23/(N23/30.416)/(P1-P2) -> 0.009274445393 | S23: 0.1112933447
B24: 1322 | C24: 4080000000 | D24: 37904.38 | E24: 28.67 | F24: =D24/(B24/30.416)/(D1-D2) -> 0.0087208746 | G24: 0.1046504952 | H24: 1322 | I24: 4080000000 | J24: 39799.6 | K24: 30.1 | L24: =J24/(H24/30.416)/(J1-J2) -> 0.008720874819 | M24: 0.1046504978 | N24: 1322 | O24: 4080000000 | P24: 41315.77 | Q24: 31.26 | R24: =P24/(N24/30.416)/(P1-P2) -> 0.008720873713 | S24: 0.1046504846
B25: 1307 | C25: 4140000000 | D25: 35168.75 | E25: 26.91 | F25: =D25/(B25/30.416)/(D1-D2) -> 0.008184335884 | G25: 0.0982120306 | H25: 1307 | I25: 4140000000 | J25: 36927.19 | K25: 28.25 | L25: =J25/(H25/30.416)/(J1-J2) -> 0.008184336438 | M25: 0.09821203725 | N25: 1307 | O25: 4140000000 | P25: 38333.94 | Q25: 29.33 | R25: =P25/(N25/30.416)/(P1-P2) -> 0.008184336417 | S25: 0.09821203701
B26: 1292 | C26: 4200000000 | D26: 32558.4 | E26: 25.2 | F26: =D26/(B26/30.416)/(D1-D2) -> 0.007664832 | G26: 0.091977984 | H26: 1292 | I26: 4200000000 | J26: 34186.32 | K26: 26.46 | L26: =J26/(H26/30.416)/(J1-J2) -> 0.007664832 | M26: 0.091977984 | N26: 1292 | O26: 4200000000 | P26: 35488.65 | Q26: 27.47 | R26: =P26/(N26/30.416)/(P1-P2) -> 0.007664830704 | S26: 0.09197796845
B27: 1275 | C27: 4260000000 | D27: 30023.7 | E27: 23.54 | F27: =D27/(B27/30.416)/(D1-D2) -> 0.00716235968 | G27: 0.08594831616 | H27: 1275 | I27: 4260000000 | J27: 31524.88 | K27: 24.73 | L27: =J27/(H27/30.416)/(J1-J2) -> 0.007162358544 | M27: 0.08594830253 | N27: 1275 | O27: 4260000000 | P27: 32725.83 | Q27: 25.67 | R27: =P27/(N27/30.416)/(P1-P2) -> 0.007162359023 | S27: 0.08594830828
B28: 1259 | C28: 4320000000 | D28: 27637.56 | E28: 21.96 | F28: =D28/(B28/30.416)/(D1-D2) -> 0.006676918387 | G28: 0.08012302065 | H28: 1259 | I28: 4320000000 | J28: 29019.44 | K28: 23.05 | L28: =J28/(H28/30.416)/(J1-J2) -> 0.006676918847 | M28: 0.08012302617 | N28: 1259 | O28: 4320000000 | P28: 30124.94 | Q28: 23.93 | R28: =P28/(N28/30.416)/(P1-P2) -> 0.006676918299 | S28: 0.08012301958
B29: 1241 | C29: 4380000000 | D29: 25331.29 | E29: 20.41 | F29: =D29/(B29/30.416)/(D1-D2) -> 0.00620851343 | G29: 0.07450216116 | H29: 1241 | I29: 4380000000 | J29: 26597.85 | K29: 21.43 | L29: =J29/(H29/30.416)/(J1-J2) -> 0.006208512379 | M29: 0.07450214855 | N29: 1241 | O29: 4380000000 | P29: 27611.1 | Q29: 22.25 | R29: =P29/(N29/30.416)/(P1-P2) -> 0.006208512058 | S29: 0.0745021447
B30: 1223 | C30: 4440000000 | D30: 23148.94 | E30: 18.93 | F30: =D30/(B30/30.416)/(D1-D2) -> 0.005757139485 | G30: 0.06908567382 | H30: 1223 | I30: 4440000000 | J30: 24306.39 | K30: 19.87 | L30: =J30/(H30/30.416)/(J1-J2) -> 0.005757140196 | M30: 0.06908568235 | N30: 1223 | O30: 4440000000 | P30: 25232.34 | Q30: 20.64 | R30: =P30/(N30/30.416)/(P1-P2) -> 0.005757138436 | S30: 0.06908566123
B31: 1204 | C31: 4500000000 | D31: 21070 | E31: 17.5 | F31: =D31/(B31/30.416)/(D1-D2) -> 0.0053228 | G31: 0.0638736 | H31: 1204 | I31: 4500000000 | J31: 22123.5 | K31: 18.37 | L31: =J31/(H31/30.416)/(J1-J2) -> 0.0053228 | M31: 0.0638736 | N31: 1204 | O31: 4500000000 | P31: 22966.3 | Q31: 19.07 | R31: =P31/(N31/30.416)/(P1-P2) -> 0.0053228 | S31: 0.0638736
B32: 1184 | C32: 4560000000 | D32: 19095.55 | E32: 16.13 | F32: =D32/(B32/30.416)/(D1-D2) -> 0.004905491966 | G32: 0.05886590359 | H32: 1184 | I32: 4560000000 | J32: 20050.32 | K32: 16.94 | L32: =J32/(H32/30.416)/(J1-J2) -> 0.004905490131 | M32: 0.05886588158 | N32: 1184 | O32: 4560000000 | P32: 20814.15 | Q32: 17.58 | R32: =P32/(N32/30.416)/(P1-P2) -> 0.004905492084 | S32: 0.05886590501
B33: 1164 | C33: 4620000000 | D33: 17241.16 | E33: 14.82 | F33: =D33/(B33/30.416)/(D1-D2) -> 0.00450521583 | G33: 0.05406258995 | H33: 1164 | I33: 4620000000 | J33: 18103.22 | K33: 15.55 | L33: =J33/(H33/30.416)/(J1-J2) -> 0.004505216327 | M33: 0.05406259593 | N33: 1164 | O33: 4620000000 | P33: 18792.87 | Q33: 16.14 | R33: =P33/(N33/30.416)/(P1-P2) -> 0.004505217172 | S33: 0.05406260606
B34: 1142 | C34: 4680000000 | D34: 15476.38 | E34: 13.55 | F34: =D34/(B34/30.416)/(D1-D2) -> 0.004121975255 | G34: 0.04946370306 | H34: 1142 | I34: 4680000000 | J34: 16250.2 | K34: 14.23 | L34: =J34/(H34/30.416)/(J1-J2) -> 0.004121975508 | M34: 0.0494637061 | N34: 1142 | O34: 4680000000 | P34: 16869.25 | Q34: 14.78 | R34: =P34/(N34/30.416)/(P1-P2) -> 0.004121974228 | S34: 0.04946369074
B35: 1119 | C35: 4740000000 | D35: 13817.41 | E35: 12.35 | F35: =D35/(B35/30.416)/(D1-D2) -> 0.003755767136 | G35: 0.04506920564 | H35: 1119 | I35: 4740000000 | J35: 14508.28 | K35: 12.96 | L35: =J35/(H35/30.416)/(J1-J2) -> 0.003755767007 | M35: 0.04506920408 | N35: 1119 | O35: 4740000000 | P35: 15060.97 | Q35: 13.46 | R35: =P35/(N35/30.416)/(P1-P2) -> 0.003755765416 | S35: 0.04506918499
B36: 1095 | C36: 4800000000 | D36: 12264 | E36: 11.2 | F36: =D36/(B36/30.416)/(D1-D2) -> 0.003406592 | G36: 0.040879104 | H36: 1095 | I36: 4800000000 | J36: 12877.2 | K36: 11.76 | L36: =J36/(H36/30.416)/(J1-J2) -> 0.003406592 | M36: 0.040879104 | N36: 1095 | O36: 4800000000 | P36: 13367.76 | Q36: 12.2 | R36: =P36/(N36/30.416)/(P1-P2) -> 0.003406592 | S36: 0.040879104
B37: 1070 | C37: 4860000000 | D37: 10815.56 | E37: 10.1 | F37: =D37/(B37/30.416)/(D1-D2) -> 0.00307444928 | G37: 0.03689339136 | H37: 1070 | I37: 4860000000 | J37: 11356.33 | K37: 10.62 | L37: =J37/(H37/30.416)/(J1-J2) -> 0.003074447114 | M37: 0.03689336537 | N37: 1070 | O37: 4860000000 | P37: 11788.96 | Q37: 11.01 | R37: =P37/(N37/30.416)/(P1-P2) -> 0.003074449176 | S37: 0.03689339011
B38: 1043 | C38: 4920000000 | D38: 9462.09 | E38: 9.07 | F38: =D38/(B38/30.416)/(D1-D2) -> 0.00275933777 | G38: 0.03311205324 | H38: 1043 | I38: 4920000000 | J38: 9935.2 | K38: 9.52 | L38: =J38/(H38/30.416)/(J1-J2) -> 0.002759339298 | M38: 0.03311207157 | N38: 1043 | O38: 4920000000 | P38: 10313.68 | Q38: 9.89 | R38: =P38/(N38/30.416)/(P1-P2) -> 0.002759338279 | S38: 0.03311205934
B39: 1014 | C39: 4980000000 | D39: 8205.28 | E39: 8.1 | F39: =D39/(B39/30.416)/(D1-D2) -> 0.00246126032 | G39: 0.02953512384 | H39: 1014 | I39: 4980000000 | J39: 8615.55 | K39: 8.49 | L39: =J39/(H39/30.416)/(J1-J2) -> 0.002461262034 | M39: 0.02953514441 | N39: 1014 | O39: 4980000000 | P39: 8943.76 | Q39: 8.82 | R39: =P39/(N39/30.416)/(P1-P2) -> 0.002461261641 | S39: 0.02953513969
B40: 983 | C40: 5040000000 | D40: 7046.14 | E40: 7.17 | F40: =D40/(B40/30.416)/(D1-D2) -> 0.002180217642 | G40: 0.02616261171 | H40: 983 | I40: 5040000000 | J40: 7398.45 | K40: 7.52 | L40: =J40/(H40/30.416)/(J1-J2) -> 0.002180218526 | M40: 0.02616262232 | N40: 983 | O40: 5040000000 | P40: 7680.29 | Q40: 7.82 | R40: =P40/(N40/30.416)/(P1-P2) -> 0.002180216904 | S40: 0.02616260285
B41: 951 | C41: 5100000000 | D41: 5991.3 | E41: 6.3 | F41: =D41/(B41/30.416)/(D1-D2) -> 0.001916208 | G41: 0.022994496 | H41: 951 | I41: 5100000000 | J41: 6290.86 | K41: 6.62 | L41: =J41/(H41/30.416)/(J1-J2) -> 0.001916206477 | M41: 0.02299447772 | N41: 951 | O41: 5100000000 | P41: 6530.51 | Q41: 6.87 | R41: =P41/(N41/30.416)/(P1-P2) -> 0.001916205946 | S41: 0.02299447135
B42: 915 | C42: 5160000000 | D42: 5021.52 | E42: 5.48 | F42: =D42/(B42/30.416)/(D1-D2) -> 0.00166923008 | G42: 0.02003076096 | H42: 915 | I42: 5160000000 | J42: 5272.59 | K42: 5.76 | L42: =J42/(H42/30.416)/(J1-J2) -> 0.00166922818 | M42: 0.02003073817 | N42: 915 | O42: 5160000000 | P42: 5473.45 | Q42: 5.98 | R42: =P42/(N42/30.416)/(P1-P2) -> 0.001669228006 | S42: 0.02003073607
B43: 877 | C43: 5220000000 | D43: 4149.96 | E43: 4.73 | F43: =D43/(B43/30.416)/(D1-D2) -> 0.001439283733 | G43: 0.01727140479 | H43: 877 | I43: 5220000000 | J43: 4357.46 | K43: 4.97 | L43: =J43/(H43/30.416)/(J1-J2) -> 0.001439284393 | M43: 0.01727141272 | N43: 877 | O43: 5220000000 | P43: 4523.46 | Q43: 5.15 | R43: =P43/(N43/30.416)/(P1-P2) -> 0.001439284878 | S43: 0.01727141854
B44: 835 | C44: 5280000000 | D44: 3366.72 | E44: 4.03 | F44: =D44/(B44/30.416)/(D1-D2) -> 0.00122637312 | G44: 0.01471647744 | H44: 835 | I44: 5280000000 | J44: 3535.05 | K44: 4.23 | L44: =J44/(H44/30.416)/(J1-J2) -> 0.001226371038 | M44: 0.01471645246 | N44: 835 | O44: 5280000000 | P44: 3669.72 | Q44: 4.39 | R44: =P44/(N44/30.416)/(P1-P2) -> 0.001226371516 | S44: 0.01471645819
B45: 789 | C45: 5340000000 | D45: 2673.13 | E45: 3.39 | F45: =D45/(B45/30.416)/(D1-D2) -> 0.001030493309 | G45: 0.01236591971 | H45: 789 | I45: 5340000000 | J45: 2806.78 | K45: 3.56 | L45: =J45/(H45/30.416)/(J1-J2) -> 0.001030490923 | M45: 0.01236589107 | N45: 789 | O45: 5340000000 | P45: 2913.71 | Q45: 3.69 | R45: =P45/(N45/30.416)/(P1-P2) -> 0.001030492708 | S45: 0.01236591249
B46: 738 | C46: 5400000000 | D46: 2066.4 | E46: 2.8 | F46: =D46/(B46/30.416)/(D1-D2) -> 0.000851648 | G46: 0.010219776 | H46: 738 | I46: 5400000000 | J46: 2169.72 | K46: 2.94 | L46: =J46/(H46/30.416)/(J1-J2) -> 0.000851648 | M46: 0.010219776 | N46: 738 | O46: 5400000000 | P46: 2252.37 | Q46: 3.05 | R46: =P46/(N46/30.416)/(P1-P2) -> 0.0008516457313 | S46: 0.01021974878
B47: 680 | C47: 5460000000 | D47: 1713.6 | E47: 2.52 | F47: =D47/(B47/30.416)/(D1-D2) -> 0.0007664832 | G47: 0.0091977984 | H47: 680 | I47: 5460000000 | J47: 1799.28 | K47: 2.64 | L47: =J47/(H47/30.416)/(J1-J2) -> 0.0007664832 | M47: 0.0091977984 | N47: 680 | O47: 5460000000 | P47: 1867.82 | Q47: 2.75 | R47: =P47/(N47/30.416)/(P1-P2) -> 0.0007664815586 | S47: 0.009197778703
B48: 615 | C48: 5520000000 | D48: 1377.6 | E48: 2.24 | F48: =D48/(B48/30.416)/(D1-D2) -> 0.0006813184 | G48: 0.0081758208 | H48: 615 | I48: 5520000000 | J48: 1446.48 | K48: 2.35 | L48: =J48/(H48/30.416)/(J1-J2) -> 0.0006813184 | M48: 0.0081758208 | N48: 615 | O48: 5520000000 | P48: 1501.58 | Q48: 2.44 | R48: =P48/(N48/30.416)/(P1-P2) -> 0.0006813165851 | S48: 0.008175799021
B49: 539 | C49: 5580000000 | D49: 1056.44 | E49: 1.96 | F49: =D49/(B49/30.416)/(D1-D2) -> 0.0005961536 | G49: 0.0071538432 | H49: 539 | I49: 5580000000 | J49: 1109.26 | K49: 2.06 | L49: =J49/(H49/30.416)/(J1-J2) -> 0.0005961525251 | M49: 0.007153830302 | N49: 539 | O49: 5580000000 | P49: 1151.51 | Q49: 2.14 | R49: =P49/(N49/30.416)/(P1-P2) -> 0.00059614863 | S49: 0.00715378356
B50: 449 | C50: 5640000000 | D50: 754.32 | E50: 1.68 | F50: =D50/(B50/30.416)/(D1-D2) -> 0.0005109888 | G50: 0.0061318656 | H50: 449 | I50: 5640000000 | J50: 792.03 | K50: 1.77 | L50: =J50/(H50/30.416)/(J1-J2) -> 0.000510984929 | M50: 0.006131819149 | N50: 449 | O50: 5640000000 | P50: 822.2 | Q50: 1.84 | R50: =P50/(N50/30.416)/(P1-P2) -> 0.0005109833309 | S50: 0.006131799971
B51: 339 | C51: 5700000000 | D51: 474.6 | E51: 1.4 | F51: =D51/(B51/30.416)/(D1-D2) -> 0.000425824 | G51: 0.005109888 | H51: 339 | I51: 5700000000 | J51: 498.33 | K51: 1.47 | L51: =J51/(H51/30.416)/(J1-J2) -> 0.000425824 | M51: 0.005109888 | N51: 339 | O51: 5700000000 | P51: 517.31 | Q51: 1.53 | R51: =P51/(N51/30.416)/(P1-P2) -> 0.0004258207074 | S51: 0.005109848489
B52: 197 | C52: 5760000000 | D52: 220.64 | E52: 1.12 | F52: =D52/(B52/30.416)/(D1-D2) -> 0.0003406592 | G52: 0.0040879104 | H52: 197 | I52: 5760000000 | J52: 231.67 | K52: 1.17 | L52: =J52/(H52/30.416)/(J1-J2) -> 0.0003406562591 | M52: 0.004087875109 | N52: 197 | O52: 5760000000 | P52: 240.49 | Q52: 1.22 | R52: =P52/(N52/30.416)/(P1-P2) -> 0.0003406484348 | S52: 0.004087781217
B53: 1 | C53: 5820000000 | D53: 0.84 | E53: 0.84 | F53: =D53/(B53/30.416)/(D1-D2) -> 0.0002554944 | G53: 0.0030659328 | H53: 1 | I53: 5820000000 | J53: 0.88 | K53: 0.88 | L53: =J53/(H53/30.416)/(J1-J2) -> 0.0002549150476 | M53: 0.003058980571 | N53: 1 | O53: 5820000000 | P53: 0.91 | Q53: 0.92 | R53: =P53/(N53/30.416)/(P1-P2) -> 0.0002539317431 | S53: 0.003047180917
B54: 1 | C54: 5880000000 | D54: 0.56 | E54: 0.56 | F54: =D54/(B54/30.416)/(D1-D2) -> 0.0001703296 | G54: 0.0020439552 | H54: 1 | I54: 5880000000 | J54: 0.58 | K54: 0.59 | L54: =J54/(H54/30.416)/(J1-J2) -> 0.0001680121905 | M54: 0.002016146286 | N54: 1 | O54: 5880000000 | P54: 0.61 | Q54: 0.61 | R54: =P54/(N54/30.416)/(P1-P2) -> 0.0001702179817 | S54: 0.00204261578
B55: 1 | C55: 5940000000 | D55: 0.28 | E55: 0.28 | F55: =D55/(B55/30.416)/(D1-D2) -> 8.51648e-05 | G55: 0.0010219776 | H55: 1 | I55: 5940000000 | J55: 0.29 | K55: 0.29 | L55: =J55/(H55/30.416)/(J1-J2) -> 8.400609524e-05 | M55: 0.001008073143 | N55: 1 | O55: 5940000000 | P55: 0.3 | Q55: 0.31 | R55: =P55/(N55/30.416)/(P1-P2) -> 8.371376147e-05 | S55: 0.001004565138
B56: 0 | C56: 6000000000 | D56: 0 | E56: 0 | F56: 0 | G56: 0 | H56: 0 | I56: 6000000000 | J56: 0 | K56: 0 | L56: 0 | M56: 0 | N56: 0 | O56: 6000000000 | P56: 0 | Q56: 0 | R56: 0 | S56: 0

Sheet 1 000
B1: БАЛАНС | D1: 100001 | F1: ДОХОДНОСТЬ | H1: БАЛАНС | J1: 105001 | L1: ДОХОДНОСТЬ | N1: БАЛАНС | P1: 109001 | R1: ДОХОДНОСТЬ
B2: БАЛАНС ACCOUNT HOLD | D2: 1 | H2: БАЛАНС ACCOUNT HOLD | J2: 1 | N2: БАЛАНС ACCOUNT HOLD | P2: 1
B3: СТРУКТУРНЫЙ БАЛАНС | D3: 1000 | H3: СТРУКТУРНЫЙ БАЛАНС | J3: 1000 | N3: СТРУКТУРНЫЙ БАЛАНС | P3: 1000
B4: ДНИ | C4: ГЕНЕЗИС | D4: ПАР | E4: /ДЕНЬ | F4: % В МЕСЯЦ | G4: % В ГОД | H4: ДНИ | I4: ГЕНЕЗИС | J4: ПАР | K4: /ДЕНЬ | L4: % В МЕСЯЦ | M4: % В ГОД | N4: ДНИ | O4: ГЕНЕЗИС | P4: ПАР | Q4: /ДЕНЬ | R4: % В МЕСЯЦ | S4: % В ГОД
B5: 706 | C5: 2940000000 | D5: =ABS(Paracalc($D$1,$D$2,$D$3,C5,B5,1)) -> 112088.11 | E5: =ABS(Paracalc($D$1,$D$2,$D$3,C5,B5+1,1))-D5 -> 158.77 | F5: =D5/(B5/30.416)/(D1-D2) -> 0.04828997102 | G5: =F5*12 -> 0.5794796522 | H5: 706 | I5: 2940000000 | J5: =ABS(Paracalc($J$1,$J$2,$J$3,I5,H5,1)) -> 117692.52 | K5: =ABS(Paracalc($J$1,$J$2,$J$3,I5,H5+1,1))-J5 -> 166.7 | L5: =J5/(H5/30.416)/(J1-J2) -> 0.04828997286 | M5: =L5*12 -> 0.5794796744 | N5: 706 | O5: 2940000000 | P5: =ABS(Paracalc($P$1,$P$2,$P$3,O5,N5,1)) -> 122176.04 | Q5: =ABS(Paracalc($P$1,$P$2,$P$3,O5,N5+1,1))-P5 -> 173.06 | R5: =P5/(N5/30.416)/(P1-P2) -> 0.04828997106 | S5: =R5*12 -> 0.5794796527
B6: 702 | C6: =C5+60000000 -> 3000000000 | D6: 107125.2 | E6: 152.6 | F6: =D6/(B6/30.416)/(D1-D2) -> 0.046414816 | G6: =F6*12 -> 0.556977792 | H6: 702 | I6: =I5+60000000 -> 3000000000 | J6: =ABS(Paracalc($J$1,$J$2,$J$3,I6,H6,1)) -> 112481.46 | K6: 160.23 | L6: =J6/(H6/30.416)/(J1-J2) -> 0.046414816 | M6: =L6*12 -> 0.556977792 | N6: 702 | O6: =O5+60000000 -> 3000000000 | P6: 116766.46 | Q6: 166.34 | R6: =P6/(N6/30.416)/(P1-P2) -> 0.04641481282 | S6: =R6*12 -> 0.5569777538
B7: 698 | C7: 3060000000 | D7: 102296.81 | E7: 146.56 | F7: =D7/(B7/30.416)/(D1-D2) -> 0.04457678758 | G7: 0.5349214509 | H7: 698 | I7: 3060000000 | J7: 107411.65 | K7: 153.88 | L7: =J7/(H7/30.416)/(J1-J2) -> 0.04457678737 | M7: 0.5349214484 | N7: 698 | O7: 3060000000 | P7: 111503.52 | Q7: 159.75 | R7: =P7/(N7/30.416)/(P1-P2) -> 0.04457678642 | S7: 0.534921437
B8: 693 | C8: 3120000000 | D8: 97460.85 | E8: 140.64 | F8: =D8/(B8/30.416)/(D1-D2) -> 0.04277589053 | G8: 0.5133106863 | H8: 693 | I8: 3120000000 | J8: 102333.9 | K8: 147.66 | L8: =J8/(H8/30.416)/(J1-J2) -> 0.04277589366 | M8: 0.513310724 | N8: 693 | O8: 3120000000 | P8: 106232.33 | Q8: 153.29 | R8: =P8/(N8/30.416)/(P1-P2) -> 0.04277589194 | S8: 0.5133107032
B9: 689 | C9: 3180000000 | D9: 92902.94 | E9: 134.83 | F9: =D9/(B9/30.416)/(D1-D2) -> 0.04101213096 | G9: 0.4921455715 | H9: 689 | I9: 3180000000 | J9: 97548.08 | K9: 141.58 | L9: =J9/(H9/30.416)/(J1-J2) -> 0.04101212802 | M9: 0.4921455362 | N9: 689 | O9: 3180000000 | P9: 101264.2 | Q9: 146.97 | R9: =P9/(N9/30.416)/(P1-P2) -> 0.0410121291 | S9: 0.4921455491
B10: 684 | C10: 3240000000 | D10: 88345.87 | E10: 129.16 | F10: =D10/(B10/30.416)/(D1-D2) -> 0.03928549681 | G10: 0.4714259617 | H10: 684 | I10: 3240000000 | J10: 92763.17 | K10: 135.62 | L10: =J10/(H10/30.416)/(J1-J2) -> 0.03928549956 | M10: 0.4714259948 | N10: 684 | O10: 3240000000 | P10: 96297 | Q10: 140.79 | R10: =P10/(N10/30.416)/(P1-P2) -> 0.03928549751 | S10: 0.4714259701
B11: 680 | C11: 3300000000 | D11: 84052.08 | E11: 123.6 | F11: =D11/(B11/30.416)/(D1-D2) -> 0.03759600096 | G11: 0.4511520115 | H11: 680 | I11: 3300000000 | J11: 88254.68 | K11: 129.79 | L11: =J11/(H11/30.416)/(J1-J2) -> 0.03759599926 | M11: 0.4511519911 | N11: 680 | O11: 3300000000 | P11: 91616.76 | Q11: 134.73 | R11: =P11/(N11/30.416)/(P1-P2) -> 0.03759599801 | S11: 0.4511519761
B12: 675 | C12: 3360000000 | D12: 79767.07 | E12: 118.17 | F12: =D12/(B12/30.416)/(D1-D2) -> 0.03594363261 | G12: 0.4313235913 | H12: 675 | I12: 3360000000 | J12: 83755.42 | K12: 124.08 | L12: =J12/(H12/30.416)/(J1-J2) -> 0.03594363111 | M12: 0.4313235733 | N12: 675 | O12: 3360000000 | P12: 86946.1 | Q12: 128.81 | R12: =P12/(N12/30.416)/(P1-P2) -> 0.03594363 | S12: 0.4313235601
B13: 670 | C13: 3420000000 | D13: 75618.18 | E13: 112.86 | F13: =D13/(B13/30.416)/(D1-D2) -> 0.03432839646 | G13: 0.4119407575 | H13: 670 | I13: 3420000000 | J13: 79399.09 | K13: 118.5 | L13: =J13/(H13/30.416)/(J1-J2) -> 0.03432839689 | M13: 0.4119407627 | N13: 670 | O13: 3420000000 | P13: 82423.81 | Q13: 123.03 | R13: =P13/(N13/30.416)/(P1-P2) -> 0.03432839388 | S13: 0.4119407265
B14: 665 | C14: 3480000000 | D14: 71603.58 | E14: 107.67 | F14: =D14/(B14/30.416)/(D1-D2) -> 0.03275029307 | G14: 0.3930035169 | H14: 665 | I14: 3480000000 | J14: 75183.76 | K14: 113.05 | L14: =J14/(H14/30.416)/(J1-J2) -> 0.03275029351 | M14: 0.3930035221 | N14: 665 | O14: 3480000000 | P14: 78047.9 | Q14: 117.37 | R14: =P14/(N14/30.416)/(P1-P2) -> 0.03275029215 | S14: 0.3930035058
B15: 660 | C15: 3540000000 | D15: 67721.43 | E15: 102.61 | F15: =D15/(B15/30.416)/(D1-D2) -> 0.03120931841 | G15: 0.3745118209 | H15: 660 | I15: 3540000000 | J15: 71107.51 | K15: 107.73 | L15: =J15/(H15/30.416)/(J1-J2) -> 0.03120932214 | M15: 0.3745118657 | N15: 660 | O15: 3540000000 | P15: 73816.36 | Q15: 111.85 | R15: =P15/(N15/30.416)/(P1-P2) -> 0.03120931896 | S15: 0.3745118275
B16: 655 | C16: 3600000000 | D16: 63969.92 | E16: 97.66 | F16: =D16/(B16/30.416)/(D1-D2) -> 0.02970548224 | G16: 0.3564657869 | H16: 655 | I16: 3600000000 | J16: 67168.41 | K16: 102.55 | L16: =J16/(H16/30.416)/(J1-J2) -> 0.02970547959 | M16: 0.356465755 | N16: 655 | O16: 3600000000 | P16: 69727.21 | Q16: 106.45 | R16: =P16/(N16/30.416)/(P1-P2) -> 0.02970548105 | S16: 0.3564657726
B17: 649 | C17: 3660000000 | D17: 60254.35 | E17: 92.84 | F17: =D17/(B17/30.416)/(D1-D2) -> 0.0282387721 | G17: 0.3388652653 | H17: 649 | I17: 3660000000 | J17: 63267.07 | K17: 97.48 | L17: =J17/(H17/30.416)/(J1-J2) -> 0.02823877322 | M17: 0.3388652786 | N17: 649 | O17: 3660000000 | P17: 65677.24 | Q17: 101.2 | R17: =P17/(N17/30.416)/(P1-P2) -> 0.02823877146 | S17: 0.3388652575
B18: 644 | C18: 3720000000 | D18: 56763.29 | E18: 88.14 | F18: =D18/(B18/30.416)/(D1-D2) -> 0.0268091961 | G18: 0.3217103532 | H18: 644 | I18: 3720000000 | J18: 59601.45 | K18: 92.55 | L18: =J18/(H18/30.416)/(J1-J2) -> 0.02680919407 | M18: 0.3217103289 | N18: 644 | O18: 3720000000 | P18: 61871.98 | Q18: 96.08 | R18: =P18/(N18/30.416)/(P1-P2) -> 0.02680919345 | S18: 0.3217103214
B19: 638 | C19: 3780000000 | D19: 53313.67 | E19: 83.57 | F19: =D19/(B19/30.416)/(D1-D2) -> 0.02541674901 | G19: 0.3050009881 | H19: 638 | I19: 3780000000 | J19: 55979.36 | K19: 87.74 | L19: =J19/(H19/30.416)/(J1-J2) -> 0.02541675196 | M19: 0.3050010235 | N19: 638 | O19: 3780000000 | P19: 58111.9 | Q19: 91.09 | R19: =P19/(N19/30.416)/(P1-P2) -> 0.02541674888 | S19: 0.3050009865
B20: 632 | C20: 3840000000 | D20: 49996.15 | E20: 79.11 | F20: =D20/(B20/30.416)/(D1-D2) -> 0.02406143827 | G20: 0.2887372592 | H20: 632 | I20: 3840000000 | J20: 52495.96 | K20: 83.06 | L20: =J20/(H20/30.416)/(J1-J2) -> 0.02406143941 | M20: 0.2887372729 | N20: 632 | O20: 3840000000 | P20: 54495.8 | Q20: 86.23 | R20: =P20/(N20/30.416)/(P1-P2) -> 0.02406143672 | S20: 0.2887372406
B21: 626 | C21: 3900000000 | D21: 46808.52 | E21: 74.77 | F21: =D21/(B21/30.416)/(D1-D2) -> 0.0227432579 | G21: 0.2729190948 | H21: 626 | I21: 3900000000 | J21: 49148.95 | K21: 78.51 | L21: =J21/(H21/30.416)/(J1-J2) -> 0.02274325975 | M21: 0.272919117 | N21: 626 | O21: 3900000000 | P21: 51021.29 | Q21: 81.5 | R21: =P21/(N21/30.416)/(P1-P2) -> 0.02274325932 | S21: 0.2729191119
B22: 620 | C22: 3960000000 | D22: 43748.58 | E22: 70.57 | F22: =D22/(B22/30.416)/(D1-D2) -> 0.0214622066 | G22: 0.2575464792 | H22: 620 | I22: 3960000000 | J22: 45936.01 | K22: 74.09 | L22: =J22/(H22/30.416)/(J1-J2) -> 0.02146220707 | M22: 0.2575464848 | N22: 620 | O22: 3960000000 | P22: 47685.96 | Q22: 76.91 | R22: =P22/(N22/30.416)/(P1-P2) -> 0.02146221011 | S22: 0.2575465213
B23: 613 | C23: 4020000000 | D23: 40747.67 | E23: 66.48 | F23: =D23/(B23/30.416)/(D1-D2) -> 0.02021828925 | G23: 0.2426194709 | H23: 613 | I23: 4020000000 | J23: 42785.06 | K23: 69.79 | L23: =J23/(H23/30.416)/(J1-J2) -> 0.02021829232 | M23: 0.2426195078 | N23: 613 | O23: 4020000000 | P23: 44414.97 | Q23: 72.45 | R23: =P23/(N23/30.416)/(P1-P2) -> 0.02021829366 | S23: 0.2426195239
B24: 607 | C24: 4080000000 | D24: 37940.51 | E24: 62.5 | F24: =D24/(B24/30.416)/(D1-D2) -> 0.01901150827 | G24: 0.2281380993 | H24: 607 | I24: 4080000000 | J24: 39837.53 | K24: 65.63 | L24: =J24/(H24/30.416)/(J1-J2) -> 0.01901150565 | M24: 0.2281380678 | N24: 607 | O24: 4080000000 | P24: 41355.15 | Q24: 68.13 | R24: =P24/(N24/30.416)/(P1-P2) -> 0.01901150556 | S24: 0.2281380667
B25: 600 | C25: 4140000000 | D25: 35195.66 | E25: 58.66 | F25: =D25/(B25/30.416)/(D1-D2) -> 0.01784185324 | G25: 0.2141022389 | H25: 600 | I25: 4140000000 | J25: 36955.44 | K25: 61.59 | L25: =J25/(H25/30.416)/(J1-J2) -> 0.01784185179 | M25: 0.2141022215 | N25: 600 | O25: 4140000000 | P25: 38363.27 | Q25: 63.94 | R25: =P25/(N25/30.416)/(P1-P2) -> 0.01784185352 | S25: 0.2141022423
B26: 593 | C26: 4200000000 | D26: 32577.04 | E26: 54.94 | F26: =D26/(B26/30.416)/(D1-D2) -> 0.01670932966 | G26: 0.2005119559 | H26: 593 | I26: 4200000000 | J26: 34205.9 | K26: 57.68 | L26: =J26/(H26/30.416)/(J1-J2) -> 0.01670933356 | M26: 0.2005120028 | N26: 593 | O26: 4200000000 | P26: 35508.98 | Q26: 59.88 | R26: =P26/(N26/30.416)/(P1-P2) -> 0.01670933267 | S26: 0.200511992
B27: 585 | C27: 4260000000 | D27: 30030.76 | E27: 51.33 | F27: =D27/(B27/30.416)/(D1-D2) -> 0.01561394181 | G27: 0.1873673018 | H27: 585 | I27: 4260000000 | J27: 31532.3 | K27: 53.9 | L27: =J27/(H27/30.416)/(J1-J2) -> 0.01561394281 | M27: 0.1873673137 | N27: 585 | O27: 4260000000 | P27: 32733.53 | Q27: 55.95 | R27: =P27/(N27/30.416)/(P1-P2) -> 0.01561394258 | S27: 0.1873673109
B28: 578 | C28: 4320000000 | D28: 27660.39 | E28: 47.86 | F28: =D28/(B28/30.416)/(D1-D2) -> 0.01455568205 | G28: 0.1746681845 | H28: 578 | I28: 4320000000 | J28: 29043.41 | K28: 50.25 | L28: =J28/(H28/30.416)/(J1-J2) -> 0.0145556823 | M28: 0.1746681876 | N28: 578 | O28: 4320000000 | P28: 30149.83 | Q28: 52.16 | R28: =P28/(N28/30.416)/(P1-P2) -> 0.01455568441 | S28: 0.1746682129
B29: 570 | C29: 4380000000 | D29: 25363.95 | E29: 44.49 | F29: =D29/(B29/30.416)/(D1-D2) -> 0.01353455971 | G29: 0.1624147165 | H29: 570 | I29: 4380000000 | J29: 26632.14 | K29: 46.73 | L29: =J29/(H29/30.416)/(J1-J2) -> 0.01353455589 | M29: 0.1624146707 | N29: 570 | O29: 4380000000 | P29: 27646.7 | Q29: 48.5 | R29: =P29/(N29/30.416)/(P1-P2) -> 0.01353455701 | S29: 0.1624146842
B30: 561 | C30: 4440000000 | D30: 23148.56 | E30: 41.26 | F30: =D30/(B30/30.416)/(D1-D2) -> 0.0125505633 | G30: 0.1506067596 | H30: 561 | I30: 4440000000 | J30: 24305.99 | K30: 43.32 | L30: =J30/(H30/30.416)/(J1-J2) -> 0.01255056433 | M30: 0.150606772 | N30: 561 | O30: 4440000000 | P30: 25231.93 | Q30: 44.98 | R30: =P30/(N30/30.416)/(P1-P2) -> 0.0125505631 | S30: 0.1506067572
B31: 553 | C31: 4500000000 | D31: 21096.95 | E31: 38.15 | F31: =D31/(B31/30.416)/(D1-D2) -> 0.011603704 | G31: 0.139244448 | H31: 553 | I31: 4500000000 | J31: 22151.79 | K31: 40.06 | L31: =J31/(H31/30.416)/(J1-J2) -> 0.01160370007 | M31: 0.1392444009 | N31: 553 | O31: 4500000000 | P31: 22995.67 | Q31: 41.58 | R31: =P31/(N31/30.416)/(P1-P2) -> 0.01160370122 | S31: 0.1392444147
B32: 544 | C32: 4560000000 | D32: 19126.51 | E32: 35.16 | F32: =D32/(B32/30.416)/(D1-D2) -> 0.01069396927 | G32: 0.1283276312 | H32: 544 | I32: 4560000000 | J32: 20082.84 | K32: 36.92 | L32: =J32/(H32/30.416)/(J1-J2) -> 0.01069397166 | M32: 0.12832766 | N32: 544 | O32: 4560000000 | P32: 20847.9 | Q32: 38.32 | R32: =P32/(N32/30.416)/(P1-P2) -> 0.01069397137 | S32: 0.1283276564
B33: 534 | C33: 4620000000 | D33: 17242.94 | E33: 32.29 | F33: =D33/(B33/30.416)/(D1-D2) -> 0.009821371967 | G33: 0.1178564636 | H33: 534 | I33: 4620000000 | J33: 18105.09 | K33: 33.9 | L33: =J33/(H33/30.416)/(J1-J2) -> 0.009821373594 | M33: 0.1178564831 | N33: 534 | O33: 4620000000 | P33: 18794.81 | Q33: 35.19 | R33: =P33/(N33/30.416)/(P1-P2) -> 0.009821374789 | S33: 0.1178564975
B34: 524 | C34: 4680000000 | D34: 15480.72 | E34: 29.54 | F34: =D34/(B34/30.416)/(D1-D2) -> 0.008985908006 | G34: 0.1078308961 | H34: 524 | I34: 4680000000 | J34: 16254.75 | K34: 31.02 | L34: =J34/(H34/30.416)/(J1-J2) -> 0.008985904689 | M34: 0.1078308563 | N34: 524 | O34: 4680000000 | P34: 16873.98 | Q34: 32.2 | R34: =P34/(N34/30.416)/(P1-P2) -> 0.00898590545 | S34: 0.1078308654
B35: 514 | C35: 4740000000 | D35: 13836.18 | E35: 26.91 | F35: =D35/(B35/30.416)/(D1-D2) -> 0.008187572974 | G35: 0.09825087569 | H35: 514 | I35: 4740000000 | J35: 14527.99 | K35: 28.26 | L35: =J35/(H35/30.416)/(J1-J2) -> 0.008187573538 | M35: 0.09825088245 | N35: 514 | O35: 4740000000 | P35: 15081.43 | Q35: 29.34 | R35: =P35/(N35/30.416)/(P1-P2) -> 0.008187569608 | S35: 0.0982508353
B36: 503 | C36: 4800000000 | D36: 12281.24 | E36: 24.42 | F36: =D36/(B36/30.416)/(D1-D2) -> 0.007426365722 | G36: 0.08911638867 | H36: 503 | I36: 4800000000 | J36: 12895.31 | K36: 25.63 | L36: =J36/(H36/30.416)/(J1-J2) -> 0.00742637033 | M36: 0.08911644396 | N36: 503 | O36: 4800000000 | P36: 13386.56 | Q36: 26.61 | R36: =P36/(N36/30.416)/(P1-P2) -> 0.007426370382 | S36: 0.08911644459
B37: 491 | C37: 4860000000 | D37: 10819.4 | E37: 22.03 | F37: =D37/(B37/30.416)/(D1-D2) -> 0.006702298786 | G37: 0.08042758543 | H37: 491 | I37: 4860000000 | J37: 11360.37 | K37: 23.13 | L37: =J37/(H37/30.416)/(J1-J2) -> 0.006702298786 | M37: 0.08042758543 | N37: 491 | O37: 4860000000 | P37: 11793.14 | Q37: 24.02 | R37: =P37/(N37/30.416)/(P1-P2) -> 0.006702295376 | S37: 0.08042754451
B38: 479 | C38: 4920000000 | D38: 9473.16 | E38: 19.78 | F38: =D38/(B38/30.416)/(D1-D2) -> 0.006015357715 | G38: 0.07218429258 | H38: 479 | I38: 4920000000 | J38: 9946.82 | K38: 20.76 | L38: =J38/(H38/30.416)/(J1-J2) -> 0.006015358925 | M38: 0.0721843071 | N38: 479 | O38: 4920000000 | P38: 10325.74 | Q38: 21.56 | R38: =P38/(N38/30.416)/(P1-P2) -> 0.006015355152 | S38: 0.07218426182
B39: 465 | C39: 4980000000 | D39: 8202.86 | E39: 17.64 | F39: =D39/(B39/30.416)/(D1-D2) -> 0.005365552468 | G39: 0.06438662962 | H39: 465 | I39: 4980000000 | J39: 8613 | K39: 18.52 | L39: =J39/(H39/30.416)/(J1-J2) -> 0.005365550599 | M39: 0.06438660719 | N39: 465 | O39: 4980000000 | P39: 8941.11 | Q39: 19.23 | R39: =P39/(N39/30.416)/(P1-P2) -> 0.005365548027 | S39: 0.06438657633
B40: 451 | C40: 5040000000 | D40: 7047.43 | E40: 15.63 | F40: =D40/(B40/30.416)/(D1-D2) -> 0.004752874299 | G40: 0.05703449159 | H40: 451 | I40: 5040000000 | J40: 7399.8 | K40: 16.41 | L40: =J40/(H40/30.416)/(J1-J2) -> 0.004752873335 | M40: 0.05703448003 | N40: 451 | O40: 5040000000 | P40: 7681.7 | Q40: 17.03 | R40: =P40/(N40/30.416)/(P1-P2) -> 0.004752875103 | S40: 0.05703450124
B41: 436 | C41: 5100000000 | D41: 5988.02 | E41: 13.73 | F41: =D41/(B41/30.416)/(D1-D2) -> 0.00417733065 | G41: 0.05012796779 | H41: 436 | I41: 5100000000 | J41: 6287.42 | K41: 14.42 | L41: =J41/(H41/30.416)/(J1-J2) -> 0.004177329985 | M41: 0.05012795982 | N41: 436 | O41: 5100000000 | P41: 6526.94 | Q41: 14.97 | R41: =P41/(N41/30.416)/(P1-P2) -> 0.004177329498 | S41: 0.05012795397
B42: 420 | C42: 5160000000 | D42: 5024.81 | E42: 11.96 | F42: =D42/(B42/30.416)/(D1-D2) -> 0.003638919547 | G42: 0.04366703456 | H42: 420 | I42: 5160000000 | J42: 5276.05 | K42: 12.56 | L42: =J42/(H42/30.416)/(J1-J2) -> 0.003638919202 | M42: 0.04366703042 | N42: 420 | O42: 5160000000 | P42: 5477.04 | Q42: 13.04 | R42: =P42/(N42/30.416)/(P1-P2) -> 0.00363891762 | S42: 0.04366701144
B43: 403 | C43: 5220000000 | D43: 4157.25 | E43: 10.31 | F43: =D43/(B43/30.416)/(D1-D2) -> 0.003137640596 | G43: 0.03765168715 | H43: 403 | I43: 5220000000 | J43: 4365.11 | K43: 10.83 | L43: =J43/(H43/30.416)/(J1-J2) -> 0.003137638799 | M43: 0.03765166558 | N43: 403 | O43: 5220000000 | P43: 4531.4 | Q43: 11.24 | R43: =P43/(N43/30.416)/(P1-P2) -> 0.003137638864 | S43: 0.03765166637
B44: 383 | C44: 5280000000 | D44: 3366.47 | E44: 8.79 | F44: =D44/(B44/30.416)/(D1-D2) -> 0.002673486985 | G44: 0.03208184382 | H44: 383 | I44: 5280000000 | J44: 3534.8 | K44: 9.23 | L44: =J44/(H44/30.416)/(J1-J2) -> 0.002673491901 | M44: 0.03208190281 | N44: 383 | O44: 5280000000 | P44: 3669.46 | Q44: 9.58 | R44: =P44/(N44/30.416)/(P1-P2) -> 0.002673492595 | S44: 0.03208191114
B45: 362 | C45: 5340000000 | D45: 2673.67 | E45: 7.38 | F45: =D45/(B45/30.416)/(D1-D2) -> 0.002246473666 | G45: 0.026957684 | H45: 362 | I45: 5340000000 | J45: 2807.35 | K45: 7.76 | L45: =J45/(H45/30.416)/(J1-J2) -> 0.002246470866 | M45: 0.02695765039 | N45: 362 | O45: 5340000000 | P45: 2914.3 | Q45: 8.05 | R45: =P45/(N45/30.416)/(P1-P2) -> 0.002246473435 | S45: 0.02695768122
B46: 339 | C46: 5400000000 | D46: 2069.25 | E46: 6.11 | F46: =D46/(B46/30.416)/(D1-D2) -> 0.001856587257 | G46: 0.02227904708 | H46: 339 | I46: 5400000000 | J46: 2172.71 | K46: 6.41 | L46: =J46/(H46/30.416)/(J1-J2) -> 0.00185658512 | M46: 0.02227902144 | N46: 339 | O46: 5400000000 | P46: 2255.48 | Q46: 6.66 | R46: =P46/(N46/30.416)/(P1-P2) -> 0.001856585199 | S46: 0.02227902239
B47: 312 | C47: 5460000000 | D47: 1714 | E47: 5.49 | F47: =D47/(B47/30.416)/(D1-D2) -> 0.001670930256 | G47: 0.02005116308 | H47: 312 | I47: 5460000000 | J47: 1799.7 | K47: 5.77 | L47: =J47/(H47/30.416)/(J1-J2) -> 0.001670930256 | M47: 0.02005116308 | N47: 312 | O47: 5460000000 | P47: 1868.26 | Q47: 5.99 | R47: =P47/(N47/30.416)/(P1-P2) -> 0.001670930256 | S47: 0.02005116308
B48: 282 | C48: 5520000000 | D48: 1377.06 | E48: 4.88 | F48: =D48/(B48/30.416)/(D1-D2) -> 0.001485271523 | G48: 0.01782325828 | H48: 282 | I48: 5520000000 | J48: 1445.91 | K48: 5.13 | L48: =J48/(H48/30.416)/(J1-J2) -> 0.001485268442 | M48: 0.0178232213 | N48: 282 | O48: 5520000000 | P48: 1500.99 | Q48: 5.33 | R48: =P48/(N48/30.416)/(P1-P2) -> 0.00148526618 | S48: 0.01782319416
B49: 248 | C49: 5580000000 | D49: 1059.65 | E49: 4.27 | F49: =D49/(B49/30.416)/(D1-D2) -> 0.001299609452 | G49: 0.01559531342 | H49: 248 | I49: 5580000000 | J49: 1112.63 | K49: 4.49 | L49: =J49/(H49/30.416)/(J1-J2) -> 0.001299606531 | M49: 0.01559527838 | N49: 248 | O49: 5580000000 | P49: 1155.02 | Q49: 4.66 | R49: =P49/(N49/30.416)/(P1-P2) -> 0.001299611139 | S49: 0.01559533367
B50: 206 | C50: 5640000000 | D50: 754.45 | E50: 3.66 | F50: =D50/(B50/30.416)/(D1-D2) -> 0.001113949087 | G50: 0.01336738905 | H50: 206 | I50: 5640000000 | J50: 792.17 | K50: 3.85 | L50: =J50/(H50/30.416)/(J1-J2) -> 0.001113945572 | M50: 0.01336734686 | N50: 206 | O50: 5640000000 | P50: 822.35 | Q50: 3.99 | R50: =P50/(N50/30.416)/(P1-P2) -> 0.00111394841 | S50: 0.01336738092
B51: 156 | C51: 5700000000 | D51: 476.11 | E51: 3.05 | F51: =D51/(B51/30.416)/(D1-D2) -> 0.0009282924205 | G51: 0.01113950905 | H51: 156 | I51: 5700000000 | J51: 499.91 | K51: 3.21 | L51: =J51/(H51/30.416)/(J1-J2) -> 0.0009282822076 | M51: 0.01113938649 | N51: 156 | O51: 5700000000 | P51: 518.96 | Q51: 3.32 | R51: =P51/(N51/30.416)/(P1-P2) -> 0.0009282925994 | S51: 0.01113951119
B52: 91 | C52: 5760000000 | D52: 222.18 | E52: 2.44 | F52: =D52/(B52/30.416)/(D1-D2) -> 0.0007426183385 | G52: 0.008911420062 | H52: 91 | I52: 5760000000 | J52: 233.29 | K52: 2.56 | L52: =J52/(H52/30.416)/(J1-J2) -> 0.0007426215217 | M52: 0.008911458261 | N52: 91 | O52: 5760000000 | P52: 242.18 | Q52: 2.66 | R52: =P52/(N52/30.416)/(P1-P2) -> 0.0007426299909 | S52: 0.008911559891
B53: 1 | C53: 5820000000 | D53: 1.83 | E53: 1.83 | F53: =D53/(B53/30.416)/(D1-D2) -> 0.0005566128 | G53: 0.0066793536 | H53: 1 | I53: 5820000000 | J53: 1.92 | K53: 1.92 | L53: =J53/(H53/30.416)/(J1-J2) -> 0.0005561782857 | M53: 0.006674139429 | N53: 1 | O53: 5820000000 | P53: 1.99 | Q53: 2 | R53: =P53/(N53/30.416)/(P1-P2) -> 0.0005553012844 | S53: 0.006663615413
B54: 1 | C54: 5880000000 | D54: 1.22 | E54: 1.22 | F54: =D54/(B54/30.416)/(D1-D2) -> 0.0003710752 | G54: 0.0044529024 | H54: 1 | I54: 5880000000 | J54: 1.28 | K54: 1.28 | L54: =J54/(H54/30.416)/(J1-J2) -> 0.0003707855238 | M54: 0.004449426286 | N54: 1 | O54: 5880000000 | P54: 1.33 | Q54: 1.33 | R54: =P54/(N54/30.416)/(P1-P2) -> 0.0003711310092 | S54: 0.00445357211
B55: 1 | C55: 5940000000 | D55: 0.61 | E55: 0.61 | F55: =D55/(B55/30.416)/(D1-D2) -> 0.0001855376 | G55: 0.0022264512 | H55: 1 | I55: 5940000000 | J55: 0.64 | K55: 0.64 | L55: =J55/(H55/30.416)/(J1-J2) -> 0.0001853927619 | M55: 0.002224713143 | N55: 1 | O55: 5940000000 | P55: 0.66 | Q55: 0.67 | R55: =P55/(N55/30.416)/(P1-P2) -> 0.0001841702752 | S55: 0.002210043303
B56: 0 | C56: 6000000000 | D56: 0 | E56: 0 | F56: 0 | G56: 0 | H56: 0 | I56: 6000000000 | J56: 0 | K56: 0 | L56: 0 | M56: 0 | N56: 0 | O56: 6000000000 | P56: 0 | Q56: 0 | R56: 0 | S56: 0

Sheet 10 000
B1: БАЛАНС | D1: 100001 | F1: ДОХОДНОСТЬ | H1: БАЛАНС | J1: 105001 | L1: ДОХОДНОСТЬ | N1: БАЛАНС | P1: 109001 | R1: ДОХОДНОСТЬ
B2: БАЛАНС ACCOUNT HOLD | D2: 1 | H2: БАЛАНС ACCOUNT HOLD | J2: 1 | N2: БАЛАНС ACCOUNT HOLD | P2: 1
B3: СТРУКТУРНЫЙ БАЛАНС | D3: 10000 | H3: СТРУКТУРНЫЙ БАЛАНС | J3: 10000 | N3: СТРУКТУРНЫЙ БАЛАНС | P3: 10000
B4: ДНИ | C4: ГЕНЕЗИС | D4: ПАР | E4: /ДЕНЬ | F4: % В МЕСЯЦ | G4: % В ГОД | H4: ДНИ | I4: ГЕНЕЗИС | J4: ПАР | K4: /ДЕНЬ | L4: % В МЕСЯЦ | M4: % В ГОД | N4: ДНИ | O4: ГЕНЕЗИС | P4: ПАР | Q4: /ДЕНЬ | R4: % В МЕСЯЦ | S4: % В ГОД
B5: 652 | C5: 2940000000 | D5: =ABS(Paracalc($D$1,$D$2,$D$3,C5,B5,1)) -> 112061.9 | E5: =ABS(Paracalc($D$1,$D$2,$D$3,C5,B5+1,1))-D5 -> 171.87 | F5: =D5/(B5/30.416)/(D1-D2) -> 0.0522772201 | G5: =F5*12 -> 0.6273266412 | H5: 652 | I5: 2940000000 | J5: =ABS(Paracalc($J$1,$J$2,$J$3,I5,H5,1)) -> 117664.99 | K5: =ABS(Paracalc($J$1,$J$2,$J$3,I5,H5+1,1))-J5 -> 180.47 | L5: =J5/(H5/30.416)/(J1-J2) -> 0.05227721788 | M5: =L5*12 -> 0.6273266145 | N5: 652 | O5: 2940000000 | P5: =ABS(Paracalc($P$1,$P$2,$P$3,O5,N5,1)) -> 122147.47 | Q5: =ABS(Paracalc($P$1,$P$2,$P$3,O5,N5+1,1))-P5 -> 187.34 | R5: =P5/(N5/30.416)/(P1-P2) -> 0.05227721967 | S5: =R5*12 -> 0.627326636
B6: 648 | C6: =C5+60000000 -> 3000000000 | D6: 107049.6 | E6: 165.2 | F6: =D6/(B6/30.416)/(D1-D2) -> 0.050247232 | G6: =F6*12 -> 0.602966784 | H6: 648 | I6: =I5+60000000 -> 3000000000 | J6: =ABS(Paracalc($J$1,$J$2,$J$3,I6,H6,1)) -> 112402.08 | K6: 173.46 | L6: =J6/(H6/30.416)/(J1-J2) -> 0.050247232 | M6: =L6*12 -> 0.602966784 | N6: 648 | O6: =O5+60000000 -> 3000000000 | P6: 116684.06 | Q6: 180.07 | R6: =P6/(N6/30.416)/(P1-P2) -> 0.05024723028 | S6: =R6*12 -> 0.6029667633
B7: 645 | C7: 3060000000 | D7: 102334.46 | E7: 158.65 | F7: =D7/(B7/30.416)/(D1-D2) -> 0.04825744086 | G7: 0.5790892903 | H7: 645 | I7: 3060000000 | J7: 107451.18 | K7: 166.59 | L7: =J7/(H7/30.416)/(J1-J2) -> 0.04825743951 | M7: 0.5790892741 | N7: 645 | O7: 3060000000 | P7: 111544.56 | Q7: 172.94 | R7: =P7/(N7/30.416)/(P1-P2) -> 0.04825744025 | S7: 0.579089283
B8: 641 | C8: 3120000000 | D8: 97591.17 | E8: 152.25 | F8: =D8/(B8/30.416)/(D1-D2) -> 0.04630784753 | G8: 0.5556941704 | H8: 641 | I8: 3120000000 | J8: 102470.73 | K8: 159.86 | L8: =J8/(H8/30.416)/(J1-J2) -> 0.04630784821 | M8: 0.5556941785 | N8: 641 | O8: 3120000000 | P8: 106374.37 | Q8: 165.95 | R8: =P8/(N8/30.416)/(P1-P2) -> 0.04630784522 | S8: 0.5556941427
B9: 636 | C9: 3180000000 | D9: 92837.37 | E9: 145.97 | F9: =D9/(B9/30.416)/(D1-D2) -> 0.04439845041 | G9: 0.5327814049 | H9: 636 | I9: 3180000000 | J9: 97479.24 | K9: 153.27 | L9: =J9/(H9/30.416)/(J1-J2) -> 0.04439845109 | M9: 0.5327814131 | N9: 636 | O9: 3180000000 | P9: 101192.74 | Q9: 159.11 | R9: =P9/(N9/30.416)/(P1-P2) -> 0.04439845335 | S9: 0.5327814402
B10: 632 | C10: 3240000000 | D10: 88369.57 | E10: 139.83 | F10: =D10/(B10/30.416)/(D1-D2) -> 0.04252925382 | G10: 0.5103510458 | H10: 632 | I10: 3240000000 | J10: 92788.05 | K10: 146.82 | L10: =J10/(H10/30.416)/(J1-J2) -> 0.0425292545 | M10: 0.510351054 | N10: 632 | O10: 3240000000 | P10: 96322.83 | Q10: 152.41 | R10: =P10/(N10/30.416)/(P1-P2) -> 0.04252925324 | S10: 0.5103510389
B11: 628 | C11: 3300000000 | D11: 84033.93 | E11: 133.81 | F11: =D11/(B11/30.416)/(D1-D2) -> 0.04070025501 | G11: 0.4884030602 | H11: 628 | I11: 3300000000 | J11: 88235.63 | K11: 140.5 | L11: =J11/(H11/30.416)/(J1-J2) -> 0.04070025663 | M11: 0.4884030795 | N11: 628 | O11: 3300000000 | P11: 91596.99 | Q11: 145.85 | R11: =P11/(N11/30.416)/(P1-P2) -> 0.04070025781 | S11: 0.4884030938
B12: 624 | C12: 3360000000 | D12: 79828.86 | E12: 127.94 | F12: =D12/(B12/30.416)/(D1-D2) -> 0.03891145202 | G12: 0.4669374242 | H12: 624 | I12: 3360000000 | J12: 83820.31 | K12: 134.33 | L12: =J12/(H12/30.416)/(J1-J2) -> 0.03891145526 | M12: 0.4669374632 | N12: 624 | O12: 3360000000 | P12: 87013.46 | Q12: 139.45 | R12: =P12/(N12/30.416)/(P1-P2) -> 0.03891145318 | S12: 0.4669374381
B13: 619 | C13: 3420000000 | D13: 75630.6 | E13: 122.19 | F13: =D13/(B13/30.416)/(D1-D2) -> 0.03716284862 | G13: 0.4459541834 | H13: 619 | I13: 3420000000 | J13: 79412.13 | K13: 128.29 | L13: =J13/(H13/30.416)/(J1-J2) -> 0.03716284862 | M13: 0.4459541834 | N13: 619 | O13: 3420000000 | P13: 82437.36 | Q13: 133.18 | R13: =P13/(N13/30.416)/(P1-P2) -> 0.03716285133 | S13: 0.4459542159
B14: 614 | C14: 3480000000 | D14: 71570.98 | E14: 116.56 | F14: =D14/(B14/30.416)/(D1-D2) -> 0.03545444508 | G14: 0.4254533409 | H14: 614 | I14: 3480000000 | J14: 75149.53 | K14: 122.39 | L14: =J14/(H14/30.416)/(J1-J2) -> 0.03545444555 | M14: 0.4254533466 | N14: 614 | O14: 3480000000 | P14: 78012.37 | Q14: 127.05 | R14: =P14/(N14/30.416)/(P1-P2) -> 0.03545444589 | S14: 0.4254533507
B15: 610 | C15: 3540000000 | D15: 67759.09 | E15: 111.08 | F15: =D15/(B15/30.416)/(D1-D2) -> 0.0337862374 | G15: 0.4054348488 | H15: 610 | I15: 3540000000 | J15: 71147.04 | K15: 116.64 | L15: =J15/(H15/30.416)/(J1-J2) -> 0.03378623526 | M15: 0.4054348232 | N15: 610 | O15: 3540000000 | P15: 73857.41 | Q15: 121.07 | R15: =P15/(N15/30.416)/(P1-P2) -> 0.03378623827 | S15: 0.4054348592
B16: 605 | C16: 3600000000 | D16: 63965.44 | E16: 105.72 | F16: =D16/(B16/30.416)/(D1-D2) -> 0.03215822848 | G16: 0.3858987418 | H16: 605 | I16: 3600000000 | J16: 67163.71 | K16: 111.01 | L16: =J16/(H16/30.416)/(J1-J2) -> 0.03215822752 | M16: 0.3858987303 | N16: 605 | O16: 3600000000 | P16: 69722.32 | Q16: 115.25 | R16: =P16/(N16/30.416)/(P1-P2) -> 0.03215822405 | S16: 0.3858986886
B17: 600 | C17: 3660000000 | D17: 60304.6 | E17: 100.51 | F17: =D17/(B17/30.416)/(D1-D2) -> 0.03057041189 | G17: 0.3668449427 | H17: 600 | I17: 3660000000 | J17: 63319.83 | K17: 105.54 | L17: =J17/(H17/30.416)/(J1-J2) -> 0.03057041189 | M17: 0.3668449427 | N17: 600 | O17: 3660000000 | P17: 65732.02 | Q17: 109.55 | R17: =P17/(N17/30.416)/(P1-P2) -> 0.03057041468 | S17: 0.3668449762
B18: 595 | C18: 3720000000 | D18: 56774.61 | E18: 95.42 | F18: =D18/(B18/30.416)/(D1-D2) -> 0.02902279895 | G18: 0.3482735874 | H18: 595 | I18: 3720000000 | J18: 59613.34 | K18: 100.19 | L18: =J18/(H18/30.416)/(J1-J2) -> 0.02902279871 | M18: 0.3482735845 | N18: 595 | O18: 3720000000 | P18: 61884.32 | Q18: 104.01 | R18: =P18/(N18/30.416)/(P1-P2) -> 0.02902279666 | S18: 0.3482735599
B19: 589 | C19: 3780000000 | D19: 53283.01 | E19: 90.46 | F19: =D19/(B19/30.416)/(D1-D2) -> 0.02751538255 | G19: 0.3301845906 | H19: 589 | I19: 3780000000 | J19: 55947.16 | K19: 94.99 | L19: =J19/(H19/30.416)/(J1-J2) -> 0.0275153823 | M19: 0.3301845876 | N19: 589 | O19: 3780000000 | P19: 58078.48 | Q19: 98.6 | R19: =P19/(N19/30.416)/(P1-P2) -> 0.02751538212 | S19: 0.3301845855
B20: 584 | C20: 3840000000 | D20: 50013.57 | E20: 85.64 | F20: =D20/(B20/30.416)/(D1-D2) -> 0.02604816344 | G20: 0.3125779613 | H20: 584 | I20: 3840000000 | J20: 52514.25 | K20: 89.92 | L20: =J20/(H20/30.416)/(J1-J2) -> 0.02604816419 | M20: 0.3125779703 | N20: 584 | O20: 3840000000 | P20: 54514.79 | Q20: 93.35 | R20: =P20/(N20/30.416)/(P1-P2) -> 0.02604816282 | S20: 0.3125779539
B21: 578 | C21: 3900000000 | D21: 46787.94 | E21: 80.95 | F21: =D21/(B21/30.416)/(D1-D2) -> 0.02462114158 | G21: 0.2954536989 | H21: 578 | I21: 3900000000 | J21: 49127.34 | K21: 84.99 | L21: =J21/(H21/30.416)/(J1-J2) -> 0.02462114308 | M21: 0.2954537169 | N21: 578 | O21: 3900000000 | P21: 50998.85 | Q21: 88.24 | R21: =P21/(N21/30.416)/(P1-P2) -> 0.02462113935 | S21: 0.2954536723
B22: 573 | C22: 3960000000 | D22: 43770.59 | E22: 76.39 | F22: =D22/(B22/30.416)/(D1-D2) -> 0.02323431528 | G22: 0.2788117833 | H22: 573 | I22: 3960000000 | J22: 45959.12 | K22: 80.21 | L22: =J22/(H22/30.416)/(J1-J2) -> 0.02323431553 | M22: 0.2788117864 | N22: 573 | O22: 3960000000 | P22: 47709.95 | Q22: 83.26 | R22: =P22/(N22/30.416)/(P1-P2) -> 0.02323431864 | S22: 0.2788118237
B23: 567 | C23: 4020000000 | D23: 40801.95 | E23: 71.96 | F23: =D23/(B23/30.416)/(D1-D2) -> 0.02188769156 | G23: 0.2626522987 | H23: 567 | I23: 4020000000 | J23: 42842.05 | K23: 75.56 | L23: =J23/(H23/30.416)/(J1-J2) -> 0.02188769283 | M23: 0.262652314 | N23: 567 | O23: 4020000000 | P23: 44474.13 | Q23: 78.43 | R23: =P23/(N23/30.416)/(P1-P2) -> 0.02188769377 | S23: 0.2626523252
B24: 561 | C24: 4080000000 | D24: 37960.58 | E24: 67.66 | F24: =D24/(B24/30.416)/(D1-D2) -> 0.02058126562 | G24: 0.2469751874 | H24: 561 | I24: 4080000000 | J24: 39858.61 | K24: 71.04 | L24: =J24/(H24/30.416)/(J1-J2) -> 0.02058126614 | M24: 0.2469751936 | N24: 561 | O24: 4080000000 | P24: 41377.03 | Q24: 73.75 | R24: =P24/(N24/30.416)/(P1-P2) -> 0.02058126453 | S24: 0.2469751743
B25: 554 | C25: 4140000000 | D25: 35180.59 | E25: 63.5 | F25: =D25/(B25/30.416)/(D1-D2) -> 0.01931503295 | G25: 0.2317803954 | H25: 554 | I25: 4140000000 | J25: 36939.62 | K25: 66.68 | L25: =J25/(H25/30.416)/(J1-J2) -> 0.01931503321 | M25: 0.2317803985 | N25: 554 | O25: 4140000000 | P25: 38346.84 | Q25: 69.22 | R25: =P25/(N25/30.416)/(P1-P2) -> 0.01931503139 | S25: 0.2317803767
B26: 548 | C26: 4200000000 | D26: 32590.65 | E26: 59.47 | F26: =D26/(B26/30.416)/(D1-D2) -> 0.01808900019 | G26: 0.2170680023 | H26: 548 | I26: 4200000000 | J26: 34220.18 | K26: 62.45 | L26: =J26/(H26/30.416)/(J1-J2) -> 0.01808899887 | M26: 0.2170679864 | N26: 548 | O26: 4200000000 | P26: 35523.81 | Q26: 64.82 | R26: =P26/(N26/30.416)/(P1-P2) -> 0.01808900095 | S26: 0.2170680114
B27: 541 | C27: 4260000000 | D27: 30065.14 | E27: 55.57 | F27: =D27/(B27/30.416)/(D1-D2) -> 0.01690316633 | G27: 0.2028379959 | H27: 541 | I27: 4260000000 | J27: 31568.4 | K27: 58.35 | L27: =J27/(H27/30.416)/(J1-J2) -> 0.01690316793 | M27: 0.2028380152 | N27: 541 | O27: 4260000000 | P27: 32771 | Q27: 60.58 | R27: =P27/(N27/30.416)/(P1-P2) -> 0.01690316498 | S27: 0.2028379798
B28: 534 | C28: 4320000000 | D28: 27664.78 | E28: 51.81 | F28: =D28/(B28/30.416)/(D1-D2) -> 0.01575752713 | G28: 0.1890903255 | H28: 534 | I28: 4320000000 | J28: 29048.02 | K28: 54.4 | L28: =J28/(H28/30.416)/(J1-J2) -> 0.01575752767 | M28: 0.189090332 | N28: 534 | O28: 4320000000 | P28: 30154.61 | Q28: 56.47 | R28: =P28/(N28/30.416)/(P1-P2) -> 0.01575752702 | S28: 0.1890903242
B29: 526 | C29: 4380000000 | D29: 25338.64 | E29: 48.17 | F29: =D29/(B29/30.416)/(D1-D2) -> 0.01465209267 | G29: 0.175825112 | H29: 526 | I29: 4380000000 | J29: 26605.57 | K29: 50.58 | L29: =J29/(H29/30.416)/(J1-J2) -> 0.01465209156 | M29: 0.1758250988 | N29: 526 | O29: 4380000000 | P29: 27619.11 | Q29: 52.51 | R29: =P29/(N29/30.416)/(P1-P2) -> 0.01465208863 | S29: 0.1758250636
B30: 519 | C30: 4440000000 | D30: 23183.77 | E30: 44.67 | F30: =D30/(B30/30.416)/(D1-D2) -> 0.01358685064 | G30: 0.1630422077 | H30: 519 | I30: 4440000000 | J30: 24342.96 | K30: 46.9 | L30: =J30/(H30/30.416)/(J1-J2) -> 0.01358685148 | M30: 0.1630422178 | N30: 519 | O30: 4440000000 | P30: 25270.31 | Q30: 48.69 | R30: =P30/(N30/30.416)/(P1-P2) -> 0.01358685102 | S30: 0.1630422122
B31: 511 | C31: 4500000000 | D31: 21104.3 | E31: 41.3 | F31: =D31/(B31/30.416)/(D1-D2) -> 0.012561808 | G31: 0.150741696 | H31: 511 | I31: 4500000000 | J31: 22159.51 | K31: 43.37 | L31: =J31/(H31/30.416)/(J1-J2) -> 0.01256180517 | M31: 0.150741662 | N31: 511 | O31: 4500000000 | P31: 23003.68 | Q31: 45.02 | R31: =P31/(N31/30.416)/(P1-P2) -> 0.01256180418 | S31: 0.1507416501
B32: 502 | C32: 4560000000 | D32: 19107.16 | E32: 38.06 | F32: =D32/(B32/30.416)/(D1-D2) -> 0.01157695973 | G32: 0.1389235168 | H32: 502 | I32: 4560000000 | J32: 20062.52 | K32: 39.96 | L32: =J32/(H32/30.416)/(J1-J2) -> 0.01157696089 | M32: 0.1389235306 | N32: 502 | O32: 4560000000 | P32: 20826.8 | Q32: 41.49 | R32: =P32/(N32/30.416)/(P1-P2) -> 0.01157695729 | S32: 0.1389234874
B33: 493 | C33: 4620000000 | D33: 17233.46 | E33: 34.96 | F33: =D33/(B33/30.416)/(D1-D2) -> 0.01063231074 | G33: 0.1275877289 | H33: 493 | I33: 4620000000 | J33: 18095.13 | K33: 36.71 | L33: =J33/(H33/30.416)/(J1-J2) -> 0.01063230897 | M33: 0.1275877077 | N33: 493 | O33: 4620000000 | P33: 18784.47 | Q33: 38.11 | R33: =P33/(N33/30.416)/(P1-P2) -> 0.01063230995 | S33: 0.1275877193
B34: 484 | C34: 4680000000 | D34: 15479.63 | E34: 31.98 | F34: =D34/(B34/30.416)/(D1-D2) -> 0.009727860043 | G34: 0.1167343205 | H34: 484 | I34: 4680000000 | J34: 16253.61 | K34: 33.59 | L34: =J34/(H34/30.416)/(J1-J2) -> 0.009727859145 | M34: 0.1167343097 | N34: 484 | O34: 4680000000 | P34: 16872.8 | Q34: 34.86 | R34: =P34/(N34/30.416)/(P1-P2) -> 0.009727861946 | S34: 0.1167343433
B35: 475 | C35: 4740000000 | D35: 13842.1 | E35: 29.14 | F35: =D35/(B35/30.416)/(D1-D2) -> 0.008863606602 | G35: 0.1063632792 | H35: 475 | I35: 4740000000 | J35: 14534.21 | K35: 30.6 | L35: =J35/(H35/30.416)/(J1-J2) -> 0.008863609651 | M35: 0.1063633158 | N35: 475 | O35: 4740000000 | P35: 15087.89 | Q35: 31.77 | R35: =P35/(N35/30.416)/(P1-P2) -> 0.00886360719 | S35: 0.1063632863
B36: 464 | C36: 4800000000 | D36: 12264.44 | E36: 26.44 | F36: =D36/(B36/30.416)/(D1-D2) -> 0.008039551876 | G36: 0.09647462251 | H36: 464 | I36: 4800000000 | J36: 12877.67 | K36: 27.75 | L36: =J36/(H36/30.416)/(J1-J2) -> 0.00803955687 | M36: 0.09647468244 | N36: 464 | O36: 4800000000 | P36: 13368.24 | Q36: 28.81 | R36: =P36/(N36/30.416)/(P1-P2) -> 0.008039552116 | S36: 0.0964746254
B37: 454 | C37: 4860000000 | D37: 10830.11 | E37: 23.86 | F37: =D37/(B37/30.416)/(D1-D2) -> 0.007255696603 | G37: 0.08706835923 | H37: 454 | I37: 4860000000 | J37: 11371.62 | K37: 25.04 | L37: =J37/(H37/30.416)/(J1-J2) -> 0.007255699474 | M37: 0.08706839369 | N37: 454 | O37: 4860000000 | P37: 11804.82 | Q37: 26 | R37: =P37/(N37/30.416)/(P1-P2) -> 0.007255696664 | S37: 0.08706835997
B38: 442 | C38: 4920000000 | D38: 9463.18 | E38: 21.41 | F38: =D38/(B38/30.416)/(D1-D2) -> 0.006512038074 | G38: 0.07814445689 | H38: 442 | I38: 4920000000 | J38: 9936.34 | K38: 22.48 | L38: =J38/(H38/30.416)/(J1-J2) -> 0.00651203873 | M38: 0.07814446476 | N38: 442 | O38: 4920000000 | P38: 10314.87 | Q38: 23.33 | R38: =P38/(N38/30.416)/(P1-P2) -> 0.006512040473 | S38: 0.07814448568
B39: 430 | C39: 4980000000 | D39: 8211.76 | E39: 19.09 | F39: =D39/(B39/30.416)/(D1-D2) -> 0.005808578887 | G39: 0.06970294665 | H39: 430 | I39: 4980000000 | J39: 8622.34 | K39: 20.06 | L39: =J39/(H39/30.416)/(J1-J2) -> 0.005808573498 | M39: 0.06970288198 | N39: 430 | O39: 4980000000 | P39: 8950.82 | Q39: 20.81 | R39: =P39/(N39/30.416)/(P1-P2) -> 0.005808579926 | S39: 0.06970295911
B40: 417 | C40: 5040000000 | D40: 7054.17 | E40: 16.91 | F40: =D40/(B40/30.416)/(D1-D2) -> 0.005145314981 | G40: 0.06174377978 | H40: 417 | I40: 5040000000 | J40: 7406.88 | K40: 17.76 | L40: =J40/(H40/30.416)/(J1-J2) -> 0.005145316023 | M40: 0.06174379228 | N40: 417 | O40: 5040000000 | P40: 7689.04 | Q40: 18.44 | R40: =P40/(N40/30.416)/(P1-P2) -> 0.005145311435 | S40: 0.06174373722
B41: 403 | C41: 5100000000 | D41: 5991.8 | E41: 14.87 | F41: =D41/(B41/30.416)/(D1-D2) -> 0.004522247861 | G41: 0.05426697433 | H41: 403 | I41: 5100000000 | J41: 6291.39 | K41: 15.61 | L41: =J41/(H41/30.416)/(J1-J2) -> 0.004522247861 | M41: 0.05426697433 | N41: 403 | O41: 5100000000 | P41: 6531.06 | Q41: 16.21 | R41: =P41/(N41/30.416)/(P1-P2) -> 0.004522246476 | S41: 0.05426695771
B42: 388 | C42: 5160000000 | D42: 5025.25 | E42: 12.95 | F42: =D42/(B42/30.416)/(D1-D2) -> 0.003939381546 | G42: 0.04727257856 | H42: 388 | I42: 5160000000 | J42: 5276.51 | K42: 13.6 | L42: =J42/(H42/30.416)/(J1-J2) -> 0.00393937968 | M42: 0.04727255616 | N42: 388 | O42: 5160000000 | P42: 5477.52 | Q42: 14.12 | R42: =P42/(N42/30.416)/(P1-P2) -> 0.003939379748 | S42: 0.04727255698
B43: 372 | C43: 5220000000 | D43: 4154.31 | E43: 11.17 | F43: =D43/(B43/30.416)/(D1-D2) -> 0.0033967068 | G43: 0.0407604816 | H43: 372 | I43: 5220000000 | J43: 4362.03 | K43: 11.72 | L43: =J43/(H43/30.416)/(J1-J2) -> 0.003396710304 | M43: 0.04076052365 | N43: 372 | O43: 5220000000 | P43: 4528.2 | Q43: 12.17 | R43: =P43/(N43/30.416)/(P1-P2) -> 0.003396708375 | S43: 0.0407605005
B44: 354 | C44: 5280000000 | D44: 3368.49 | E44: 9.51 | F44: =D44/(B44/30.416)/(D1-D2) -> 0.002894237058 | G44: 0.03473084469 | H44: 354 | I44: 5280000000 | J44: 3536.91 | K44: 10 | L44: =J44/(H44/30.416)/(J1-J2) -> 0.002894233375 | M44: 0.0347308005 | N44: 354 | O44: 5280000000 | P44: 3671.65 | Q44: 10.38 | R44: =P44/(N44/30.416)/(P1-P2) -> 0.002894233826 | S44: 0.03473080591
B45: 335 | C45: 5340000000 | D45: 2678.55 | E45: 7.99 | F45: =D45/(B45/30.416)/(D1-D2) -> 0.002431963487 | G45: 0.02918356184 | H45: 335 | I45: 5340000000 | J45: 2812.48 | K45: 8.39 | L45: =J45/(H45/30.416)/(J1-J2) -> 0.002431965648 | M45: 0.02918358778 | N45: 335 | O45: 5340000000 | P45: 2919.62 | Q45: 8.71 | R45: =P45/(N45/30.416)/(P1-P2) -> 0.002431963903 | S45: 0.02918356684
B46: 313 | C46: 5400000000 | D46: 2068.3 | E46: 6.61 | F46: =D46/(B46/30.416)/(D1-D2) -> 0.002009885393 | G46: 0.02411862472 | H46: 313 | I46: 5400000000 | J46: 2171.71 | K46: 6.94 | L46: =J46/(H46/30.416)/(J1-J2) -> 0.002009880766 | M46: 0.02411856919 | N46: 313 | O46: 5400000000 | P46: 2254.45 | Q46: 7.2 | R46: =P46/(N46/30.416)/(P1-P2) -> 0.002009888068 | S46: 0.02411865681
B47: 289 | C47: 5460000000 | D47: 1718.74 | E47: 5.94 | F47: =D47/(B47/30.416)/(D1-D2) -> 0.00180889951 | G47: 0.02170679412 | H47: 289 | I47: 5460000000 | J47: 1804.67 | K47: 6.25 | L47: =J47/(H47/30.416)/(J1-J2) -> 0.001808892494 | M47: 0.02170670992 | N47: 289 | O47: 5460000000 | P47: 1873.42 | Q47: 6.48 | R47: =P47/(N47/30.416)/(P1-P2) -> 0.001808893137 | S47: 0.02170671765
B48: 261 | C48: 5520000000 | D48: 1379.75 | E48: 5.28 | F48: =D48/(B48/30.416)/(D1-D2) -> 0.001607910958 | G48: 0.01929493149 | H48: 261 | I48: 5520000000 | J48: 1448.73 | K48: 5.55 | L48: =J48/(H48/30.416)/(J1-J2) -> 0.001607902634 | M48: 0.01929483161 | N48: 261 | O48: 5520000000 | P48: 1503.92 | Q48: 5.77 | R48: =P48/(N48/30.416)/(P1-P2) -> 0.001607902939 | S48: 0.01929483527
B49: 229 | C49: 5580000000 | D49: 1059.26 | E49: 4.62 | F49: =D49/(B49/30.416)/(D1-D2) -> 0.001406919308 | G49: 0.0168830317 | H49: 229 | I49: 5580000000 | J49: 1112.22 | K49: 4.86 | L49: =J49/(H49/30.416)/(J1-J2) -> 0.001406915513 | M49: 0.01688298616 | N49: 229 | O49: 5580000000 | P49: 1154.59 | Q49: 5.04 | R49: =P49/(N49/30.416)/(P1-P2) -> 0.001406915165 | S49: 0.01688298198
B50: 191 | C50: 5640000000 | D50: 757.27 | E50: 3.97 | F50: =D50/(B50/30.416)/(D1-D2) -> 0.001205922739 | G50: 0.01447107287 | H50: 191 | I50: 5640000000 | J50: 795.14 | K50: 4.16 | L50: =J50/(H50/30.416)/(J1-J2) -> 0.001205932597 | M50: 0.01447119117 | N50: 191 | O50: 5640000000 | P50: 825.43 | Q50: 4.32 | R50: =P50/(N50/30.416)/(P1-P2) -> 0.001205931067 | S50: 0.0144711728
B51: 144 | C51: 5700000000 | D51: 475.77 | E51: 3.31 | F51: =D51/(B51/30.416)/(D1-D2) -> 0.001004931967 | G51: 0.0120591836 | H51: 144 | I51: 5700000000 | J51: 499.56 | K51: 3.47 | L51: =J51/(H51/30.416)/(J1-J2) -> 0.001004934984 | M51: 0.01205921981 | N51: 144 | O51: 5700000000 | P51: 518.59 | Q51: 3.6 | R51: =P51/(N51/30.416)/(P1-P2) -> 0.001004933323 | S51: 0.01205919988
B52: 84 | C52: 5760000000 | D52: 222.02 | E52: 2.65 | F52: =D52/(B52/30.416)/(D1-D2) -> 0.0008039238476 | G52: 0.009647086171 | H52: 84 | I52: 5760000000 | J52: 233.13 | K52: 2.77 | L52: =J52/(H52/30.416)/(J1-J2) -> 0.0008039548844 | M52: 0.009647458612 | N52: 84 | O52: 5760000000 | P52: 242.01 | Q52: 2.88 | R52: =P52/(N52/30.416)/(P1-P2) -> 0.0008039510878 | S52: 0.009647413054
B53: 1 | C53: 5820000000 | D53: 1.98 | E53: 1.98 | F53: =D53/(B53/30.416)/(D1-D2) -> 0.0006022368 | G53: 0.0072268416 | H53: 1 | I53: 5820000000 | J53: 2.08 | K53: 2.08 | L53: =J53/(H53/30.416)/(J1-J2) -> 0.0006025264762 | M53: 0.007230317714 | N53: 1 | O53: 5820000000 | P53: 2.16 | Q53: 2.16 | R53: =P53/(N53/30.416)/(P1-P2) -> 0.0006027390826 | S53: 0.007232868991
B54: 1 | C54: 5880000000 | D54: 1.32 | E54: 1.32 | F54: =D54/(B54/30.416)/(D1-D2) -> 0.0004014912 | G54: 0.0048178944 | H54: 1 | I54: 5880000000 | J54: 1.38 | K54: 1.39 | L54: =J54/(H54/30.416)/(J1-J2) -> 0.0003997531429 | M54: 0.004797037714 | N54: 1 | O54: 5880000000 | P54: 1.44 | Q54: 1.44 | R54: =P54/(N54/30.416)/(P1-P2) -> 0.000401826055 | S54: 0.004821912661
B55: 1 | C55: 5940000000 | D55: 0.66 | E55: 0.66 | F55: =D55/(B55/30.416)/(D1-D2) -> 0.0002007456 | G55: 0.0024089472 | H55: 1 | I55: 5940000000 | J55: 0.69 | K55: 0.69 | L55: =J55/(H55/30.416)/(J1-J2) -> 0.0001998765714 | M55: 0.002398518857 | N55: 1 | O55: 5940000000 | P55: 0.72 | Q55: 0.72 | R55: =P55/(N55/30.416)/(P1-P2) -> 0.0002009130275 | S55: 0.00241095633
B56: 0 | C56: 6000000000 | D56: 0 | E56: 0 | F56: 0 | G56: 0 | H56: 0 | I56: 6000000000 | J56: 0 | K56: 0 | L56: 0 | M56: 0 | N56: 0 | O56: 6000000000 | P56: 0 | Q56: 0 | R56: 0 | S56: 0

Sheet 0,1 mln
B1: БАЛАНС | D1: 100001 | F1: ДОХОДНОСТЬ | H1: БАЛАНС | J1: 105001 | L1: ДОХОДНОСТЬ | N1: БАЛАНС | P1: 109001 | R1: ДОХОДНОСТЬ
B2: БАЛАНС ACCOUNT HOLD | D2: 1 | H2: БАЛАНС ACCOUNT HOLD | J2: 1 | N2: БАЛАНС ACCOUNT HOLD | P2: 1
B3: СТРУКТУРНЫЙ БАЛАНС | D3: 100000 | H3: СТРУКТУРНЫЙ БАЛАНС | J3: 100000 | N3: СТРУКТУРНЫЙ БАЛАНС | P3: 100000
B4: ДНИ | C4: ГЕНЕЗИС | D4: ПАР | E4: /ДЕНЬ | F4: % В МЕСЯЦ | G4: % В ГОД | H4: ДНИ | I4: ГЕНЕЗИС | J4: ПАР | K4: /ДЕНЬ | L4: % В МЕСЯЦ | M4: % В ГОД | N4: ДНИ | O4: ГЕНЕЗИС | P4: ПАР | Q4: /ДЕНЬ | R4: % В МЕСЯЦ | S4: % В ГОД
B5: 556 | C5: 2940000000 | D5: =ABS(Paracalc($D$1,$D$2,$D$3,C5,B5,1)) -> 112163.85 | E5: =ABS(Paracalc($D$1,$D$2,$D$3,C5,B5+1,1))-D5 -> 201.74 | F5: =D5/(B5/30.416)/(D1-D2) -> 0.06135927449 | G5: =F5*12 -> 0.7363112939 | H5: 556 | I5: 2940000000 | J5: =ABS(Paracalc($J$1,$J$2,$J$3,I5,H5,1)) -> 117772.05 | K5: =ABS(Paracalc($J$1,$J$2,$J$3,I5,H5+1,1))-J5 -> 211.82 | L5: =J5/(H5/30.416)/(J1-J2) -> 0.0613592784 | M5: =L5*12 -> 0.7363113408 | N5: 556 | O5: 2940000000 | P5: =ABS(Paracalc($P$1,$P$2,$P$3,O5,N5,1)) -> 122258.6 | Q5: =ABS(Paracalc($P$1,$P$2,$P$3,O5,N5+1,1))-P5 -> 219.89 | R5: =P5/(N5/30.416)/(P1-P2) -> 0.06135927625 | S5: =R5*12 -> 0.7363113149
B6: 553 | C6: =C5+60000000 -> 3000000000 | D6: 107226.7 | E6: 193.9 | F6: =D6/(B6/30.416)/(D1-D2) -> 0.058976624 | G6: =F6*12 -> 0.707719488 | H6: 553 | I6: =I5+60000000 -> 3000000000 | J6: =ABS(Paracalc($J$1,$J$2,$J$3,I6,H6,1)) -> 112588.03 | K6: 203.6 | L6: =J6/(H6/30.416)/(J1-J2) -> 0.05897662138 | M6: =L6*12 -> 0.7077194566 | N6: 553 | O6: =O5+60000000 -> 3000000000 | P6: 116877.1 | Q6: 211.35 | R6: =P6/(N6/30.416)/(P1-P2) -> 0.05897662249 | S6: =R6*12 -> 0.7077194698
B7: 549 | C7: 3060000000 | D7: 102235.63 | E7: 186.22 | F7: =D7/(B7/30.416)/(D1-D2) -> 0.05664114612 | G7: 0.6796937535 | H7: 549 | I7: 3060000000 | J7: 107347.41 | K7: 195.54 | L7: =J7/(H7/30.416)/(J1-J2) -> 0.05664114533 | M7: 0.679693744 | N7: 549 | O7: 3060000000 | P7: 111436.84 | Q7: 202.98 | R7: =P7/(N7/30.416)/(P1-P2) -> 0.0566411478 | S7: 0.6796937736
B8: 546 | C8: 3120000000 | D8: 97569.23 | E8: 178.7 | F8: =D8/(B8/30.416)/(D1-D2) -> 0.05435285164 | G8: 0.6522342197 | H8: 546 | I8: 3120000000 | J8: 102447.7 | K8: 187.63 | L8: =J8/(H8/30.416)/(J1-J2) -> 0.05435285615 | M8: 0.6522342738 | N8: 546 | O8: 3120000000 | P8: 106350.47 | Q8: 194.78 | R8: =P8/(N8/30.416)/(P1-P2) -> 0.0543528564 | S8: 0.6522342767
B9: 542 | C9: 3180000000 | D9: 92860.88 | E9: 171.33 | F9: =D9/(B9/30.416)/(D1-D2) -> 0.05211174402 | G9: 0.6253409283 | H9: 542 | I9: 3180000000 | J9: 97503.92 | K9: 179.9 | L9: =J9/(H9/30.416)/(J1-J2) -> 0.05211174189 | M9: 0.6253409026 | N9: 542 | O9: 3180000000 | P9: 101218.36 | Q9: 186.75 | R9: =P9/(N9/30.416)/(P1-P2) -> 0.05211174444 | S9: 0.6253409332
B10: 539 | C10: 3240000000 | D10: 88459.04 | E10: 164.11 | F10: =D10/(B10/30.416)/(D1-D2) -> 0.04991781374 | G10: 0.5990137649 | H10: 539 | I10: 3240000000 | J10: 92881.99 | K10: 172.32 | L10: =J10/(H10/30.416)/(J1-J2) -> 0.04991781267 | M10: 0.599013752 | N10: 539 | O10: 3240000000 | P10: 96420.35 | Q10: 178.89 | R10: =P10/(N10/30.416)/(P1-P2) -> 0.04991781188 | S10: 0.5990137425
B11: 535 | C11: 3300000000 | D11: 84026.56 | E11: 157.06 | F11: =D11/(B11/30.416)/(D1-D2) -> 0.0477710626 | G11: 0.5732527512 | H11: 535 | I11: 3300000000 | J11: 88227.89 | K11: 164.91 | L11: =J11/(H11/30.416)/(J1-J2) -> 0.04777106368 | M11: 0.5732527642 | N11: 535 | O11: 3300000000 | P11: 91588.95 | Q11: 171.2 | R11: =P11/(N11/30.416)/(P1-P2) -> 0.04777106239 | S11: 0.5732527487
B12: 531 | C12: 3360000000 | D12: 79732.92 | E12: 150.15 | F12: =D12/(B12/30.416)/(D1-D2) -> 0.04567149708 | G12: 0.5480579649 | H12: 531 | I12: 3360000000 | J12: 83719.56 | K12: 157.67 | L12: =J12/(H12/30.416)/(J1-J2) -> 0.0456714938 | M12: 0.5480579256 | N12: 531 | O12: 3360000000 | P12: 86908.88 | Q12: 163.67 | R12: =P12/(N12/30.416)/(P1-P2) -> 0.0456714956 | S12: 0.5480579473
B13: 528 | C13: 3420000000 | D13: 75719.65 | E13: 143.41 | F13: =D13/(B13/30.416)/(D1-D2) -> 0.04361910747 | G13: 0.5234292896 | H13: 528 | I13: 3420000000 | J13: 79505.63 | K13: 150.58 | L13: =J13/(H13/30.416)/(J1-J2) -> 0.0436191061 | M13: 0.5234292732 | N13: 528 | O13: 3420000000 | P13: 82534.42 | Q13: 156.32 | R13: =P13/(N13/30.416)/(P1-P2) -> 0.04361910826 | S13: 0.5234292991
B14: 524 | C14: 3480000000 | D14: 71691.5 | E14: 136.81 | F14: =D14/(B14/30.416)/(D1-D2) -> 0.0416139058 | G14: 0.4993668696 | H14: 524 | I14: 3480000000 | J14: 75276.07 | K14: 143.66 | L14: =J14/(H14/30.416)/(J1-J2) -> 0.04161390304 | M14: 0.4993668364 | N14: 524 | O14: 3480000000 | P14: 78143.73 | Q14: 149.13 | R14: =P14/(N14/30.416)/(P1-P2) -> 0.04161390314 | S14: 0.4993668377
B15: 520 | C15: 3540000000 | D15: 67796.74 | E15: 130.38 | F15: =D15/(B15/30.416)/(D1-D2) -> 0.03965587777 | G15: 0.4758705332 | H15: 520 | I15: 3540000000 | J15: 71186.58 | K15: 136.9 | L15: =J15/(H15/30.416)/(J1-J2) -> 0.03965587944 | M15: 0.4758705532 | N15: 520 | O15: 3540000000 | P15: 73898.45 | Q15: 142.11 | R15: =P15/(N15/30.416)/(P1-P2) -> 0.03965587959 | S15: 0.4758705551
B16: 515 | C16: 3600000000 | D16: 63909.44 | E16: 124.09 | F16: =D16/(B16/30.416)/(D1-D2) -> 0.03774503936 | G16: 0.4529404723 | H16: 515 | I16: 3600000000 | J16: 67104.91 | K16: 130.3 | L16: =J16/(H16/30.416)/(J1-J2) -> 0.03774503824 | M16: 0.4529404588 | N16: 515 | O16: 3600000000 | P16: 69661.28 | Q16: 135.27 | R16: =P16/(N16/30.416)/(P1-P2) -> 0.03774503416 | S16: 0.4529404099
B17: 511 | C17: 3660000000 | D17: 60282.03 | E17: 117.97 | F17: =D17/(B17/30.416)/(D1-D2) -> 0.03588137426 | G17: 0.4305764911 | H17: 511 | I17: 3660000000 | J17: 63296.13 | K17: 123.87 | L17: =J17/(H17/30.416)/(J1-J2) -> 0.03588137341 | M17: 0.4305764809 | N17: 511 | O17: 3660000000 | P17: 65707.41 | Q17: 128.59 | R17: =P17/(N17/30.416)/(P1-P2) -> 0.03588137278 | S17: 0.4305764734
B18: 507 | C18: 3720000000 | D18: 56782.29 | E18: 112 | F18: =D18/(B18/30.416)/(D1-D2) -> 0.03406489413 | G18: 0.4087787296 | H18: 507 | I18: 3720000000 | J18: 59621.41 | K18: 117.59 | L18: =J18/(H18/30.416)/(J1-J2) -> 0.03406489728 | M18: 0.4087787673 | N18: 507 | O18: 3720000000 | P18: 61892.7 | Q18: 122.07 | R18: =P18/(N18/30.416)/(P1-P2) -> 0.03406489628 | S18: 0.4087787554
B19: 502 | C19: 3780000000 | D19: 53302.17 | E19: 106.18 | F19: =D19/(B19/30.416)/(D1-D2) -> 0.03229559368 | G19: 0.3875471242 | H19: 502 | I19: 3780000000 | J19: 55967.28 | K19: 111.49 | L19: =J19/(H19/30.416)/(J1-J2) -> 0.03229559455 | M19: 0.3875471345 | N19: 502 | O19: 3780000000 | P19: 58099.37 | Q19: 115.74 | R19: =P19/(N19/30.416)/(P1-P2) -> 0.03229559629 | S19: 0.3875471555
B20: 498 | C20: 3840000000 | D20: 50057.84 | E20: 100.52 | F20: =D20/(B20/30.416)/(D1-D2) -> 0.03057347915 | G20: 0.3668817497 | H20: 498 | I20: 3840000000 | J20: 52560.73 | K20: 105.55 | L20: =J20/(H20/30.416)/(J1-J2) -> 0.03057347798 | M20: 0.3668817358 | N20: 498 | O20: 3840000000 | P20: 54563.05 | Q20: 109.56 | R20: =P20/(N20/30.416)/(P1-P2) -> 0.03057348161 | S20: 0.3668817793
B21: 493 | C21: 3900000000 | D21: 46840.42 | E21: 95.01 | F21: =D21/(B21/30.416)/(D1-D2) -> 0.02889854391 | G21: 0.3467825269 | H21: 493 | I21: 3900000000 | J21: 49182.44 | K21: 99.76 | L21: =J21/(H21/30.416)/(J1-J2) -> 0.02889854332 | M21: 0.3467825199 | N21: 493 | O21: 3900000000 | P21: 51056.06 | Q21: 103.56 | R21: =P21/(N21/30.416)/(P1-P2) -> 0.02889854515 | S21: 0.3467825419
B22: 488 | C22: 3960000000 | D22: 43753.76 | E22: 89.66 | F22: =D22/(B22/30.416)/(D1-D2) -> 0.02727078615 | G22: 0.3272494338 | H22: 488 | I22: 3960000000 | J22: 45941.45 | K22: 94.14 | L22: =J22/(H22/30.416)/(J1-J2) -> 0.02727078734 | M22: 0.3272494481 | N22: 488 | O22: 3960000000 | P22: 47691.6 | Q22: 97.73 | R22: =P22/(N22/30.416)/(P1-P2) -> 0.02727078707 | S22: 0.3272494448
B23: 483 | C23: 4020000000 | D23: 40795.55 | E23: 84.46 | F23: =D23/(B23/30.416)/(D1-D2) -> 0.02569021633 | G23: 0.308282596 | H23: 483 | I23: 4020000000 | J23: 42835.32 | K23: 88.69 | L23: =J23/(H23/30.416)/(J1-J2) -> 0.02569021183 | M23: 0.308282542 | N23: 483 | O23: 4020000000 | P23: 44467.15 | Q23: 92.06 | R23: =P23/(N23/30.416)/(P1-P2) -> 0.02569021662 | S23: 0.3082825994
B24: 478 | C24: 4080000000 | D24: 37963.44 | E24: 79.42 | F24: =D24/(B24/30.416)/(D1-D2) -> 0.0241568199 | G24: 0.2898818388 | H24: 478 | I24: 4080000000 | J24: 39861.62 | K24: 83.39 | L24: =J24/(H24/30.416)/(J1-J2) -> 0.02415682474 | M24: 0.2898818969 | N24: 478 | O24: 4080000000 | P24: 41380.15 | Q24: 86.57 | R24: =P24/(N24/30.416)/(P1-P2) -> 0.02415682013 | S24: 0.2898818416
B25: 472 | C25: 4140000000 | D25: 35180.59 | E25: 74.54 | F25: =D25/(B25/30.416)/(D1-D2) -> 0.02267061071 | G25: 0.2720473285 | H25: 472 | I25: 4140000000 | J25: 36939.62 | K25: 78.26 | L25: =J25/(H25/30.416)/(J1-J2) -> 0.02267061102 | M25: 0.2720473322 | N25: 472 | O25: 4140000000 | P25: 38346.84 | Q25: 81.25 | R25: =P25/(N25/30.416)/(P1-P2) -> 0.02267060888 | S25: 0.2720473065
B26: 467 | C26: 4200000000 | D26: 32598.46 | E26: 69.81 | F26: =D26/(B26/30.416)/(D1-D2) -> 0.02123157943 | G26: 0.2547789532 | H26: 467 | I26: 4200000000 | J26: 34228.39 | K26: 73.29 | L26: =J26/(H26/30.416)/(J1-J2) -> 0.02123158377 | M26: 0.2547790053 | N26: 467 | O26: 4200000000 | P26: 35532.33 | Q26: 76.08 | R26: =P26/(N26/30.416)/(P1-P2) -> 0.02123158457 | S26: 0.2547790148
B27: 461 | C27: 4260000000 | D27: 30070.08 | E27: 65.23 | F27: =D27/(B27/30.416)/(D1-D2) -> 0.01983973001 | G27: 0.2380767601 | H27: 461 | I27: 4260000000 | J27: 31573.59 | K27: 68.49 | L27: =J27/(H27/30.416)/(J1-J2) -> 0.01983973378 | M27: 0.2380768053 | N27: 461 | O27: 4260000000 | P27: 32776.39 | Q27: 71.1 | R27: =P27/(N27/30.416)/(P1-P2) -> 0.0198397317 | S27: 0.2380767804
B28: 455 | C28: 4320000000 | D28: 27667.2 | E28: 60.81 | F28: =D28/(B28/30.416)/(D1-D2) -> 0.01849506715 | G28: 0.2219408058 | H28: 455 | I28: 4320000000 | J28: 29050.56 | K28: 63.85 | L28: =J28/(H28/30.416)/(J1-J2) -> 0.01849506715 | M28: 0.2219408058 | N28: 455 | O28: 4320000000 | P28: 30157.25 | Q28: 66.28 | R28: =P28/(N28/30.416)/(P1-P2) -> 0.01849506837 | S28: 0.2219408205
B29: 448 | C29: 4380000000 | D29: 25330.47 | E29: 56.54 | F29: =D29/(B29/30.416)/(D1-D2) -> 0.01719757981 | G29: 0.2063709577 | H29: 448 | I29: 4380000000 | J29: 26596.99 | K29: 59.37 | L29: =J29/(H29/30.416)/(J1-J2) -> 0.01719757755 | M29: 0.2063709306 | N29: 448 | O29: 4380000000 | P29: 27610.21 | Q29: 61.63 | R29: =P29/(N29/30.416)/(P1-P2) -> 0.01719757838 | S29: 0.2063709405
B30: 442 | C30: 4440000000 | D30: 23174.3 | E30: 52.43 | F30: =D30/(B30/30.416)/(D1-D2) -> 0.01594727395 | G30: 0.1913672875 | H30: 442 | I30: 4440000000 | J30: 24333.02 | K30: 55.05 | L30: =J30/(H30/30.416)/(J1-J2) -> 0.01594727723 | M30: 0.1913673268 | N30: 442 | O30: 4440000000 | P30: 25259.99 | Q30: 57.15 | R30: =P30/(N30/30.416)/(P1-P2) -> 0.01594727585 | S30: 0.1913673102
B31: 435 | C31: 4500000000 | D31: 21086.62 | E31: 48.48 | F31: =D31/(B31/30.416)/(D1-D2) -> 0.0147441525 | G31: 0.17692983 | H31: 435 | I31: 4500000000 | J31: 22140.95 | K31: 50.9 | L31: =J31/(H31/30.416)/(J1-J2) -> 0.01474415184 | M31: 0.1769298221 | N31: 435 | O31: 4500000000 | P31: 22984.42 | Q31: 52.83 | R31: =P31/(N31/30.416)/(P1-P2) -> 0.0147441552 | S31: 0.1769298624
B32: 428 | C32: 4560000000 | D32: 19120.71 | E32: 44.67 | F32: =D32/(B32/30.416)/(D1-D2) -> 0.01358821298 | G32: 0.1630585557 | H32: 428 | I32: 4560000000 | J32: 20076.74 | K32: 46.91 | L32: =J32/(H32/30.416)/(J1-J2) -> 0.01358820925 | M32: 0.163058511 | N32: 428 | O32: 4560000000 | P32: 20841.57 | Q32: 48.7 | R32: =P32/(N32/30.416)/(P1-P2) -> 0.01358821043 | S32: 0.1630585252
B33: 420 | C33: 4620000000 | D33: 17232.28 | E33: 41.03 | F33: =D33/(B33/30.416)/(D1-D2) -> 0.01247945306 | G33: 0.1497534367 | H33: 420 | I33: 4620000000 | J33: 18093.89 | K33: 43.08 | L33: =J33/(H33/30.416)/(J1-J2) -> 0.0124794503 | M33: 0.1497534036 | N33: 420 | O33: 4620000000 | P33: 18783.18 | Q33: 44.72 | R33: =P33/(N33/30.416)/(P1-P2) -> 0.0124794496 | S33: 0.1497533953
B34: 413 | C34: 4680000000 | D34: 15503.62 | E34: 37.54 | F34: =D34/(B34/30.416)/(D1-D2) -> 0.01141787181 | G34: 0.1370144618 | H34: 413 | I34: 4680000000 | J34: 16278.8 | K34: 39.42 | L34: =J34/(H34/30.416)/(J1-J2) -> 0.01141787111 | M34: 0.1370144534 | N34: 413 | O34: 4680000000 | P34: 16898.94 | Q34: 40.92 | R34: =P34/(N34/30.416)/(P1-P2) -> 0.0114178679 | S34: 0.1370144147
B35: 404 | C35: 4740000000 | D35: 13818.39 | E35: 34.21 | F35: =D35/(B35/30.416)/(D1-D2) -> 0.01040346907 | G35: 0.1248416288 | H35: 404 | I35: 4740000000 | J35: 14509.31 | K35: 35.92 | L35: =J35/(H35/30.416)/(J1-J2) -> 0.01040346942 | M35: 0.1248416331 | N35: 404 | O35: 4740000000 | P35: 15062.05 | Q35: 37.28 | R35: =P35/(N35/30.416)/(P1-P2) -> 0.01040347245 | S35: 0.1248416694
B36: 396 | C36: 4800000000 | D36: 12285.5 | E36: 31.02 | F36: =D36/(B36/30.416)/(D1-D2) -> 0.009436256768 | G36: 0.1132350812 | H36: 396 | I36: 4800000000 | J36: 12899.77 | K36: 32.58 | L36: =J36/(H36/30.416)/(J1-J2) -> 0.00943625311 | M36: 0.1132350373 | N36: 396 | O36: 4800000000 | P36: 13391.19 | Q36: 33.82 | R36: =P36/(N36/30.416)/(P1-P2) -> 0.009436253244 | S36: 0.1132350389
B37: 386 | C37: 4860000000 | D37: 10807.67 | E37: 28 | F37: =D37/(B37/30.416)/(D1-D2) -> 0.008516219967 | G37: 0.1021946396 | H37: 386 | I37: 4860000000 | J37: 11348.05 | K37: 29.4 | L37: =J37/(H37/30.416)/(J1-J2) -> 0.00851621734 | M37: 0.1021946081 | N37: 386 | O37: 4860000000 | P37: 11780.36 | Q37: 30.52 | R37: =P37/(N37/30.416)/(P1-P2) -> 0.00851621975 | S37: 0.102194637
B38: 377 | C38: 4920000000 | D38: 9473.79 | E38: 25.13 | F38: =D38/(B38/30.416)/(D1-D2) -> 0.007643363306 | G38: 0.09172035967 | H38: 377 | I38: 4920000000 | J38: 9947.48 | K38: 26.39 | L38: =J38/(H38/30.416)/(J1-J2) -> 0.00764336369 | M38: 0.09172036428 | N38: 377 | O38: 4920000000 | P38: 10326.44 | Q38: 27.39 | R38: =P38/(N38/30.416)/(P1-P2) -> 0.007643369894 | S38: 0.09172043872
B39: 366 | C39: 4980000000 | D39: 8203.83 | E39: 22.41 | F39: =D39/(B39/30.416)/(D1-D2) -> 0.006817696538 | G39: 0.08181235845 | H39: 366 | I39: 4980000000 | J39: 8614.02 | K39: 23.53 | L39: =J39/(H39/30.416)/(J1-J2) -> 0.006817695351 | M39: 0.08181234421 | N39: 366 | O39: 4980000000 | P39: 8942.17 | Q39: 24.43 | R39: =P39/(N39/30.416)/(P1-P2) -> 0.006817692954 | S39: 0.08181231545
B40: 355 | C40: 5040000000 | D40: 7048.65 | E40: 19.85 | F40: =D40/(B40/30.416)/(D1-D2) -> 0.006039203899 | G40: 0.07247044678 | H40: 355 | I40: 5040000000 | J40: 7401.08 | K40: 20.85 | L40: =J40/(H40/30.416)/(J1-J2) -> 0.006039201859 | M40: 0.0724704223 | N40: 355 | O40: 5040000000 | P40: 7683.03 | Q40: 21.64 | R40: =P40/(N40/30.416)/(P1-P2) -> 0.006039205078 | S40: 0.07247046093
B41: 344 | C41: 5100000000 | D41: 6003.14 | E41: 17.45 | F41: =D41/(B41/30.416)/(D1-D2) -> 0.005307892623 | G41: 0.06369471148 | H41: 344 | I41: 5100000000 | J41: 6303.3 | K41: 18.32 | L41: =J41/(H41/30.416)/(J1-J2) -> 0.00530789515 | M41: 0.06369474179 | N41: 344 | O41: 5100000000 | P41: 6543.42 | Q41: 19.02 | R41: =P41/(N41/30.416)/(P1-P2) -> 0.005307890514 | S41: 0.06369468617
B42: 331 | C42: 5160000000 | D42: 5031.78 | E42: 15.2 | F42: =D42/(B42/30.416)/(D1-D2) -> 0.004623764969 | G42: 0.05548517963 | H42: 331 | I42: 5160000000 | J42: 5283.37 | K42: 15.96 | L42: =J42/(H42/30.416)/(J1-J2) -> 0.004623765844 | M42: 0.05548519013 | N42: 331 | O42: 5160000000 | P42: 5484.64 | Q42: 16.57 | R42: =P42/(N42/30.416)/(P1-P2) -> 0.004623764801 | S42: 0.05548517761
B43: 317 | C43: 5220000000 | D43: 4155.12 | E43: 13.1 | F43: =D43/(B43/30.416)/(D1-D2) -> 0.003986817979 | G43: 0.04784181574 | H43: 317 | I43: 5220000000 | J43: 4362.87 | K43: 13.77 | L43: =J43/(H43/30.416)/(J1-J2) -> 0.003986812496 | M43: 0.04784174995 | N43: 317 | O43: 5220000000 | P43: 4529.08 | Q43: 14.29 | R43: =P43/(N43/30.416)/(P1-P2) -> 0.003986817274 | S43: 0.04784180729
B44: 302 | C44: 5280000000 | D44: 3372.92 | E44: 11.17 | F44: =D44/(B44/30.416)/(D1-D2) -> 0.003397044196 | G44: 0.04076453035 | H44: 302 | I44: 5280000000 | J44: 3541.57 | K44: 11.73 | L44: =J44/(H44/30.416)/(J1-J2) -> 0.003397048033 | M44: 0.04076457639 | N44: 302 | O44: 5280000000 | P44: 3676.49 | Q44: 12.17 | R44: =P44/(N44/30.416)/(P1-P2) -> 0.003397050849 | S44: 0.04076461019
B45: 285 | C45: 5340000000 | D45: 2674.65 | E45: 9.39 | F45: =D45/(B45/30.416)/(D1-D2) -> 0.002854461558 | G45: 0.03425353869 | H45: 285 | I45: 5340000000 | J45: 2808.38 | K45: 9.86 | L45: =J45/(H45/30.416)/(J1-J2) -> 0.002854459017 | M45: 0.0342535082 | N45: 285 | O45: 5340000000 | P45: 2915.37 | Q45: 10.23 | R45: =P45/(N45/30.416)/(P1-P2) -> 0.002854463027 | S45: 0.03425355632
B46: 267 | C46: 5400000000 | D46: 2070.85 | E46: 7.75 | F46: =D46/(B46/30.416)/(D1-D2) -> 0.002359062682 | G46: 0.02830875218 | H46: 267 | I46: 5400000000 | J46: 2174.39 | K46: 8.14 | L46: =J46/(H46/30.416)/(J1-J2) -> 0.002359059969 | M46: 0.02830871963 | N46: 267 | O46: 5400000000 | P46: 2257.22 | Q46: 8.46 | R46: =P46/(N46/30.416)/(P1-P2) -> 0.002359055888 | S46: 0.02830867066
B47: 246 | C47: 5460000000 | D47: 1717.17 | E47: 6.98 | F47: =D47/(B47/30.416)/(D1-D2) -> 0.002123148078 | G47: 0.02547777694 | H47: 246 | I47: 5460000000 | J47: 1803.03 | K47: 7.33 | L47: =J47/(H47/30.416)/(J1-J2) -> 0.002123149844 | M47: 0.02547779813 | N47: 246 | O47: 5460000000 | P47: 1871.72 | Q47: 7.61 | R47: =P47/(N47/30.416)/(P1-P2) -> 0.002123153409 | S47: 0.02547784091
B48: 222 | C48: 5520000000 | D48: 1377.46 | E48: 6.21 | F48: =D48/(B48/30.416)/(D1-D2) -> 0.001887244295 | G48: 0.02264693155 | H48: 222 | I48: 5520000000 | J48: 1446.33 | K48: 6.52 | L48: =J48/(H48/30.416)/(J1-J2) -> 0.001887240381 | M48: 0.02264688457 | N48: 222 | O48: 5520000000 | P48: 1501.43 | Q48: 6.77 | R48: =P48/(N48/30.416)/(P1-P2) -> 0.001887242536 | S48: 0.02264691043
B49: 195 | C49: 5580000000 | D49: 1058.69 | E49: 5.43 | F49: =D49/(B49/30.416)/(D1-D2) -> 0.001651339233 | G49: 0.01981607079 | H49: 195 | I49: 5580000000 | J49: 1111.62 | K49: 5.7 | L49: =J49/(H49/30.416)/(J1-J2) -> 0.001651332548 | M49: 0.01981599058 | N49: 195 | O49: 5580000000 | P49: 1153.97 | Q49: 5.92 | R49: =P49/(N49/30.416)/(P1-P2) -> 0.001651336228 | S49: 0.01981603473
B50: 162 | C50: 5640000000 | D50: 753.88 | E50: 4.65 | F50: =D50/(B50/30.416)/(D1-D2) -> 0.001415432968 | G50: 0.01698519561 | H50: 162 | I50: 5640000000 | J50: 791.57 | K50: 4.89 | L50: =J50/(H50/30.416)/(J1-J2) -> 0.001415425815 | M50: 0.01698510978 | N50: 162 | O50: 5640000000 | P50: 821.73 | Q50: 5.07 | R50: =P50/(N50/30.416)/(P1-P2) -> 0.001415434346 | S50: 0.01698521215
B51: 123 | C51: 5700000000 | D51: 476.99 | E51: 3.88 | F51: =D51/(B51/30.416)/(D1-D2) -> 0.001179522589 | G51: 0.01415427106 | H51: 123 | I51: 5700000000 | J51: 500.84 | K51: 4.07 | L51: =J51/(H51/30.416)/(J1-J2) -> 0.001179523766 | M51: 0.01415428519 | N51: 123 | O51: 5700000000 | P51: 519.92 | Q51: 4.23 | R51: =P51/(N51/30.416)/(P1-P2) -> 0.00117952463 | S51: 0.01415429557
B52: 71 | C52: 5760000000 | D52: 220.27 | E52: 3.1 | F52: =D52/(B52/30.416)/(D1-D2) -> 0.0009436242704 | G52: 0.01132349125 | H52: 71 | I52: 5760000000 | J52: 231.28 | K52: 3.26 | L52: =J52/(H52/30.416)/(J1-J2) -> 0.0009436099906 | M52: 0.01132331989 | N52: 71 | O52: 5760000000 | P52: 240.09 | Q52: 3.38 | R52: =P52/(N52/30.416)/(P1-P2) -> 0.0009436073705 | S52: 0.01132328845
B53: 1 | C53: 5820000000 | D53: 2.32 | E53: 2.33 | F53: =D53/(B53/30.416)/(D1-D2) -> 0.0007056512 | G53: 0.0084678144 | H53: 1 | I53: 5820000000 | J53: 2.44 | K53: 2.44 | L53: =J53/(H53/30.416)/(J1-J2) -> 0.0007068099048 | M53: 0.008481718857 | N53: 1 | O53: 5820000000 | P53: 2.53 | Q53: 2.54 | R53: =P53/(N53/30.416)/(P1-P2) -> 0.000705986055 | S53: 0.008471832661
B54: 1 | C54: 5880000000 | D54: 1.55 | E54: 1.55 | F54: =D54/(B54/30.416)/(D1-D2) -> 0.000471448 | G54: 0.005657376 | H54: 1 | I54: 5880000000 | J54: 1.62 | K54: 1.63 | L54: =J54/(H54/30.416)/(J1-J2) -> 0.0004692754286 | M54: 0.005631305143 | N54: 1 | O54: 5880000000 | P54: 1.69 | Q54: 1.69 | R54: =P54/(N54/30.416)/(P1-P2) -> 0.0004715875229 | S54: 0.005659050275
B55: 1 | C55: 5940000000 | D55: 0.77 | E55: 0.78 | F55: =D55/(B55/30.416)/(D1-D2) -> 0.0002342032 | G55: 0.0028104384 | H55: 1 | I55: 5940000000 | J55: 0.81 | K55: 0.81 | L55: =J55/(H55/30.416)/(J1-J2) -> 0.0002346377143 | M55: 0.002815652571 | N55: 1 | O55: 5940000000 | P55: 0.84 | Q55: 0.85 | R55: =P55/(N55/30.416)/(P1-P2) -> 0.0002343985321 | S55: 0.002812782385
B56: 0 | C56: 6000000000 | D56: 0 | E56: 0 | F56: 0 | G56: 0 | H56: 0 | I56: 6000000000 | J56: 0 | K56: 0 | L56: 0 | M56: 0 | N56: 0 | O56: 6000000000 | P56: 0 | Q56: 0 | R56: 0 | S56: 0

Sheet 1 mln
B1: БАЛАНС | D1: 100001 | F1: ДОХОДНОСТЬ | H1: БАЛАНС | J1: 105001 | L1: ДОХОДНОСТЬ | N1: БАЛАНС | P1: 109001 | R1: ДОХОДНОСТЬ
B2: БАЛАНС ACCOUNT HOLD | D2: 1 | H2: БАЛАНС ACCOUNT HOLD | J2: 1 | N2: БАЛАНС ACCOUNT HOLD | P2: 1
B3: СТРУКТУРНЫЙ БАЛАНС | D3: 1000000 | H3: СТРУКТУРНЫЙ БАЛАНС | J3: 1000000 | N3: СТРУКТУРНЫЙ БАЛАНС | P3: 1000000
B4: ДНИ | C4: ГЕНЕЗИС | D4: ПАР | E4: /ДЕНЬ | F4: % В МЕСЯЦ | G4: % В ГОД | H4: ДНИ | I4: ГЕНЕЗИС | J4: ПАР | K4: /ДЕНЬ | L4: % В МЕСЯЦ | M4: % В ГОД | N4: ДНИ | O4: ГЕНЕЗИС | P4: ПАР | Q4: /ДЕНЬ | R4: % В МЕСЯЦ | S4: % В ГОД
B5: 505 | C5: 2940000000 | D5: =ABS(Paracalc($D$1,$D$2,$D$3,C5,B5,1)) -> 112173.32 | E5: =ABS(Paracalc($D$1,$D$2,$D$3,C5,B5+1,1))-D5 -> 222.13 | F5: =D5/(B5/30.416)/(D1-D2) -> 0.06756165745 | G5: =F5*12 -> 0.8107398894 | H5: 505 | I5: 2940000000 | J5: =ABS(Paracalc($J$1,$J$2,$J$3,I5,H5,1)) -> 117781.99 | K5: =ABS(Paracalc($J$1,$J$2,$J$3,I5,H5+1,1))-J5 -> 233.23 | L5: =J5/(H5/30.416)/(J1-J2) -> 0.06756165974 | M5: =L5*12 -> 0.8107399169 | N5: 505 | O5: 2940000000 | P5: =ABS(Paracalc($P$1,$P$2,$P$3,O5,N5,1)) -> 122268.92 | Q5: =ABS(Paracalc($P$1,$P$2,$P$3,O5,N5+1,1))-P5 -> 242.12 | R5: =P5/(N5/30.416)/(P1-P2) -> 0.06756165811 | S5: =R5*12 -> 0.8107398973
B6: 502 | C6: =C5+60000000 -> 3000000000 | D6: =ABS(Paracalc($D$1,$D$2,$D$3,C6,B6,1)) -> 107177 | E6: =ABS(Paracalc($D$1,$D$2,$D$3,C6,B6+1,1))-D6 -> 213.5 | F6: =D6/(B6/30.416)/(D1-D2) -> 0.06493816 | G6: =F6*12 -> 0.77925792 | H6: 502 | I6: =I5+60000000 -> 3000000000 | J6: =ABS(Paracalc($J$1,$J$2,$J$3,I6,H6,1)) -> 112535.85 | K6: =ABS(Paracalc($J$1,$J$2,$J$3,I6,H6+1,1))-J6 -> 224.17 | L6: =J6/(H6/30.416)/(J1-J2) -> 0.06493816 | M6: =L6*12 -> 0.77925792 | N6: 502 | O6: =O5+60000000 -> 3000000000 | P6: =ABS(Paracalc($P$1,$P$2,$P$3,O6,N6,1)) -> 116822.93 | Q6: =ABS(Paracalc($P$1,$P$2,$P$3,O6,N6+1,1))-P6 -> 232.71 | R6: =P6/(N6/30.416)/(P1-P2) -> 0.06493816 | S6: =R6*12 -> 0.77925792
B7: 499 | C7: 3060000000 | D7: 102317.65 | E7: 205.05 | F7: =D7/(B7/30.416)/(D1-D2) -> 0.06236660606 | G7: 0.7483992727 | H7: 499 | I7: 3060000000 | J7: 107433.53 | K7: 215.3 | L7: =J7/(H7/30.416)/(J1-J2) -> 0.06236660461 | M7: 0.7483992553 | N7: 499 | O7: 3060000000 | P7: 111526.24 | Q7: 223.5 | R7: =P7/(N7/30.416)/(P1-P2) -> 0.0623666069 | S7: 0.7483992828
B8: 496 | C8: 3120000000 | D8: 97593.75 | E8: 196.76 | F8: =D8/(B8/30.416)/(D1-D2) -> 0.05984700605 | G8: 0.7181640726 | H8: 496 | I8: 3120000000 | J8: 102473.44 | K8: 206.6 | L8: =J8/(H8/30.416)/(J1-J2) -> 0.05984700751 | M8: 0.7181640901 | N8: 496 | O8: 3120000000 | P8: 106377.19 | Q8: 214.47 | R8: =P8/(N8/30.416)/(P1-P2) -> 0.05984700745 | S8: 0.7181640895
B9: 493 | C9: 3180000000 | D9: 93003.75 | E9: 188.65 | F9: =D9/(B9/30.416)/(D1-D2) -> 0.05737935213 | G9: 0.6885522256 | H9: 493 | I9: 3180000000 | J9: 97653.94 | K9: 198.08 | L9: =J9/(H9/30.416)/(J1-J2) -> 0.0573793536 | M9: 0.6885522432 | N9: 493 | O9: 3180000000 | P9: 101374.09 | Q9: 205.63 | R9: =P9/(N9/30.416)/(P1-P2) -> 0.05737935354 | S9: 0.6885522425
B10: 489 | C10: 3240000000 | D10: 88365.42 | E10: 180.71 | F10: =D10/(B10/30.416)/(D1-D2) -> 0.05496365265 | G10: 0.6595638318 | H10: 489 | I10: 3240000000 | J10: 92783.7 | K10: 189.74 | L10: =J10/(H10/30.416)/(J1-J2) -> 0.05496365798 | M10: 0.6595638958 | N10: 489 | O10: 3240000000 | P10: 96318.31 | Q10: 196.97 | R10: =P10/(N10/30.416)/(P1-P2) -> 0.05496365391 | S10: 0.6595638469
B11: 486 | C11: 3300000000 | D11: 84046.41 | E11: 172.93 | F11: =D11/(B11/30.416)/(D1-D2) -> 0.0525999096 | G11: 0.6311989152 | H11: 486 | I11: 3300000000 | J11: 88248.73 | K11: 181.58 | L11: =J11/(H11/30.416)/(J1-J2) -> 0.0525999093 | M11: 0.6311989116 | N11: 486 | O11: 3300000000 | P11: 91610.58 | Q11: 188.5 | R11: =P11/(N11/30.416)/(P1-P2) -> 0.05259990564 | S11: 0.6311988677
B12: 483 | C12: 3360000000 | D12: 79856.51 | E12: 165.33 | F12: =D12/(B12/30.416)/(D1-D2) -> 0.05028810783 | G12: 0.603457294 | H12: 483 | I12: 3360000000 | J12: 83849.34 | K12: 173.6 | L12: =J12/(H12/30.416)/(J1-J2) -> 0.05028811053 | M12: 0.6034573263 | N12: 483 | O12: 3360000000 | P12: 87043.6 | Q12: 180.21 | R12: =P12/(N12/30.416)/(P1-P2) -> 0.0502881102 | S12: 0.6034573224
B13: 479 | C13: 3420000000 | D13: 75636.3 | E13: 157.9 | F13: =D13/(B13/30.416)/(D1-D2) -> 0.04802826098 | G13: 0.5763391317 | H13: 479 | I13: 3420000000 | J13: 79418.11 | K13: 165.8 | L13: =J13/(H13/30.416)/(J1-J2) -> 0.04802825795 | M13: 0.5763390954 | N13: 479 | O13: 3420000000 | P13: 82443.57 | Q13: 172.11 | R13: =P13/(N13/30.416)/(P1-P2) -> 0.04802826272 | S13: 0.5763391527
B14: 475 | C14: 3480000000 | D14: 71531.68 | E14: 175.62 | F14: =D14/(B14/30.416)/(D1-D2) -> 0.04580437008 | G14: 0.549652441 | H14: 475 | I14: 3480000000 | J14: 75108.26 | K14: 184.41 | L14: =J14/(H14/30.416)/(J1-J2) -> 0.04580436764 | M14: 0.5496524117 | N14: 475 | O14: 3480000000 | P14: 77969.53 | Q14: 191.43 | R14: =P14/(N14/30.416)/(P1-P2) -> 0.04580436938 | S14: 0.5496524325
B15: 472 | C15: 3540000000 | D15: 67759.09 | E15: 143.56 | F15: =D15/(B15/30.416)/(D1-D2) -> 0.04366441698 | G15: 0.5239730038 | H15: 472 | I15: 3540000000 | J15: 71147.04 | K15: 150.74 | L15: =J15/(H15/30.416)/(J1-J2) -> 0.04366441422 | M15: 0.5239729706 | N15: 472 | O15: 3540000000 | P15: 73857.41 | Q15: 156.47 | R15: =P15/(N15/30.416)/(P1-P2) -> 0.0436644181 | S15: 0.5239730172
B16: 468 | C16: 3600000000 | D16: 63947.52 | E16: 136.64 | F16: =D16/(B16/30.416)/(D1-D2) -> 0.0415604224 | G16: 0.4987250688 | H16: 468 | I16: 3600000000 | J16: 67144.89 | K16: 143.47 | L16: =J16/(H16/30.416)/(J1-J2) -> 0.04156041869 | M16: 0.4987250242 | N16: 468 | O16: 3600000000 | P16: 69702.79 | Q16: 148.94 | R16: =P16/(N16/30.416)/(P1-P2) -> 0.04156041835 | S16: 0.4987250201
B17: 464 | C17: 3660000000 | D17: 60270.53 | E17: 129.9 | F17: =D17/(B17/30.416)/(D1-D2) -> 0.03950837156 | G17: 0.4741004587 | H17: 464 | I17: 3660000000 | J17: 63284.06 | K17: 136.39 | L17: =J17/(H17/30.416)/(J1-J2) -> 0.03950837375 | M17: 0.474100485 | N17: 464 | O17: 3660000000 | P17: 65694.88 | Q17: 141.58 | R17: =P17/(N17/30.416)/(P1-P2) -> 0.03950837295 | S17: 0.4741004753
B18: 460 | C18: 3720000000 | D18: 56726.09 | E18: 123.32 | F18: =D18/(B18/30.416)/(D1-D2) -> 0.03750827725 | G18: 0.450099327 | H18: 460 | I18: 3720000000 | J18: 59562.4 | K18: 129.48 | L18: =J18/(H18/30.416)/(J1-J2) -> 0.03750828071 | M18: 0.4500993685 | N18: 460 | O18: 3720000000 | P18: 61831.44 | Q18: 134.42 | R18: =P18/(N18/30.416)/(P1-P2) -> 0.0375082784 | S18: 0.4500993408
B19: 456 | C19: 3780000000 | D19: 53312.14 | E19: 116.91 | F19: =D19/(B19/30.416)/(D1-D2) -> 0.03556013268 | G19: 0.4267215922 | H19: 456 | I19: 3780000000 | J19: 55977.75 | K19: 122.76 | L19: =J19/(H19/30.416)/(J1-J2) -> 0.03556013459 | M19: 0.426721615 | N19: 456 | O19: 3780000000 | P19: 58110.23 | Q19: 127.44 | R19: =P19/(N19/30.416)/(P1-P2) -> 0.03556013109 | S19: 0.4267215731
B20: 452 | C20: 3840000000 | D20: 50026.63 | E20: 110.68 | F20: =D20/(B20/30.416)/(D1-D2) -> 0.03366393757 | G20: 0.4039672508 | H20: 452 | I20: 3840000000 | J20: 52527.96 | K20: 116.22 | L20: =J20/(H20/30.416)/(J1-J2) -> 0.03366393661 | M20: 0.4039672393 | N20: 452 | O20: 3840000000 | P20: 54529.03 | Q20: 120.64 | R20: =P20/(N20/30.416)/(P1-P2) -> 0.03366393961 | S20: 0.4039672753
B21: 448 | C21: 3900000000 | D21: 46867.51 | E21: 104.62 | F21: =D21/(B21/30.416)/(D1-D2) -> 0.03181969161 | G21: 0.3818362993 | H21: 448 | I21: 3900000000 | J21: 49210.89 | K21: 109.85 | L21: =J21/(H21/30.416)/(J1-J2) -> 0.03181969452 | M21: 0.3818363342 | N21: 448 | O21: 3900000000 | P21: 51085.59 | Q21: 114.03 | R21: =P21/(N21/30.416)/(P1-P2) -> 0.03181969416 | S21: 0.38183633
B22: 443 | C22: 3960000000 | D22: 43734.02 | E22: 98.72 | F22: =D22/(B22/30.416)/(D1-D2) -> 0.03002740299 | G22: 0.3603288358 | H22: 443 | I22: 3960000000 | J22: 45920.72 | K22: 103.66 | L22: =J22/(H22/30.416)/(J1-J2) -> 0.03002740233 | M22: 0.360328828 | N22: 443 | O22: 3960000000 | P22: 47670.08 | Q22: 107.61 | R22: =P22/(N22/30.416)/(P1-P2) -> 0.03002740185 | S22: 0.3603288222
B23: 439 | C23: 4020000000 | D23: 40827.26 | E23: 93 | F23: =D23/(B23/30.416)/(D1-D2) -> 0.02828706014 | G23: 0.3394447217 | H23: 439 | I23: 4020000000 | J23: 42868.62 | K23: 97.65 | L23: =J23/(H23/30.416)/(J1-J2) -> 0.02828705816 | M23: 0.3394446979 | N23: 439 | O23: 4020000000 | P23: 44501.71 | Q23: 101.37 | R23: =P23/(N23/30.416)/(P1-P2) -> 0.02828705798 | S23: 0.3394446957
B24: 434 | C24: 4080000000 | D24: 37953.12 | E24: 87.45 | F24: =D24/(B24/30.416)/(D1-D2) -> 0.02659866585 | G24: 0.3191839902 | H24: 434 | I24: 4080000000 | J24: 39850.78 | K24: 91.82 | L24: =J24/(H24/30.416)/(J1-J2) -> 0.02659866852 | M24: 0.3191840222 | N24: 434 | O24: 4080000000 | P24: 41368.9 | Q24: 95.32 | R24: =P24/(N24/30.416)/(P1-P2) -> 0.02659866534 | S24: 0.319183984
B25: 429 | C25: 4140000000 | D25: 35207.77 | E25: 82.07 | F25: =D25/(B25/30.416)/(D1-D2) -> 0.02496222686 | G25: 0.2995467223 | H25: 429 | I25: 4140000000 | J25: 36968.16 | K25: 86.17 | L25: =J25/(H25/30.416)/(J1-J2) -> 0.02496222787 | M25: 0.2995467345 | N25: 429 | O25: 4140000000 | P25: 38376.47 | Q25: 89.45 | R25: =P25/(N25/30.416)/(P1-P2) -> 0.02496222732 | S25: 0.2995467278
B26: 424 | C26: 4200000000 | D26: 32588.64 | E26: 76.86 | F26: =D26/(B26/30.416)/(D1-D2) -> 0.0233777376 | G26: 0.2805328512 | H26: 424 | I26: 4200000000 | J26: 34218.07 | K26: 80.7 | L26: =J26/(H26/30.416)/(J1-J2) -> 0.02337773623 | M26: 0.2805328348 | N26: 424 | O26: 4200000000 | P26: 35521.61 | Q26: 83.78 | R26: =P26/(N26/30.416)/(P1-P2) -> 0.0233777326 | S26: 0.2805327912
B27: 418 | C27: 4260000000 | D27: 30020.51 | E27: 72.65 | F27: =D27/(B27/30.416)/(D1-D2) -> 0.02184458929 | G27: 0.2621350714 | H27: 418 | I27: 4260000000 | J27: 31521.53 | K27: 76.29 | L27: =J27/(H27/30.416)/(J1-J2) -> 0.02184458547 | M27: 0.2621350257 | N27: 418 | O27: 4260000000 | P27: 32722.35 | Q27: 79.2 | R27: =P27/(N27/30.416)/(P1-P2) -> 0.02184458535 | S27: 0.2621350242
B28: 413 | C28: 4320000000 | D28: 27651.83 | E28: 66.96 | F28: =D28/(B28/30.416)/(D1-D2) -> 0.02036460197 | G28: 0.2443752236 | H28: 413 | I28: 4320000000 | J28: 29034.42 | K28: 70.3 | L28: =J28/(H28/30.416)/(J1-J2) -> 0.02036460092 | M28: 0.244375211 | N28: 413 | O28: 4320000000 | P28: 30140.5 | Q28: 72.98 | R28: =P28/(N28/30.416)/(P1-P2) -> 0.02036460555 | S28: 0.2443752666
B29: 407 | C29: 4380000000 | D29: 25338.43 | E29: 62.26 | F29: =D29/(B29/30.416)/(D1-D2) -> 0.01893596282 | G29: 0.2272315539 | H29: 407 | I29: 4380000000 | J29: 26605.35 | K29: 65.37 | L29: =J29/(H29/30.416)/(J1-J2) -> 0.01893596176 | M29: 0.2272315411 | N29: 407 | O29: 4380000000 | P29: 27618.89 | Q29: 67.86 | R29: =P29/(N29/30.416)/(P1-P2) -> 0.01893596371 | S29: 0.2272315646
B30: 401 | C30: 4440000000 | D30: 23149.89 | E30: 57.73 | F30: =D30/(B30/30.416)/(D1-D2) -> 0.01755927816 | G30: 0.2107113379 | H30: 401 | I30: 4440000000 | J30: 24307.38 | K30: 60.62 | L30: =J30/(H30/30.416)/(J1-J2) -> 0.01755927491 | M30: 0.2107112989 | N30: 401 | O30: 4440000000 | P30: 25233.38 | Q30: 62.92 | R30: =P30/(N30/30.416)/(P1-P2) -> 0.01755927809 | S30: 0.2107113371
B31: 395 | C31: 4500000000 | D31: 21083.12 | E31: 53.38 | F31: =D31/(B31/30.416)/(D1-D2) -> 0.01623453615 | G31: 0.1948144338 | H31: 395 | I31: 4500000000 | J31: 22137.28 | K31: 56.04 | L31: =J31/(H31/30.416)/(J1-J2) -> 0.01623453908 | M31: 0.194814469 | N31: 395 | O31: 4500000000 | P31: 22980.6 | Q31: 58.18 | R31: =P31/(N31/30.416)/(P1-P2) -> 0.01623453558 | S31: 0.194814427
B32: 389 | C32: 4560000000 | D32: 19135.06 | E32: 49.19 | F32: =D32/(B32/30.416)/(D1-D2) -> 0.01496174769 | G32: 0.1795409722 | H32: 389 | I32: 4560000000 | J32: 20091.81 | K32: 51.65 | L32: =J32/(H32/30.416)/(J1-J2) -> 0.01496174545 | M32: 0.1795409454 | N32: 389 | O32: 4560000000 | P32: 20857.22 | Q32: 53.61 | R32: =P32/(N32/30.416)/(P1-P2) -> 0.01496175099 | S32: 0.1795410118
B33: 382 | C33: 4620000000 | D33: 17257.46 | E33: 45.17 | F33: =D33/(B33/30.416)/(D1-D2) -> 0.0137409137 | G33: 0.1648909644 | H33: 382 | I33: 4620000000 | J33: 18120.33 | K33: 47.43 | L33: =J33/(H33/30.416)/(J1-J2) -> 0.01374091143 | M33: 0.1648909371 | N33: 382 | O33: 4620000000 | P33: 18810.63 | Q33: 49.24 | R33: =P33/(N33/30.416)/(P1-P2) -> 0.01374091268 | S33: 0.1648909521
B34: 375 | C34: 4680000000 | D34: 15500.1 | E34: 41.33 | F34: =D34/(B34/30.416)/(D1-D2) -> 0.01257202778 | G34: 0.1508643333 | H34: 375 | I34: 4680000000 | J34: 16275.1 | K34: 43.4 | L34: =J34/(H34/30.416)/(J1-J2) -> 0.01257202391 | M34: 0.150864287 | N34: 375 | O34: 4680000000 | P34: 16895.1 | Q34: 45.06 | R34: =P34/(N34/30.416)/(P1-P2) -> 0.01257202108 | S34: 0.1508642529
B35: 367 | C35: 4740000000 | D35: 13821.73 | E35: 37.66 | F35: =D35/(B35/30.416)/(D1-D2) -> 0.01145508827 | G35: 0.1374610593 | H35: 367 | I35: 4740000000 | J35: 14512.82 | K35: 39.54 | L35: =J35/(H35/30.416)/(J1-J2) -> 0.01145509104 | M35: 0.1374610924 | N35: 367 | O35: 4740000000 | P35: 15065.68 | Q35: 41.06 | R35: =P35/(N35/30.416)/(P1-P2) -> 0.01145508394 | S35: 0.1374610073
B36: 359 | C36: 4800000000 | D36: 12263.44 | E36: 34.16 | F36: =D36/(B36/30.416)/(D1-D2) -> 0.0103901056 | G36: 0.1246812672 | H36: 359 | I36: 4800000000 | J36: 12876.61 | K36: 35.87 | L36: =J36/(H36/30.416)/(J1-J2) -> 0.01039010399 | M36: 0.1246812478 | N36: 359 | O36: 4800000000 | P36: 13367.14 | Q36: 37.24 | R36: =P36/(N36/30.416)/(P1-P2) -> 0.01039009814 | S36: 0.1246811777
B37: 351 | C37: 4860000000 | D37: 10821.11 | E37: 30.83 | F37: =D37/(B37/30.416)/(D1-D2) -> 0.009377062158 | G37: 0.1125247459 | H37: 351 | I37: 4860000000 | J37: 11362.17 | K37: 32.37 | L37: =J37/(H37/30.416)/(J1-J2) -> 0.009377065872 | M37: 0.1125247905 | N37: 351 | O37: 4860000000 | P37: 11795.02 | Q37: 33.6 | R37: =P37/(N37/30.416)/(P1-P2) -> 0.009377070188 | S37: 0.1125248423
B38: 342 | C38: 4920000000 | D38: 9463 | E38: 27.67 | F38: =D38/(B38/30.416)/(D1-D2) -> 0.00841598269 | G38: 0.1009917923 | H38: 342 | I38: 4920000000 | J38: 9936.15 | K38: 29.05 | L38: =J38/(H38/30.416)/(J1-J2) -> 0.00841598269 | M38: 0.1009917923 | N38: 342 | O38: 4920000000 | P38: 10314.67 | Q38: 30.16 | R38: =P38/(N38/30.416)/(P1-P2) -> 0.00841598269 | S38: 0.1009917923
B39: 333 | C39: 4980000000 | D39: 8218.63 | E39: 24.69 | F39: =D39/(B39/30.416)/(D1-D2) -> 0.007506842345 | G39: 0.09008210814 | H39: 333 | I39: 4980000000 | J39: 8629.57 | K39: 25.91 | L39: =J39/(H39/30.416)/(J1-J2) -> 0.007506849739 | M39: 0.09008219687 | N39: 333 | O39: 4980000000 | P39: 8958.31 | Q39: 26.9 | R39: =P39/(N39/30.416)/(P1-P2) -> 0.00750684511 | S39: 0.09008214132
B40: 323 | C40: 5040000000 | D40: 7061.55 | E40: 21.86 | F40: =D40/(B40/30.416)/(D1-D2) -> 0.006649662687 | G40: 0.07979595225 | H40: 323 | I40: 5040000000 | J40: 7414.63 | K40: 22.95 | L40: =J40/(H40/30.416)/(J1-J2) -> 0.006649664929 | M40: 0.07979597915 | N40: 323 | O40: 5040000000 | P40: 7697.09 | Q40: 23.83 | R40: =P40/(N40/30.416)/(P1-P2) -> 0.006649663119 | S40: 0.07979595743
B41: 312 | C41: 5100000000 | D41: 5995.08 | E41: 19.21 | F41: =D41/(B41/30.416)/(D1-D2) -> 0.0058444344 | G41: 0.0701332128 | H41: 312 | I41: 5100000000 | J41: 6294.83 | K41: 20.17 | L41: =J41/(H41/30.416)/(J1-J2) -> 0.005844430686 | M41: 0.07013316823 | N41: 312 | O41: 5100000000 | P41: 6534.63 | Q41: 20.95 | R41: =P41/(N41/30.416)/(P1-P2) -> 0.00584442796 | S41: 0.07013313553
B42: 300 | C42: 5160000000 | D42: 5021.52 | E42: 16.73 | F42: =D42/(B42/30.416)/(D1-D2) -> 0.005091151744 | G42: 0.06109382093 | H42: 300 | I42: 5160000000 | J42: 5272.59 | K42: 17.58 | L42: =J42/(H42/30.416)/(J1-J2) -> 0.00509114595 | M42: 0.06109375141 | N42: 300 | O42: 5160000000 | P42: 5473.45 | Q42: 18.25 | R42: =P42/(N42/30.416)/(P1-P2) -> 0.005091145419 | S42: 0.06109374503
B43: 288 | C43: 5220000000 | D43: 4156.58 | E43: 14.44 | F43: =D43/(B43/30.416)/(D1-D2) -> 0.004389810322 | G43: 0.05267772387 | H43: 288 | I43: 5220000000 | J43: 4364.41 | K43: 15.16 | L43: =J43/(H43/30.416)/(J1-J2) -> 0.004389811328 | M43: 0.05267773594 | N43: 288 | O43: 5220000000 | P43: 4530.68 | Q43: 15.73 | R43: =P43/(N43/30.416)/(P1-P2) -> 0.00438981788 | S43: 0.05267781456
B44: 274 | C44: 5280000000 | D44: 3369.54 | E44: 12.3 | F44: =D44/(B44/30.416)/(D1-D2) -> 0.003740435352 | G44: 0.04488522422 | H44: 274 | I44: 5280000000 | J44: 3538.01 | K44: 12.92 | L44: =J44/(H44/30.416)/(J1-J2) -> 0.003740427951 | M44: 0.04488513542 | N44: 274 | O44: 5280000000 | P44: 3672.8 | Q44: 13.4 | R44: =P44/(N44/30.416)/(P1-P2) -> 0.003740436778 | S44: 0.04488524133
B45: 258 | C45: 5340000000 | D45: 2658.14 | E45: 18.21 | F45: =D45/(B45/30.416)/(D1-D2) -> 0.003133720397 | G45: 0.03760464476 | H45: 258 | I45: 5340000000 | J45: 2791.04 | K45: 19.12 | L45: =J45/(H45/30.416)/(J1-J2) -> 0.003133712537 | M45: 0.03760455045 | N45: 258 | O45: 5340000000 | P45: 2897.37 | Q45: 19.85 | R45: =P45/(N45/30.416)/(P1-P2) -> 0.003133717585 | S45: 0.03760461102
B46: 242 | C46: 5400000000 | D46: 2066.68 | E46: 8.54 | F46: =D46/(B46/30.416)/(D1-D2) -> 0.0025975264 | G46: 0.0311703168 | H46: 242 | I46: 5400000000 | J46: 2170.01 | K46: 8.97 | L46: =J46/(H46/30.416)/(J1-J2) -> 0.002597521612 | M46: 0.03117025934 | N46: 242 | O46: 5400000000 | P46: 2252.68 | Q46: 9.3 | R46: =P46/(N46/30.416)/(P1-P2) -> 0.002597525016 | S46: 0.0311703002
B47: 223 | C47: 5460000000 | D47: 1713.97 | E47: 7.69 | F47: =D47/(B47/30.416)/(D1-D2) -> 0.002337762848 | G47: 0.02805315418 | H47: 223 | I47: 5460000000 | J47: 1799.67 | K47: 8.07 | L47: =J47/(H47/30.416)/(J1-J2) -> 0.002337764797 | M47: 0.02805317756 | N47: 223 | O47: 5460000000 | P47: 1868.23 | Q47: 8.38 | R47: =P47/(N47/30.416)/(P1-P2) -> 0.002337766227 | S47: 0.02805319472
B48: 202 | C48: 5520000000 | D48: 1380.06 | E48: 6.83 | F48: =D48/(B48/30.416)/(D1-D2) -> 0.002078015097 | G48: 0.02493618116 | H48: 202 | I48: 5520000000 | J48: 1449.06 | K48: 7.18 | L48: =J48/(H48/30.416)/(J1-J2) -> 0.002078010795 | M48: 0.02493612954 | N48: 202 | O48: 5520000000 | P48: 1504.26 | Q48: 7.45 | R48: =P48/(N48/30.416)/(P1-P2) -> 0.002078007637 | S48: 0.02493609165
B49: 177 | C49: 5580000000 | D49: 1058.1 | E49: 5.98 | F49: =D49/(B49/30.416)/(D1-D2) -> 0.001818258169 | G49: 0.02181909803 | H49: 177 | I49: 5580000000 | J49: 1111.01 | K49: 6.27 | L49: =J49/(H49/30.416)/(J1-J2) -> 0.001818266352 | M49: 0.02181919623 | N49: 177 | O49: 5580000000 | P49: 1153.33 | Q49: 6.52 | R49: =P49/(N49/30.416)/(P1-P2) -> 0.001818259746 | S49: 0.02181911695
B50: 148 | C50: 5640000000 | D50: 758.35 | E50: 5.12 | F50: =D50/(B50/30.416)/(D1-D2) -> 0.00155851173 | G50: 0.01870214076 | H50: 148 | I50: 5640000000 | J50: 796.26 | K50: 5.38 | L50: =J50/(H50/30.416)/(J1-J2) -> 0.00155849705 | M50: 0.0187019646 | N50: 148 | O50: 5640000000 | P50: 826.6 | Q50: 5.58 | R50: =P50/(N50/30.416)/(P1-P2) -> 0.001558508902 | S50: 0.01870210682
B51: 111 | C51: 5700000000 | D51: 473.97 | E51: 4.27 | F51: =D51/(B51/30.416)/(D1-D2) -> 0.0012987632 | G51: 0.0155851584 | H51: 111 | I51: 5700000000 | J51: 497.66 | K51: 4.49 | L51: =J51/(H51/30.416)/(J1-J2) -> 0.001298741018 | M51: 0.01558489221 | N51: 111 | O51: 5700000000 | P51: 516.62 | Q51: 4.66 | R51: =P51/(N51/30.416)/(P1-P2) -> 0.001298744848 | S51: 0.01558493818
B52: 65 | C52: 5760000000 | D52: 222.04 | E52: 3.41 | F52: =D52/(B52/30.416)/(D1-D2) -> 0.00103901056 | G52: 0.01246812672 | H52: 65 | I52: 5760000000 | J52: 233.14 | K52: 3.58 | L52: =J52/(H52/30.416)/(J1-J2) -> 0.001039001647 | M52: 0.01246801976 | N52: 65 | O52: 5760000000 | P52: 242.02 | Q52: 3.72 | R52: =P52/(N52/30.416)/(P1-P2) -> 0.001038995105 | S52: 0.01246794126
B53: 1 | C53: 5820000000 | D53: 2.56 | E53: 2.56 | F53: =D53/(B53/30.416)/(D1-D2) -> 0.0007786496 | G53: 0.0093437952 | H53: 1 | I53: 5820000000 | J53: 2.69 | K53: 2.69 | L53: =J53/(H53/30.416)/(J1-J2) -> 0.0007792289524 | M53: 0.009350747429 | N53: 1 | O53: 5820000000 | P53: 2.79 | Q53: 2.79 | R53: =P53/(N53/30.416)/(P1-P2) -> 0.0007785379817 | S53: 0.00934245578
B54: 1 | C54: 5880000000 | D54: 1.7 | E54: 1.71 | F54: =D54/(B54/30.416)/(D1-D2) -> 0.000517072 | G54: 0.006204864 | H54: 1 | I54: 5880000000 | J54: 1.79 | K54: 1.79 | L54: =J54/(H54/30.416)/(J1-J2) -> 0.000518520381 | M54: 0.006222244571 | N54: 1 | O54: 5880000000 | P54: 1.86 | Q54: 1.86 | R54: =P54/(N54/30.416)/(P1-P2) -> 0.0005190253211 | S54: 0.006228303853
B55: 1 | C55: 5940000000 | D55: 0.85 | E55: 0.85 | F55: =D55/(B55/30.416)/(D1-D2) -> 0.000258536 | G55: 0.003102432 | H55: 1 | I55: 5940000000 | J55: 0.89 | K55: 0.9 | L55: =J55/(H55/30.416)/(J1-J2) -> 0.0002578118095 | M55: 0.003093741714 | N55: 1 | O55: 5940000000 | P55: 0.93 | Q55: 0.93 | R55: =P55/(N55/30.416)/(P1-P2) -> 0.0002595126606 | S55: 0.003114151927
B56: 0 | C56: 6000000000 | D56: 0 | E56: 0 | F56: 0 | G56: 0 | H56: 0 | I56: 6000000000 | J56: 0 | K56: 0 | L56: 0 | M56: 0 | N56: 0 | O56: 6000000000 | P56: 0 | Q56: 0 | R56: 0 | S56: 0

Sheet 10 mln
B1: БАЛАНС | D1: 100001 | F1: ДОХОДНОСТЬ | H1: БАЛАНС | J1: 105001 | L1: ДОХОДНОСТЬ | N1: БАЛАНС | P1: 109001 | R1: ДОХОДНОСТЬ
B2: БАЛАНС ACCOUNT HOLD | D2: 1 | H2: БАЛАНС ACCOUNT HOLD | J2: 1 | N2: БАЛАНС ACCOUNT HOLD | P2: 1
B3: СТРУКТУРНЫЙ БАЛАНС | D3: 10000000 | H3: СТРУКТУРНЫЙ БАЛАНС | J3: 10000000 | N3: СТРУКТУРНЫЙ БАЛАНС | P3: 10000000
B4: ДНИ | C4: ГЕНЕЗИС | D4: ПАР | E4: /ДЕНЬ | F4: % В МЕСЯЦ | G4: % В ГОД | H4: ДНИ | I4: ГЕНЕЗИС | J4: ПАР | K4: /ДЕНЬ | L4: % В МЕСЯЦ | M4: % В ГОД | N4: ДНИ | O4: ГЕНЕЗИС | P4: ПАР | Q4: /ДЕНЬ | R4: % В МЕСЯЦ | S4: % В ГОД
B5: 458 | C5: 2940000000 | D5: =ABS(Paracalc($D$1,$D$2,$D$3,C5,B5,1)) -> 112073.55 | E5: =ABS(Paracalc($D$1,$D$2,$D$3,C5,B5+1,1))-D5 -> 244.7 | F5: =D5/(B5/30.416)/(D1-D2) -> 0.0744285829 | G5: =F5*12 -> 0.8931429948 | H5: 458 | I5: 2940000000 | J5: =ABS(Paracalc($J$1,$J$2,$J$3,I5,H5,1)) -> 117677.23 | K5: =ABS(Paracalc($J$1,$J$2,$J$3,I5,H5+1,1))-J5 -> 256.93 | L5: =J5/(H5/30.416)/(J1-J2) -> 0.07442858448 | M5: =L5*12 -> 0.8931430138 | N5: 458 | O5: 2940000000 | P5: =ABS(Paracalc($P$1,$P$2,$P$3,O5,N5,1)) -> 122160.17 | Q5: =ABS(Paracalc($P$1,$P$2,$P$3,O5,N5+1,1))-P5 -> 266.72 | R5: =P5/(N5/30.416)/(P1-P2) -> 0.0744285832 | S5: =R5*12 -> 0.8931429985
B6: 456 | C6: =C5+60000000 -> 3000000000 | D6: 107251.19 | E6: 235.2 | F6: =D6/(B6/30.416)/(D1-D2) -> 0.07153842533 | G6: =F6*12 -> 0.858461104 | H6: 456 | I6: =I5+60000000 -> 3000000000 | J6: 112613.75 | K6: 246.96 | L6: =J6/(H6/30.416)/(J1-J2) -> 0.07153842565 | M6: =L6*12 -> 0.8584611078 | N6: 456 | O6: =O5+60000000 -> 3000000000 | P6: 116903.8 | Q6: 256.37 | R6: =P6/(N6/30.416)/(P1-P2) -> 0.0715384271 | S6: =R6*12 -> 0.8584611253
B7: 453 | C7: 3060000000 | D7: 102326.39 | E7: 225.89 | F7: =D7/(B7/30.416)/(D1-D2) -> 0.06870550725 | G7: 0.824466087 | H7: 453 | I7: 3060000000 | J7: 107442.71 | K7: 237.18 | L7: =J7/(H7/30.416)/(J1-J2) -> 0.06870550757 | M7: 0.8244660908 | N7: 453 | O7: 3060000000 | P7: 111535.76 | Q7: 246.22 | R7: =P7/(N7/30.416)/(P1-P2) -> 0.0687055041 | S7: 0.8244660493
B8: 450 | C8: 3120000000 | D8: 97542.14 | E8: 216.76 | F8: =D8/(B8/30.416)/(D1-D2) -> 0.06592981623 | G8: 0.7911577947 | H8: 450 | I8: 3120000000 | J8: 102419.25 | K8: 227.59 | L8: =J8/(H8/30.416)/(J1-J2) -> 0.06592981816 | M8: 0.7911578179 | N8: 450 | O8: 3120000000 | P8: 106320.93 | Q8: 236.27 | R8: =P8/(N8/30.416)/(P1-P2) -> 0.06592981462 | S8: 0.7911577754
B9: 447 | C9: 3180000000 | D9: 92896.75 | E9: 207.82 | F9: =D9/(B9/30.416)/(D1-D2) -> 0.06321135454 | G9: 0.7585362545 | H9: 447 | I9: 3180000000 | J9: 97541.59 | K9: 218.21 | L9: =J9/(H9/30.416)/(J1-J2) -> 0.06321135616 | M9: 0.7585362739 | N9: 447 | O9: 3180000000 | P9: 101257.46 | Q9: 226.53 | R9: =P9/(N9/30.416)/(P1-P2) -> 0.0632113561 | S9: 0.7585362732
B10: 444 | C10: 3240000000 | D10: 88388.53 | E10: 199.07 | F10: =D10/(B10/30.416)/(D1-D2) -> 0.06055012452 | G10: 0.7266014942 | H10: 444 | I10: 3240000000 | J10: 92807.96 | K10: 209.03 | L10: =J10/(H10/30.416)/(J1-J2) -> 0.0605501268 | M10: 0.7266015216 | N10: 444 | O10: 3240000000 | P10: 96343.5 | Q10: 216.99 | R10: =P10/(N10/30.416)/(P1-P2) -> 0.06055012596 | S10: 0.7266015115
B11: 441 | C11: 3300000000 | D11: 84015.79 | E11: 190.51 | F11: =D11/(B11/30.416)/(D1-D2) -> 0.05794612854 | G11: 0.6953535425 | H11: 441 | I11: 3300000000 | J11: 88216.58 | K11: 200.03 | L11: =J11/(H11/30.416)/(J1-J2) -> 0.05794612887 | M11: 0.6953535464 | N11: 441 | O11: 3300000000 | P11: 91577.21 | Q11: 207.66 | R11: =P11/(N11/30.416)/(P1-P2) -> 0.05794612784 | S11: 0.6953535341
B12: 438 | C12: 3360000000 | D12: 79776.82 | E12: 182.14 | F12: =D12/(B12/30.416)/(D1-D2) -> 0.05539935519 | G12: 0.6647922622 | H12: 438 | I12: 3360000000 | J12: 83765.67 | K12: 191.24 | L12: =J12/(H12/30.416)/(J1-J2) -> 0.05539936114 | M12: 0.6647923337 | N12: 438 | O12: 3360000000 | P12: 86956.74 | Q12: 198.53 | R12: =P12/(N12/30.416)/(P1-P2) -> 0.05539935914 | S12: 0.6647923096
B13: 435 | C13: 3420000000 | D13: 75669.95 | E13: 173.95 | F13: =D13/(B13/30.416)/(D1-D2) -> 0.05290982067 | G13: 0.6349178481 | H13: 435 | I13: 3420000000 | J13: 79453.45 | K13: 182.65 | L13: =J13/(H13/30.416)/(J1-J2) -> 0.05290982234 | M13: 0.634917868 | N13: 435 | O13: 3420000000 | P13: 82480.25 | Q13: 189.61 | R13: =P13/(N13/30.416)/(P1-P2) -> 0.05290982356 | S13: 0.6349178827
B14: 432 | C14: 3480000000 | D14: 71693.47 | E14: 165.96 | F14: =D14/(B14/30.416)/(D1-D2) -> 0.05047751351 | G14: 0.6057301621 | H14: 432 | I14: 3480000000 | J14: 75278.14 | K14: 174.26 | L14: =J14/(H14/30.416)/(J1-J2) -> 0.05047751116 | M14: 0.6057301339 | N14: 432 | O14: 3480000000 | P14: 78145.88 | Q14: 180.9 | R14: =P14/(N14/30.416)/(P1-P2) -> 0.05047751202 | S14: 0.6057301443
B15: 428 | C15: 3540000000 | D15: 67687.54 | E15: 158.15 | F15: =D15/(B15/30.416)/(D1-D2) -> 0.04810243497 | G15: 0.5772292196 | H15: 428 | I15: 3540000000 | J15: 71071.92 | K15: 166.06 | L15: =J15/(H15/30.416)/(J1-J2) -> 0.048102437 | M15: 0.577229244 | N15: 428 | O15: 3540000000 | P15: 73779.42 | Q15: 172.39 | R15: =P15/(N15/30.416)/(P1-P2) -> 0.04810243588 | S15: 0.5772292306
B16: 425 | C16: 3600000000 | D16: 63974.4 | E16: 150.52 | F16: =D16/(B16/30.416)/(D1-D2) -> 0.04578459648 | G16: 0.5494151578 | H16: 425 | I16: 3600000000 | J16: 67173.12 | K16: 158.05 | L16: =J16/(H16/30.416)/(J1-J2) -> 0.04578459648 | M16: 0.5494151578 | N16: 425 | O16: 3600000000 | P16: 69732.09 | Q16: 164.08 | R16: =P16/(N16/30.416)/(P1-P2) -> 0.04578459254 | S16: 0.5494151105
B17: 421 | C17: 3660000000 | D17: 60243.28 | E17: 143.09 | F17: =D17/(B17/30.416)/(D1-D2) -> 0.0435239811 | G17: 0.5222877732 | H17: 421 | I17: 3660000000 | J17: 63255.44 | K17: 150.25 | L17: =J17/(H17/30.416)/(J1-J2) -> 0.04352397835 | M17: 0.5222877402 | N17: 421 | O17: 3660000000 | P17: 65665.17 | Q17: 155.98 | R17: =P17/(N17/30.416)/(P1-P2) -> 0.04352397766 | S17: 0.5222877319
B18: 418 | C18: 3720000000 | D18: 56785.93 | E18: 135.85 | F18: =D18/(B18/30.416)/(D1-D2) -> 0.04132059442 | G18: 0.4958471331 | H18: 418 | I18: 3720000000 | J18: 59625.23 | K18: 142.64 | L18: =J18/(H18/30.416)/(J1-J2) -> 0.04132059685 | M18: 0.4958471622 | N18: 418 | O18: 3720000000 | P18: 61896.66 | Q18: 148.08 | R18: =P18/(N18/30.416)/(P1-P2) -> 0.04132059195 | S18: 0.4958471034
B19: 414 | C19: 3780000000 | D19: 53321.34 | E19: 128.8 | F19: =D19/(B19/30.416)/(D1-D2) -> 0.03917444148 | G19: 0.4700932978 | H19: 414 | I19: 3780000000 | J19: 55987.41 | K19: 135.23 | L19: =J19/(H19/30.416)/(J1-J2) -> 0.03917444358 | M19: 0.470093323 | N19: 414 | O19: 3780000000 | P19: 58120.26 | Q19: 140.39 | R19: =P19/(N19/30.416)/(P1-P2) -> 0.03917444108 | S19: 0.470093293
B20: 410 | C20: 3840000000 | D20: 49990.34 | E20: 121.93 | F20: =D20/(B20/30.416)/(D1-D2) -> 0.03708551662 | G20: 0.4450261994 | H20: 410 | I20: 3840000000 | J20: 52489.86 | K20: 128.03 | L20: =J20/(H20/30.416)/(J1-J2) -> 0.03708551874 | M20: 0.4450262249 | N20: 410 | O20: 3840000000 | P20: 54489.48 | Q20: 132.9 | R20: =P20/(N20/30.416)/(P1-P2) -> 0.03708552302 | S20: 0.4450262762
B21: 406 | C21: 3900000000 | D21: 46790.68 | E21: 115.25 | F21: =D21/(B21/30.416)/(D1-D2) -> 0.03505382569 | G21: 0.4206459082 | H21: 406 | I21: 3900000000 | J21: 49130.22 | K21: 121.01 | L21: =J21/(H21/30.416)/(J1-J2) -> 0.03505382997 | M21: 0.4206459596 | N21: 406 | O21: 3900000000 | P21: 51001.84 | Q21: 125.63 | R21: =P21/(N21/30.416)/(P1-P2) -> 0.03505382486 | S21: 0.4206458983
B22: 402 | C22: 3960000000 | D22: 43720.1 | E22: 108.76 | F22: =D22/(B22/30.416)/(D1-D2) -> 0.0330793672 | G22: 0.3969524064 | H22: 402 | I22: 3960000000 | J22: 45906.11 | K22: 114.19 | L22: =J22/(H22/30.416)/(J1-J2) -> 0.03307937081 | M22: 0.3969524497 | N22: 402 | O22: 3960000000 | P22: 47654.91 | Q22: 118.54 | R22: =P22/(N22/30.416)/(P1-P2) -> 0.0330793679 | S22: 0.3969524148
B23: 398 | C23: 4020000000 | D23: 40776.34 | E23: 102.45 | F23: =D23/(B23/30.416)/(D1-D2) -> 0.03116213963 | G23: 0.3739456756 | H23: 398 | I23: 4020000000 | J23: 42815.15 | K23: 107.58 | L23: =J23/(H23/30.416)/(J1-J2) -> 0.03116213454 | M23: 0.3739456145 | N23: 398 | O23: 4020000000 | P23: 44446.21 | Q23: 111.67 | R23: =P23/(N23/30.416)/(P1-P2) -> 0.03116213921 | S23: 0.3739456706
B24: 394 | C24: 4080000000 | D24: 37957.14 | E24: 96.33 | F24: =D24/(B24/30.416)/(D1-D2) -> 0.02930214138 | G24: 0.3516256965 | H24: 394 | I24: 4080000000 | J24: 39854.99 | K24: 101.16 | L24: =J24/(H24/30.416)/(J1-J2) -> 0.02930213623 | M24: 0.3516256348 | N24: 394 | O24: 4080000000 | P24: 41373.28 | Q24: 105.01 | R24: =P24/(N24/30.416)/(P1-P2) -> 0.02930213954 | S24: 0.3516256744
B25: 389 | C25: 4140000000 | D25: 35169.83 | E25: 90.41 | F25: =D25/(B25/30.416)/(D1-D2) -> 0.02749937145 | G25: 0.3299924574 | H25: 389 | I25: 4140000000 | J25: 36928.32 | K25: 94.93 | L25: =J25/(H25/30.416)/(J1-J2) -> 0.02749937033 | M25: 0.329992444 | N25: 389 | O25: 4140000000 | P25: 38335.11 | Q25: 98.55 | R25: =P25/(N25/30.416)/(P1-P2) -> 0.02749936808 | S25: 0.3299924169
B26: 385 | C26: 4200000000 | D26: 32598.71 | E26: 84.68 | F26: =D26/(B26/30.416)/(D1-D2) -> 0.02575382762 | G26: 0.3090459314 | H26: 385 | I26: 4200000000 | J26: 34228.65 | K26: 88.91 | L26: =J26/(H26/30.416)/(J1-J2) -> 0.02575383101 | M26: 0.3090459721 | N26: 385 | O26: 4200000000 | P26: 35532.6 | Q26: 92.29 | R26: =P26/(N26/30.416)/(P1-P2) -> 0.02575383204 | S26: 0.3090459845
B27: 380 | C27: 4260000000 | D27: =ABS(Paracalc($D$1,$D$2,$D$3,C27,B27,1)) -> 30066.08 | E27: =ABS(Paracalc($D$1,$D$2,$D$3,C27,B27+1,1))-D27 -> 79.12 | F27: =D27/(B27/30.416)/(D1-D2) -> 0.0240655234 | G27: 0.2887862808 | H27: 380 | I27: 4260000000 | J27: 31569.39 | K27: 83.07 | L27: =J27/(H27/30.416)/(J1-J2) -> 0.02406552798 | M27: 0.2887863357 | N27: 380 | O27: 4260000000 | P27: 32772.03 | Q27: 86.24 | R27: =P27/(N27/30.416)/(P1-P2) -> 0.02406552546 | S27: 0.2887863055
B28: 375 | C28: 4320000000 | D28: 27659.52 | E28: 73.75 | F28: =D28/(B28/30.416)/(D1-D2) -> 0.02243445228 | G28: 0.2692134273 | H28: 375 | I28: 4320000000 | J28: 29042.49 | K28: 77.45 | L28: =J28/(H28/30.416)/(J1-J2) -> 0.02243444764 | M28: 0.2692133717 | N28: 375 | O28: 4320000000 | P28: 30148.87 | Q28: 80.4 | R28: =P28/(N28/30.416)/(P1-P2) -> 0.02243444722 | S28: 0.2692133666
B29: 370 | C29: 4380000000 | D29: 25376.19 | E29: 68.59 | F29: =D29/(B29/30.416)/(D1-D2) -> 0.02086059987 | G29: 0.2503271984 | H29: 370 | I29: 4380000000 | J29: 26645 | K29: 72.02 | L29: =J29/(H29/30.416)/(J1-J2) -> 0.02086060026 | M29: 0.2503272031 | N29: 370 | O29: 4380000000 | P29: 27660.05 | Q29: 74.76 | R29: =P29/(N29/30.416)/(P1-P2) -> 0.02086060205 | S29: 0.2503272246
B30: 364 | C30: 4440000000 | D30: 23149.7 | E30: 63.59 | F30: =D30/(B30/30.416)/(D1-D2) -> 0.01934399108 | G30: 0.2321278929 | H30: 364 | I30: 4440000000 | J30: 24307.18 | K30: 66.78 | L30: =J30/(H30/30.416)/(J1-J2) -> 0.0193439871 | M30: 0.2321278452 | N30: 364 | O30: 4440000000 | P30: 25233.17 | Q30: 69.32 | R30: =P30/(N30/30.416)/(P1-P2) -> 0.01934398878 | S30: 0.2321278653
B31: 359 | C31: 4500000000 | D31: 21109.19 | E31: 58.8 | F31: =D31/(B31/30.416)/(D1-D2) -> 0.01788459953 | G31: 0.2146151943 | H31: 359 | I31: 4500000000 | J31: 22164.65 | K31: 61.74 | L31: =J31/(H31/30.416)/(J1-J2) -> 0.01788459993 | M31: 0.2146151992 | N31: 359 | O31: 4500000000 | P31: 23009.02 | Q31: 64.09 | R31: =P31/(N31/30.416)/(P1-P2) -> 0.01788460178 | S31: 0.2146152214
B32: 353 | C32: 4560000000 | D32: 19129.09 | E32: 54.19 | F32: =D32/(B32/30.416)/(D1-D2) -> 0.01648244763 | G32: 0.1977893716 | H32: 353 | I32: 4560000000 | J32: 20085.55 | K32: 56.9 | L32: =J32/(H32/30.416)/(J1-J2) -> 0.01648245215 | M32: 0.1977894258 | N32: 353 | O32: 4560000000 | P32: 20850.71 | Q32: 59.07 | R32: =P32/(N32/30.416)/(P1-P2) -> 0.01648244913 | S32: 0.1977893896
B33: 347 | C33: 4620000000 | D33: 17269.6 | E33: 49.77 | F33: =D33/(B33/30.416)/(D1-D2) -> 0.01513752604 | G33: 0.1816503125 | H33: 347 | I33: 4620000000 | J33: 18133.08 | K33: 52.26 | L33: =J33/(H33/30.416)/(J1-J2) -> 0.01513752604 | M33: 0.1816503125 | N33: 347 | O33: 4620000000 | P33: 18823.87 | Q33: 54.24 | R33: =P33/(N33/30.416)/(P1-P2) -> 0.01513753087 | S33: 0.1816503704
B34: 340 | C34: 4680000000 | D34: 15481.8 | E34: 45.53 | F34: =D34/(B34/30.416)/(D1-D2) -> 0.01384983614 | G34: 0.1661980337 | H34: 340 | I34: 4680000000 | J34: 16255.89 | K34: 47.81 | L34: =J34/(H34/30.416)/(J1-J2) -> 0.01384983614 | M34: 0.1661980337 | N34: 340 | O34: 4680000000 | P34: 16875.16 | Q34: 49.64 | R34: =P34/(N34/30.416)/(P1-P2) -> 0.0138498345 | S34: 0.166198014
B35: 337 | C35: 4740000000 | D35: 13981.88 | E35: 41.49 | F35: =D35/(B35/30.416)/(D1-D2) -> 0.01261937276 | G35: 0.1514324731 | H35: 337 | I35: 4740000000 | J35: 14680.98 | K35: 43.56 | L35: =J35/(H35/30.416)/(J1-J2) -> 0.01261937792 | M35: 0.151432535 | N35: 337 | O35: 4740000000 | P35: 15240.25 | Q35: 45.23 | R35: =P35/(N35/30.416)/(P1-P2) -> 0.01261937342 | S35: 0.1514324811
B36: 326 | C36: 4800000000 | D36: 12268.03 | E36: 37.63 | F36: =D36/(B36/30.416)/(D1-D2) -> 0.01144614725 | G36: 0.137353767 | H36: 326 | I36: 4800000000 | J36: 12881.43 | K36: 39.51 | L36: =J36/(H36/30.416)/(J1-J2) -> 0.01144614592 | M36: 0.1373537511 | N36: 326 | O36: 4800000000 | P36: 13372.15 | Q36: 41.02 | R36: =P36/(N36/30.416)/(P1-P2) -> 0.01144614494 | S36: 0.1373537393
B37: 319 | C37: 4860000000 | D37: 10834.15 | E37: 33.97 | F37: =D37/(B37/30.416)/(D1-D2) -> 0.01033014127 | G37: 0.1239616952 | H37: 319 | I37: 4860000000 | J37: =ABS(Paracalc($J$1,$J$2,$J$3,I37,H37,1)) -> 11375.86 | K37: =ABS(Paracalc($J$1,$J$2,$J$3,I37,H37+1,1))-J37 -> 35.66 | L37: =J37/(H37/30.416)/(J1-J2) -> 0.01033014354 | M37: 0.1239617224 | N37: 319 | O37: 4860000000 | P37: =ABS(Paracalc($P$1,$P$2,$P$3,O37,N37,1)) -> 11809.23 | Q37: =ABS(Paracalc($P$1,$P$2,$P$3,O37,N37+1,1))-P37 -> 37.02 | R37: =P37/(N37/30.416)/(P1-P2) -> 0.01033014695 | S37: 0.1239617634
B38: 311 | C38: 4920000000 | D38: 9479.87 | E38: 30.48 | F38: =D38/(B38/30.416)/(D1-D2) -> 0.009271373824 | G38: 0.1112564859 | H38: 311 | I38: 4920000000 | J38: 9953.87 | K38: 32 | L38: =J38/(H38/30.416)/(J1-J2) -> 0.009271379878 | M38: 0.1112565585 | N38: 311 | O38: 4920000000 | P38: 10333.06 | Q38: 33.23 | R38: =P38/(N38/30.416)/(P1-P2) -> 0.009271375349 | S38: 0.1112565042
B39: 302 | C39: 4980000000 | D39: 8211.11 | E39: 27.19 | F39: =D39/(B39/30.416)/(D1-D2) -> 0.008269838469 | G39: 0.09923806163 | H39: 302 | I39: 4980000000 | J39: 8621.66 | K39: 28.55 | L39: =J39/(H39/30.416)/(J1-J2) -> 0.008269833193 | M39: 0.09923799832 | N39: 302 | O39: 4980000000 | P39: 8950.11 | Q39: 29.64 | R39: =P39/(N39/30.416)/(P1-P2) -> 0.008269838561 | S39: 0.09923806274
B40: 293 | C40: 5040000000 | D40: 7056.75 | E40: 24.08 | F40: =D40/(B40/30.416)/(D1-D2) -> 0.007325532696 | G40: 0.08790639235 | H40: 293 | I40: 5040000000 | J40: 7409.59 | K40: 25.28 | L40: =J40/(H40/30.416)/(J1-J2) -> 0.007325535168 | M40: 0.08790642201 | N40: 293 | O40: 5040000000 | P40: 7691.86 | Q40: 26.25 | R40: =P40/(N40/30.416)/(P1-P2) -> 0.007325535077 | S40: 0.08790642093
B41: 283 | C41: 5100000000 | D41: 5990.54 | E41: 21.17 | F41: =D41/(B41/30.416)/(D1-D2) -> 0.006438454581 | G41: 0.07726145497 | H41: 283 | I41: 5100000000 | J41: 6290.07 | K41: 22.22 | L41: =J41/(H41/30.416)/(J1-J2) -> 0.006438457652 | M41: 0.07726149182 | N41: 283 | O41: 5100000000 | P41: 6529.69 | Q41: 23.07 | R41: =P41/(N41/30.416)/(P1-P2) -> 0.006438455961 | S41: 0.07726147154
B42: 273 | C42: 5160000000 | D42: 5034.03 | E42: 18.44 | F42: =D42/(B42/30.416)/(D1-D2) -> 0.005608610127 | G42: 0.06730332153 | H42: 273 | I42: 5160000000 | J42: 5285.73 | K42: 19.36 | L42: =J42/(H42/30.416)/(J1-J2) -> 0.005608608536 | M42: 0.06730330243 | N42: 273 | O42: 5160000000 | P42: 5487.09 | Q42: 20.1 | R42: =P42/(N42/30.416)/(P1-P2) -> 0.005608607368 | S42: 0.06730328841
B43: 261 | C43: 5220000000 | D43: 4149.77 | E43: 15.9 | F43: =D43/(B43/30.416)/(D1-D2) -> 0.004835992503 | G43: 0.05803191003 | H43: 261 | I43: 5220000000 | J43: 4357.26 | K43: 16.69 | L43: =J43/(H43/30.416)/(J1-J2) -> 0.004835994167 | M43: 0.05803193001 | N43: 261 | O43: 5220000000 | P43: 4523.25 | Q43: 17.33 | R43: =P43/(N43/30.416)/(P1-P2) -> 0.004835993251 | S43: 0.05803191901
B44: 249 | C44: 5280000000 | D44: 3373.33 | E44: 13.54 | F44: =D44/(B44/30.416)/(D1-D2) -> 0.004120610654 | G44: 0.04944732785 | H44: 249 | I44: 5280000000 | J44: 3541.99 | K44: 14.23 | L44: =J44/(H44/30.416)/(J1-J2) -> 0.004120603092 | M44: 0.0494472371 | N44: 249 | O44: 5280000000 | P44: 3676.93 | Q44: 14.76 | R44: =P44/(N44/30.416)/(P1-P2) -> 0.00412061099 | S44: 0.04944733188
B45: 235 | C45: 5340000000 | D45: 2675.16 | E45: 11.38 | F45: =D45/(B45/30.416)/(D1-D2) -> 0.003462453896 | G45: 0.04154944675 | H45: 235 | I45: 5340000000 | J45: 2808.92 | K45: 11.95 | L45: =J45/(H45/30.416)/(J1-J2) -> 0.003462456361 | M45: 0.04154947634 | N45: 235 | O45: 5340000000 | P45: 2915.92 | Q45: 12.41 | R45: =P45/(N45/30.416)/(P1-P2) -> 0.003462448671 | S45: 0.04154938406
B46: 220 | C46: 5400000000 | D46: 2069.76 | E46: 9.4 | F46: =D46/(B46/30.416)/(D1-D2) -> 0.00286153728 | G46: 0.03433844736 | H46: 220 | I46: 5400000000 | J46: 2173.24 | K46: 9.88 | L46: =J46/(H46/30.416)/(J1-J2) -> 0.002861526746 | M46: 0.03433832096 | N46: 220 | O46: 5400000000 | P46: 2256.03 | Q46: 10.26 | R46: =P46/(N46/30.416)/(P1-P2) -> 0.002861526626 | S46: 0.03433831951
B47: 203 | C47: 5460000000 | D47: 1718.84 | E47: 8.46 | F47: =D47/(B47/30.416)/(D1-D2) -> 0.002575381155 | G47: 0.03090457386 | H47: 203 | I47: 5460000000 | J47: 1804.78 | K47: 8.89 | L47: =J47/(H47/30.416)/(J1-J2) -> 0.002575378301 | M47: 0.03090453961 | N47: 203 | O47: 5460000000 | P47: 1873.53 | Q47: 9.23 | R47: =P47/(N47/30.416)/(P1-P2) -> 0.002575373457 | S47: 0.03090448148
B48: 183 | C48: 5520000000 | D48: 1377.33 | E48: 7.52 | F48: =D48/(B48/30.416)/(D1-D2) -> 0.00228922783 | G48: 0.02747073395 | H48: 183 | I48: 5520000000 | J48: 1446.19 | K48: 7.91 | L48: =J48/(H48/30.416)/(J1-J2) -> 0.00228921754 | M48: 0.02747061049 | N48: 183 | O48: 5520000000 | P48: 1501.29 | Q48: 8.2 | R48: =P48/(N48/30.416)/(P1-P2) -> 0.002289228287 | S48: 0.02747073944
B49: 161 | C49: 5580000000 | D49: 1060.28 | E49: 6.58 | F49: =D49/(B49/30.416)/(D1-D2) -> 0.002003073073 | G49: 0.02403687688 | H49: 161 | I49: 5580000000 | J49: 1113.29 | K49: 6.92 | L49: =J49/(H49/30.416)/(J1-J2) -> 0.002003065876 | M49: 0.02403679052 | N49: 161 | O49: 5580000000 | P49: 1155.7 | Q49: 7.18 | R49: =P49/(N49/30.416)/(P1-P2) -> 0.002003064061 | S49: 0.02403676873
B50: 134 | C50: 5640000000 | D50: 756.4 | E50: 5.64 | F50: =D50/(B50/30.416)/(D1-D2) -> 0.001716915104 | G50: 0.02060298125 | H50: 134 | I50: 5640000000 | J50: 794.22 | K50: 5.93 | L50: =J50/(H50/30.416)/(J1-J2) -> 0.001716915104 | M50: 0.02060298125 | N50: 134 | O50: 5640000000 | P50: 824.47 | Q50: 6.16 | R50: =P50/(N50/30.416)/(P1-P2) -> 0.00171690261 | S50: 0.02060283132
B51: 101 | C51: 5700000000 | D51: 475.1 | E51: 4.7 | F51: =D51/(B51/30.416)/(D1-D2) -> 0.001430756594 | G51: 0.01716907913 | H51: 101 | I51: 5700000000 | J51: 498.85 | K51: 4.94 | L51: =J51/(H51/30.416)/(J1-J2) -> 0.001430742254 | M51: 0.01716890704 | N51: 101 | O51: 5700000000 | P51: 517.86 | Q51: 5.13 | R51: =P51/(N51/30.416)/(P1-P2) -> 0.001430759357 | S51: 0.01716911228
B52: 59 | C52: 5760000000 | D52: 222.02 | E52: 3.77 | F52: =D52/(B52/30.416)/(D1-D2) -> 0.001144569546 | G52: 0.01373483455 | H52: 59 | I52: 5760000000 | J52: 233.13 | K52: 3.95 | L52: =J52/(H52/30.416)/(J1-J2) -> 0.001144613734 | M52: 0.0137353648 | N52: 59 | O52: 5760000000 | P52: 242.01 | Q52: 4.1 | R52: =P52/(N52/30.416)/(P1-P2) -> 0.001144608328 | S52: 0.01373529994
B53: 1 | C53: 5820000000 | D53: 2.82 | E53: 2.82 | F53: =D53/(B53/30.416)/(D1-D2) -> 0.0008577312 | G53: 0.0102927744 | H53: 1 | I53: 5820000000 | J53: 2.96 | K53: 2.96 | L53: =J53/(H53/30.416)/(J1-J2) -> 0.0008574415238 | M53: 0.01028929829 | N53: 1 | O53: 5820000000 | P53: 3.07 | Q53: 3.08 | R53: =P53/(N53/30.416)/(P1-P2) -> 0.0008566708257 | S53: 0.01028004991
B54: 1 | C54: 5880000000 | D54: 1.88 | E54: 1.88 | F54: =D54/(B54/30.416)/(D1-D2) -> 0.0005718208 | G54: 0.0068618496 | H54: 1 | I54: 5880000000 | J54: 1.97 | K54: 1.98 | L54: =J54/(H54/30.416)/(J1-J2) -> 0.0005706620952 | M54: 0.006847945143 | N54: 1 | O54: 5880000000 | P54: 2.05 | Q54: 2.05 | R54: =P54/(N54/30.416)/(P1-P2) -> 0.0005720440367 | S54: 0.00686452844
B55: 1 | C55: 5940000000 | D55: 0.94 | E55: 0.94 | F55: =D55/(B55/30.416)/(D1-D2) -> 0.0002859104 | G55: 0.0034309248 | H55: 1 | I55: 5940000000 | J55: 0.98 | K55: 0.99 | L55: =J55/(H55/30.416)/(J1-J2) -> 0.0002838826667 | M55: 0.003406592 | N55: 1 | O55: 5940000000 | P55: 1.02 | Q55: 1.03 | R55: =P55/(N55/30.416)/(P1-P2) -> 0.000284626789 | S55: 0.003415521468
B56: 0 | C56: 6000000000 | D56: 0 | E56: 0 | F56: 0 | G56: 0 | H56: 0 | I56: 6000000000 | J56: 0 | K56: 0 | L56: 0 | M56: 0 | N56: 0 | O56: 6000000000 | P56: 0 | Q56: 0 | R56: 0 | S56: 0

Sheet 100 mln
B1: БАЛАНС | D1: 100001 | F1: ДОХОДНОСТЬ | H1: БАЛАНС | J1: 105001 | L1: ДОХОДНОСТЬ | N1: БАЛАНС | P1: 109001 | R1: ДОХОДНОСТЬ
B2: БАЛАНС ACCOUNT HOLD | D2: 1 | H2: БАЛАНС ACCOUNT HOLD | J2: 1 | N2: БАЛАНС ACCOUNT HOLD | P2: 1
B3: СТРУКТУРНЫЙ БАЛАНС | D3: 100000000 | H3: СТРУКТУРНЫЙ БАЛАНС | J3: 100000000 | N3: СТРУКТУРНЫЙ БАЛАНС | P3: 100000000
B4: ДНИ | C4: ГЕНЕЗИС | D4: ПАР | E4: /ДЕНЬ | F4: % В МЕСЯЦ | G4: % В ГОД | H4: ДНИ | I4: ГЕНЕЗИС | J4: ПАР | K4: /ДЕНЬ | L4: % В МЕСЯЦ | M4: % В ГОД | N4: ДНИ | O4: ГЕНЕЗИС | P4: ПАР | Q4: /ДЕНЬ | R4: % В МЕСЯЦ | S4: % В ГОД
B5: 397 | C5: 2940000000 | D5: =ABS(Paracalc($D$1,$D$2,$D$3,C5,B5,1)) -> 112181.33 | E5: =ABS(Paracalc($D$1,$D$2,$D$3,C5,B5+1,1))-D5 -> 282.58 | F5: =D5/(B5/30.416)/(D1-D2) -> 0.08594728799 | G5: =F5*12 -> 1.031367456 | H5: 397 | I5: 2940000000 | J5: =ABS(Paracalc($J$1,$J$2,$J$3,I5,H5,1)) -> 117790.4 | K5: =ABS(Paracalc($J$1,$J$2,$J$3,I5,H5+1,1))-J5 -> 296.7 | L5: =J5/(H5/30.416)/(J1-J2) -> 0.08594729055 | M5: =L5*12 -> 1.031367487 | N5: 397 | O5: 2940000000 | P5: =ABS(Paracalc($P$1,$P$2,$P$3,O5,N5,1)) -> 122277.65 | Q5: =ABS(Paracalc($P$1,$P$2,$P$3,O5,N5+1,1))-P5 -> 308.01 | R5: =P5/(N5/30.416)/(P1-P2) -> 0.0859472882 | S5: =R5*12 -> 1.031367458
B6: 395 | C6: =C5+60000000 -> 3000000000 | D6: 107282 | E6: 271.6 | F6: =D6/(B6/30.416)/(D1-D2) -> 0.082609856 | G6: =F6*12 -> 0.991318272 | H6: 395 | I6: =I5+60000000 -> 3000000000 | J6: =ABS(Paracalc($J$1,$J$2,$J$3,I6,H6,1)) -> 112646.1 | K6: 285.18 | L6: =J6/(H6/30.416)/(J1-J2) -> 0.082609856 | M6: =L6*12 -> 0.991318272 | N6: 395 | O6: =O5+60000000 -> 3000000000 | P6: 116937.38 | Q6: 296.04 | R6: =P6/(N6/30.416)/(P1-P2) -> 0.082609856 | S6: =R6*12 -> 0.991318272
B7: 392 | C7: 3060000000 | D7: 102251.09 | E7: 260.85 | F7: =D7/(B7/30.416)/(D1-D2) -> 0.07933849881 | G7: 0.9520619857 | H7: 392 | I7: 3060000000 | J7: 107363.65 | K7: 273.89 | L7: =J7/(H7/30.416)/(J1-J2) -> 0.07933850288 | M7: 0.9520620345 | N7: 392 | O7: 3060000000 | P7: 111453.69 | Q7: 284.32 | R7: =P7/(N7/30.416)/(P1-P2) -> 0.07933850016 | S7: 0.952062002
B8: 390 | C8: 3120000000 | D8: 97619.55 | E8: 250.31 | F8: =D8/(B8/30.416)/(D1-D2) -> 0.07613323674 | G8: 0.9135988409 | H8: 390 | I8: 3120000000 | J8: 102500.53 | K8: 262.82 | L8: =J8/(H8/30.416)/(J1-J2) -> 0.0761332386 | M8: 0.9135988631 | N8: 390 | O8: 3120000000 | P8: 106405.31 | Q8: 272.84 | R8: =P8/(N8/30.416)/(P1-P2) -> 0.0761332371 | S8: 0.9135988452
B9: 387 | C9: 3180000000 | D9: 92874.48 | E9: 239.99 | F9: =D9/(B9/30.416)/(D1-D2) -> 0.07299406159 | G9: 0.8759287391 | H9: 387 | I9: 3180000000 | J9: 97518.21 | K9: 251.98 | L9: =J9/(H9/30.416)/(J1-J2) -> 0.07299406608 | M9: 0.875928793 | N9: 387 | O9: 3180000000 | P9: 101233.19 | Q9: 261.58 | R9: =P9/(N9/30.416)/(P1-P2) -> 0.0729940665 | S9: 0.875928798
B10: 385 | C10: 3240000000 | D10: 88504.66 | E10: 229.88 | F10: =D10/(B10/30.416)/(D1-D2) -> 0.06992098022 | G10: 0.8390517627 | H10: 385 | I10: 3240000000 | J10: 92929.89 | K10: 241.38 | L10: =J10/(H10/30.416)/(J1-J2) -> 0.06992097797 | M10: 0.8390517356 | N10: 385 | O10: 3240000000 | P10: 96470.08 | Q10: 250.57 | R10: =P10/(N10/30.416)/(P1-P2) -> 0.06992098066 | S10: 0.8390517679
B11: 382 | C11: 3300000000 | D11: 84038.47 | E11: 219.99 | F11: =D11/(B11/30.416)/(D1-D2) -> 0.06691398177 | G11: 0.8029677812 | H11: 382 | I11: 3300000000 | J11: 88240.39 | K11: 231 | L11: =J11/(H11/30.416)/(J1-J2) -> 0.06691397911 | M11: 0.8029677494 | N11: 382 | O11: 3300000000 | P11: 91601.93 | Q11: 239.8 | R11: =P11/(N11/30.416)/(P1-P2) -> 0.06691398009 | S11: 0.802967761
B12: 379 | C12: 3360000000 | D12: 79713.94 | E12: 210.33 | F12: =D12/(B12/30.416)/(D1-D2) -> 0.06397306594 | G12: 0.7676767913 | H12: 379 | I12: 3360000000 | J12: 83699.64 | K12: 220.84 | L12: =J12/(H12/30.416)/(J1-J2) -> 0.06397306823 | M12: 0.7676768188 | N12: 379 | O12: 3360000000 | P12: 86888.2 | Q12: 229.25 | R12: =P12/(N12/30.416)/(P1-P2) -> 0.06397306991 | S12: 0.767676839
B13: 377 | C13: 3420000000 | D13: 75730.01 | E13: 200.87 | F13: =D13/(B13/30.416)/(D1-D2) -> 0.06109824892 | G13: 0.733178987 | H13: 377 | I13: 3420000000 | J13: 79516.51 | K13: 210.92 | L13: =J13/(H13/30.416)/(J1-J2) -> 0.06109824853 | M13: 0.7331789824 | N13: 377 | O13: 3420000000 | P13: 82545.71 | Q13: 218.95 | R13: =P13/(N13/30.416)/(P1-P2) -> 0.06109824825 | S13: 0.733178979
B14: 374 | C14: 3480000000 | D14: 71673.71 | E14: 191.64 | F14: =D14/(B14/30.416)/(D1-D2) -> 0.05828950704 | G14: 0.6994740845 | H14: 374 | I14: 3480000000 | J14: 75257.4 | K14: 201.22 | L14: =J14/(H14/30.416)/(J1-J2) -> 0.05828951053 | M14: 0.6994741263 | N14: 374 | O14: 3480000000 | P14: 78124.35 | Q14: 208.89 | R14: =P14/(N14/30.416)/(P1-P2) -> 0.05828951159 | S14: 0.6994741391
B15: 371 | C15: 3540000000 | D15: 67753.44 | E15: 182.62 | F15: =D15/(B15/30.416)/(D1-D2) -> 0.05554686337 | G15: 0.6665623604 | H15: 371 | I15: 3540000000 | J15: 71141.11 | K15: 191.76 | L15: =J15/(H15/30.416)/(J1-J2) -> 0.05554686181 | M15: 0.6665623417 | N15: 371 | O15: 3540000000 | P15: 73851.25 | Q15: 199.06 | R15: =P15/(N15/30.416)/(P1-P2) -> 0.05554686367 | S15: 0.6665623641
B16: 368 | C16: 3600000000 | D16: 63967.23 | E16: 173.82 | F16: =D16/(B16/30.416)/(D1-D2) -> 0.05287030619 | G16: 0.6344436742 | H16: 368 | I16: 3600000000 | J16: 67165.59 | K16: 182.51 | L16: =J16/(H16/30.416)/(J1-J2) -> 0.05287030501 | M16: 0.6344436601 | N16: 368 | O16: 3600000000 | P16: 69724.28 | Q16: 189.47 | R16: =P16/(N16/30.416)/(P1-P2) -> 0.05287030566 | S16: 0.6344436679
B17: 365 | C17: 3660000000 | D17: 60313.12 | E17: 165.24 | F17: =D17/(B17/30.416)/(D1-D2) -> 0.05025983172 | G17: 0.6031179807 | H17: 365 | I17: 3660000000 | J17: 63328.78 | K17: 173.5 | L17: =J17/(H17/30.416)/(J1-J2) -> 0.0502598349 | M17: 0.6031180188 | N17: 365 | O17: 3660000000 | P17: 65741.3 | Q17: 180.12 | R17: =P17/(N17/30.416)/(P1-P2) -> 0.05025983111 | S17: 0.6031179733
B18: 362 | C18: 3720000000 | D18: 56789.16 | E18: 156.88 | F18: =D18/(B18/30.416)/(D1-D2) -> 0.04771544449 | G18: 0.5725853339 | H18: 362 | I18: 3720000000 | J18: 59628.62 | K18: 164.72 | L18: =J18/(H18/30.416)/(J1-J2) -> 0.04771544609 | M18: 0.5725853531 | N18: 362 | O18: 3720000000 | P18: 61900.19 | Q18: 171 | R18: =P18/(N18/30.416)/(P1-P2) -> 0.04771544881 | S18: 0.5725853857
B19: 359 | C19: 3780000000 | D19: 53393.4 | E19: 148.73 | F19: =D19/(B19/30.416)/(D1-D2) -> 0.04523714915 | G19: 0.5428457898 | H19: 359 | I19: 3780000000 | J19: 56063.07 | K19: 156.17 | L19: =J19/(H19/30.416)/(J1-J2) -> 0.04523714915 | M19: 0.5428457898 | N19: 359 | O19: 3780000000 | P19: 58198.81 | Q19: 162.11 | R19: =P19/(N19/30.416)/(P1-P2) -> 0.04523715226 | S19: 0.5428458271
B20: 355 | C20: 3840000000 | D20: 49983.09 | E20: 140.79 | F20: =D20/(B20/30.416)/(D1-D2) -> 0.04282494832 | G20: 0.5138993799 | H20: 355 | I20: 3840000000 | J20: 52482.24 | K20: 147.84 | L20: =J20/(H20/30.416)/(J1-J2) -> 0.04282494465 | M20: 0.5138993358 | N20: 355 | O20: 3840000000 | P20: 54481.56 | Q20: 153.47 | R20: =P20/(N20/30.416)/(P1-P2) -> 0.04282494196 | S20: 0.5138993035
B21: 352 | C21: 3900000000 | D21: 46845.56 | E21: 133.09 | F21: =D21/(B21/30.416)/(D1-D2) -> 0.04047882253 | G21: 0.4857458703 | H21: 352 | I21: 3900000000 | J21: 49187.84 | K21: 139.74 | L21: =J21/(H21/30.416)/(J1-J2) -> 0.04047882417 | M21: 0.4857458901 | N21: 352 | O21: 3900000000 | P21: 51061.66 | Q21: 145.07 | R21: =P21/(N21/30.416)/(P1-P2) -> 0.04047882221 | S21: 0.4857458665
B22: 349 | C22: 3960000000 | D22: 43830.15 | E22: 125.59 | F22: =D22/(B22/30.416)/(D1-D2) -> 0.03819879205 | G22: 0.4583855046 | H22: 349 | I22: 3960000000 | J22: 46021.66 | K22: 131.87 | L22: =J22/(H22/30.416)/(J1-J2) -> 0.03819879412 | M22: 0.4583855295 | N22: 349 | O22: 3960000000 | P22: 47774.87 | Q22: 136.89 | R22: =P22/(N22/30.416)/(P1-P2) -> 0.03819879724 | S22: 0.4583855669
B23: 345 | C23: 4020000000 | D23: 40816.59 | E23: 118.31 | F23: =D23/(B23/30.416)/(D1-D2) -> 0.03598485222 | G23: 0.4318182266 | H23: 345 | I23: 4020000000 | J23: 42857.42 | K23: 124.22 | L23: =J23/(H23/30.416)/(J1-J2) -> 0.03598485264 | M23: 0.4318182316 | N23: 345 | O23: 4020000000 | P23: 44490.08 | Q23: 128.96 | R23: =P23/(N23/30.416)/(P1-P2) -> 0.03598484971 | S23: 0.4318181965
B24: 341 | C24: 4080000000 | D24: 37935.34 | E24: 111.25 | F24: =D24/(B24/30.416)/(D1-D2) -> 0.03383698831 | G24: 0.4060438597 | H24: 341 | I24: 4080000000 | J24: 39832.11 | K24: 116.81 | L24: =J24/(H24/30.416)/(J1-J2) -> 0.03383699086 | M24: 0.4060438903 | N24: 341 | O24: 4080000000 | P24: 41349.53 | Q24: 121.26 | R24: =P24/(N24/30.416)/(P1-P2) -> 0.033836996 | S24: 0.4060439521
B25: 337 | C25: 4140000000 | D25: 35183.82 | E25: 104.4 | F25: =D25/(B25/30.416)/(D1-D2) -> 0.0317552246 | G25: 0.3810626952 | H25: 337 | I25: 4140000000 | J25: 36943.01 | K25: 109.62 | L25: =J25/(H25/30.416)/(J1-J2) -> 0.03175522374 | M25: 0.3810626849 | N25: 337 | O25: 4140000000 | P25: 38350.36 | Q25: 113.8 | R25: =P25/(N25/30.416)/(P1-P2) -> 0.03175522146 | S25: 0.3810626575
B26: 333 | C26: 4200000000 | D26: 32559.4 | E26: 97.78 | F26: =D26/(B26/30.416)/(D1-D2) -> 0.02973954085 | G26: 0.3568744902 | H26: 333 | I26: 4200000000 | J26: 34187.37 | K26: 102.67 | L26: =J26/(H26/30.416)/(J1-J2) -> 0.02973954085 | M26: 0.3568744902 | N26: 333 | O26: 4200000000 | P26: 35489.75 | Q26: 106.58 | R26: =P26/(N26/30.416)/(P1-P2) -> 0.0297395442 | S26: 0.3568745305
B27: 329 | C27: 4260000000 | D27: 30059.49 | E27: 91.36 | F27: =D27/(B27/30.416)/(D1-D2) -> 0.02778995282 | G27: 0.3334794339 | H27: 329 | I27: 4260000000 | J27: 31562.46 | K27: 95.94 | L27: =J27/(H27/30.416)/(J1-J2) -> 0.02778994886 | M27: 0.3334793863 | N27: 329 | O27: 4260000000 | P27: 32764.84 | Q27: 99.59 | R27: =P27/(N27/30.416)/(P1-P2) -> 0.02778994934 | S27: 0.3334793921
B28: 325 | C28: 4320000000 | D28: 27681.47 | E28: 85.17 | F28: =D28/(B28/30.416)/(D1-D2) -> 0.02590644897 | G28: 0.3108773876 | H28: 325 | I28: 4320000000 | J28: 29065.54 | K28: 89.43 | L28: =J28/(H28/30.416)/(J1-J2) -> 0.02590644585 | M28: 0.3108773502 | N28: 325 | O28: 4320000000 | P28: 30172.8 | Q28: 92.84 | R28: =P28/(N28/30.416)/(P1-P2) -> 0.025906447 | S28: 0.3108773639
B29: 320 | C29: 4380000000 | D29: 25343.53 | E29: 79.2 | F29: =D29/(B29/30.416)/(D1-D2) -> 0.02408902527 | G29: 0.2890683032 | H29: 320 | I29: 4380000000 | J29: 26610.71 | K29: 83.16 | L29: =J29/(H29/30.416)/(J1-J2) -> 0.02408902843 | M29: 0.2890683412 | N29: 320 | O29: 4380000000 | P29: 27624.45 | Q29: 86.33 | R29: =P29/(N29/30.416)/(P1-P2) -> 0.02408902727 | S29: 0.2890683272
B30: 316 | C30: 4440000000 | D30: 23207.24 | E30: 73.44 | F30: =D30/(B30/30.416)/(D1-D2) -> 0.02233770291 | G30: 0.2680524349 | H30: 316 | I30: 4440000000 | J30: 24367.6 | K30: 77.11 | L30: =J30/(H30/30.416)/(J1-J2) -> 0.02233770107 | M30: 0.2680524129 | N30: 316 | O30: 4440000000 | P30: 25295.89 | Q30: 80.05 | R30: =P30/(N30/30.416)/(P1-P2) -> 0.02233770149 | S30: 0.2680524179
B31: 311 | C31: 4500000000 | D31: 21116.9 | E31: 67.9 | F31: =D31/(B31/30.416)/(D1-D2) -> 0.020652464 | G31: 0.247829568 | H31: 311 | I31: 4500000000 | J31: 22172.74 | K31: 71.3 | L31: =J31/(H31/30.416)/(J1-J2) -> 0.02065245934 | M31: 0.2478295121 | N31: 311 | O31: 4500000000 | P31: 23017.42 | Q31: 74.01 | R31: =P31/(N31/30.416)/(P1-P2) -> 0.0206524631 | S31: 0.2478295572
B32: 306 | C32: 4560000000 | D32: 19148.45 | E32: 62.57 | F32: =D32/(B32/30.416)/(D1-D2) -> 0.01903330899 | G32: 0.2283997079 | H32: 306 | I32: 4560000000 | J32: 20105.87 | K32: 65.7 | L32: =J32/(H32/30.416)/(J1-J2) -> 0.01903330663 | M32: 0.2283996795 | N32: 306 | O32: 4560000000 | P32: 20871.81 | Q32: 68.21 | R32: =P32/(N32/30.416)/(P1-P2) -> 0.01903330854 | S32: 0.2283997025
B33: 300 | C33: 4620000000 | D33: 17241.16 | E33: 57.47 | F33: =D33/(B33/30.416)/(D1-D2) -> 0.01748023742 | G33: 0.209762849 | H33: 300 | I33: 4620000000 | J33: 18103.22 | K33: 60.35 | L33: =J33/(H33/30.416)/(J1-J2) -> 0.01748023935 | M33: 0.2097628722 | N33: 300 | O33: 4620000000 | P33: 18792.87 | Q33: 62.64 | R33: =P33/(N33/30.416)/(P1-P2) -> 0.01748024263 | S33: 0.2097629115
B34: 295 | C34: 4680000000 | D34: 15511.61 | E34: 52.59 | F34: =D34/(B34/30.416)/(D1-D2) -> 0.01599325864 | G34: 0.1919191036 | H34: 295 | I34: 4680000000 | J34: 16287.2 | K34: 55.21 | L34: =J34/(H34/30.416)/(J1-J2) -> 0.01599326796 | M34: 0.1919192156 | N34: 295 | O34: 4680000000 | P34: 16907.66 | Q34: 57.31 | R34: =P34/(N34/30.416)/(P1-P2) -> 0.01599326346 | S34: 0.1919191615
B35: 289 | C35: 4740000000 | D35: 13846.05 | E35: 47.91 | F35: =D35/(B35/30.416)/(D1-D2) -> 0.01457236875 | G35: 0.174868425 | H35: 289 | I35: 4740000000 | J35: 14538.36 | K35: 50.3 | L35: =J35/(H35/30.416)/(J1-J2) -> 0.01457237626 | M35: 0.1748685152 | N35: 289 | O35: 4740000000 | P35: 15092.2 | Q35: 52.22 | R35: =P35/(N35/30.416)/(P1-P2) -> 0.01457237406 | S35: 0.1748684887
B36: 283 | C36: 4800000000 | D36: 12298.04 | E36: 43.46 | F36: =D36/(B36/30.416)/(D1-D2) -> 0.01321756836 | G36: 0.1586108203 | H36: 283 | I36: 4800000000 | J36: 12912.95 | K36: 45.62 | L36: =J36/(H36/30.416)/(J1-J2) -> 0.01321757655 | M36: 0.1586109186 | N36: 283 | O36: 4800000000 | P36: 13404.87 | Q36: 47.36 | R36: =P36/(N36/30.416)/(P1-P2) -> 0.01321757467 | S36: 0.1586108961
B37: 276 | C37: 4860000000 | D37: 10824.45 | E37: 39.22 | F37: =D37/(B37/30.416)/(D1-D2) -> 0.01192885765 | G37: 0.1431462918 | H37: 276 | I37: 4860000000 | J37: 11365.67 | K37: 41.18 | L37: =J37/(H37/30.416)/(J1-J2) -> 0.01192885503 | M37: 0.1431462603 | N37: 276 | O37: 4860000000 | P37: 11798.65 | Q37: 42.75 | R37: =P37/(N37/30.416)/(P1-P2) -> 0.01192885715 | S37: 0.1431462858
B38: 269 | C38: 4920000000 | D38: 9468.62 | E38: 35.2 | F38: =D38/(B38/30.416)/(D1-D2) -> 0.01070622847 | G38: 0.1284747417 | H38: 269 | I38: 4920000000 | J38: 9942.05 | K38: 36.96 | L38: =J38/(H38/30.416)/(J1-J2) -> 0.0107062274 | M38: 0.1284747288 | N38: 269 | O38: 4920000000 | P38: 10320.8 | Q38: 38.37 | R38: =P38/(N38/30.416)/(P1-P2) -> 0.01070623283 | S38: 0.128474794
B39: 262 | C39: 4980000000 | D39: 8226 | E39: 31.4 | F39: =D39/(B39/30.416)/(D1-D2) -> 0.009549695267 | G39: 0.1145963432 | H39: 262 | I39: 4980000000 | J39: 8637.3 | K39: 32.97 | L39: =J39/(H39/30.416)/(J1-J2) -> 0.009549695267 | M39: 0.1145963432 | N39: 262 | O39: 4980000000 | P39: 8966.34 | Q39: 34.22 | R39: =P39/(N39/30.416)/(P1-P2) -> 0.009549695267 | S39: 0.1145963432
B40: 254 | C40: 5040000000 | D40: 7064.2 | E40: 27.81 | F40: =D40/(B40/30.416)/(D1-D2) -> 0.008459240441 | G40: 0.1015108853 | H40: 254 | I40: 5040000000 | J40: 7417.41 | K40: 29.21 | L40: =J40/(H40/30.416)/(J1-J2) -> 0.008459240441 | M40: 0.1015108853 | N40: 254 | O40: 5040000000 | P40: 7699.98 | Q40: 30.32 | R40: =P40/(N40/30.416)/(P1-P2) -> 0.008459242638 | S40: 0.1015109117
B41: 245 | C41: 5100000000 | D41: 5988.77 | E41: 24.45 | F41: =D41/(B41/30.416)/(D1-D2) -> 0.007434874625 | G41: 0.0892184955 | H41: 245 | I41: 5100000000 | J41: 6288.21 | K41: 25.67 | L41: =J41/(H41/30.416)/(J1-J2) -> 0.007434876399 | M41: 0.08921851679 | N41: 245 | O41: 5100000000 | P41: 6527.77 | Q41: 26.64 | R41: =P41/(N41/30.416)/(P1-P2) -> 0.007434886812 | S41: 0.08921864175
B42: 236 | C42: 5160000000 | D42: 5025.25 | E42: 21.29 | F42: =D42/(B42/30.416)/(D1-D2) -> 0.006476610339 | G42: 0.07771932407 | H42: 236 | I42: 5160000000 | J42: 5276.51 | K42: 22.36 | L42: =J42/(H42/30.416)/(J1-J2) -> 0.00647660727 | M42: 0.07771928724 | N42: 236 | O42: 5160000000 | P42: 5477.52 | Q42: 23.21 | R42: =P42/(N42/30.416)/(P1-P2) -> 0.006476607383 | S42: 0.0777192886
B43: 226 | C43: 5220000000 | D43: 4149.39 | E43: 18.36 | F43: =D43/(B43/30.416)/(D1-D2) -> 0.005584417975 | G43: 0.0670130157 | H43: 226 | I43: 5220000000 | J43: 4356.86 | K43: 19.28 | L43: =J43/(H43/30.416)/(J1-J2) -> 0.005584418616 | M43: 0.06701302339 | N43: 226 | O43: 5220000000 | P43: 4522.84 | Q43: 20.01 | R43: =P43/(N43/30.416)/(P1-P2) -> 0.005584424025 | S43: 0.0670130883
B44: 216 | C44: 5280000000 | D44: 3379.13 | E44: 15.65 | F44: =D44/(B44/30.416)/(D1-D2) -> 0.004758315652 | G44: 0.05709978782 | H44: 216 | I44: 5280000000 | J44: 3548.09 | K44: 16.43 | L44: =J44/(H44/30.416)/(J1-J2) -> 0.004758320346 | M44: 0.05709984415 | N44: 216 | O44: 5280000000 | P44: 3683.26 | Q44: 17.05 | R44: =P44/(N44/30.416)/(P1-P2) -> 0.004758326374 | S44: 0.05709991649
B45: 204 | C45: 5340000000 | D45: 2681.66 | E45: 13.15 | F45: =D45/(B45/30.416)/(D1-D2) -> 0.003998302478 | G45: 0.04797962974 | H45: 204 | I45: 5340000000 | J45: 2815.75 | K45: 13.8 | L45: =J45/(H45/30.416)/(J1-J2) -> 0.003998312418 | M45: 0.04797974902 | N45: 204 | O45: 5340000000 | P45: 2923.02 | Q45: 14.32 | R45: =P45/(N45/30.416)/(P1-P2) -> 0.003998316978 | S45: 0.04797980373
B46: 191 | C46: 5400000000 | D46: 2075.02 | E46: 10.86 | F46: =D46/(B46/30.416)/(D1-D2) -> 0.00330438787 | G46: 0.03965265444 | H46: 191 | I46: 5400000000 | J46: 2178.77 | K46: 11.41 | L46: =J46/(H46/30.416)/(J1-J2) -> 0.003304386354 | M46: 0.03965263624 | N46: 191 | O46: 5400000000 | P46: 2261.77 | Q46: 11.84 | R46: =P46/(N46/30.416)/(P1-P2) -> 0.00330438524 | S46: 0.03965262288
B47: 176 | C47: 5460000000 | D47: 1720.85 | E47: 9.78 | F47: =D47/(B47/30.416)/(D1-D2) -> 0.002973941682 | G47: 0.03568730018 | H47: 176 | I47: 5460000000 | J47: 1806.9 | K47: 10.26 | L47: =J47/(H47/30.416)/(J1-J2) -> 0.002973954026 | M47: 0.03568744831 | N47: 176 | O47: 5460000000 | P47: 1875.73 | Q47: 10.66 | R47: =P47/(N47/30.416)/(P1-P2) -> 0.002973947231 | S47: 0.03568736677
B48: 159 | C48: 5520000000 | D48: 1381.9 | E48: 8.69 | F48: =D48/(B48/30.416)/(D1-D2) -> 0.002643513862 | G48: 0.03172216634 | H48: 159 | I48: 5520000000 | J48: 1450.99 | K48: 9.13 | L48: =J48/(H48/30.416)/(J1-J2) -> 0.002643504752 | M48: 0.03172205703 | N48: 159 | O48: 5520000000 | P48: 1506.27 | Q48: 9.47 | R48: =P48/(N48/30.416)/(P1-P2) -> 0.002643512107 | S48: 0.03172214528
B49: 139 | C49: 5580000000 | D49: 1057.06 | E49: 7.61 | F49: =D49/(B49/30.416)/(D1-D2) -> 0.002313060213 | G49: 0.02775672256 | H49: 139 | I49: 5580000000 | J49: 1109.92 | K49: 7.98 | L49: =J49/(H49/30.416)/(J1-J2) -> 0.002313074801 | M49: 0.02775689761 | N49: 139 | O49: 5580000000 | P49: 1152.2 | Q49: 8.29 | R49: =P49/(N49/30.416)/(P1-P2) -> 0.002313069448 | S49: 0.02775683337
B50: 116 | C50: 5640000000 | D50: 756.13 | E50: 6.52 | F50: =D50/(B50/30.416)/(D1-D2) -> 0.001982625007 | G50: 0.02379150008 | H50: 116 | I50: 5640000000 | J50: 793.94 | K50: 6.84 | L50: =J50/(H50/30.416)/(J1-J2) -> 0.001982633747 | M50: 0.02379160497 | N50: 116 | O50: 5640000000 | P50: 824.18 | Q50: 7.11 | R50: =P50/(N50/30.416)/(P1-P2) -> 0.001982620917 | S50: 0.02379145101
B51: 88 | C51: 5700000000 | D51: 478.01 | E51: 5.43 | F51: =D51/(B51/30.416)/(D1-D2) -> 0.001652176382 | G51: 0.01982611658 | H51: 88 | I51: 5700000000 | J51: 501.91 | K51: 5.71 | L51: =J51/(H51/30.416)/(J1-J2) -> 0.001652174736 | M51: 0.01982609683 | N51: 88 | O51: 5700000000 | P51: 521.03 | Q51: 5.92 | R51: =P51/(N51/30.416)/(P1-P2) -> 0.001652173528 | S51: 0.01982608234
B52: 51 | C52: 5760000000 | D52: 221.62 | E52: 4.35 | F52: =D52/(B52/30.416)/(D1-D2) -> 0.001321724298 | G52: 0.01586069158 | H52: 51 | I52: 5760000000 | J52: 232.7 | K52: 4.56 | L52: =J52/(H52/30.416)/(J1-J2) -> 0.001321718618 | M52: 0.01586062342 | N52: 51 | O52: 5760000000 | P52: 241.57 | Q52: 4.73 | R52: =P52/(N52/30.416)/(P1-P2) -> 0.001321747278 | S52: 0.01586096734
B53: 1 | C53: 5820000000 | D53: 3.25 | E53: 3.26 | F53: =D53/(B53/30.416)/(D1-D2) -> 0.00098852 | G53: 0.01186224 | H53: 1 | I53: 5820000000 | J53: 3.42 | K53: 3.42 | L53: =J53/(H53/30.416)/(J1-J2) -> 0.0009906925714 | M53: 0.01188831086 | N53: 1 | O53: 5820000000 | P53: 3.55 | Q53: 3.55 | R53: =P53/(N53/30.416)/(P1-P2) -> 0.000990612844 | S53: 0.01188735413
B54: 1 | C54: 5880000000 | D54: 2.17 | E54: 2.17 | F54: =D54/(B54/30.416)/(D1-D2) -> 0.0006600272 | G54: 0.0079203264 | H54: 1 | I54: 5880000000 | J54: 2.28 | K54: 2.28 | L54: =J54/(H54/30.416)/(J1-J2) -> 0.0006604617143 | M54: 0.007925540571 | N54: 1 | O54: 5880000000 | P54: 2.36 | Q54: 2.37 | R54: =P54/(N54/30.416)/(P1-P2) -> 0.0006585482569 | S54: 0.007902579083
B55: 1 | C55: 5940000000 | D55: 1.08 | E55: 1.09 | F55: =D55/(B55/30.416)/(D1-D2) -> 0.0003284928 | G55: 0.0039419136 | H55: 1 | I55: 5940000000 | J55: 1.14 | K55: 1.14 | L55: =J55/(H55/30.416)/(J1-J2) -> 0.0003302308571 | M55: 0.003962770286 | N55: 1 | O55: 5940000000 | P55: 1.18 | Q55: 1.18 | R55: =P55/(N55/30.416)/(P1-P2) -> 0.0003292741284 | S55: 0.003951289541
B56: 0 | C56: 6000000000 | D56: 0 | E56: 0 | F56: 0 | G56: 0 | H56: 0 | I56: 6000000000 | J56: 0 | K56: 0 | L56: 0 | M56: 0 | N56: 0 | O56: 6000000000 | P56: 0 | Q56: 0 | R56: 0 | S56: 0

Sheet 1 mlrd
B1: БАЛАНС | D1: 100001 | F1: ДОХОДНОСТЬ | H1: БАЛАНС | J1: 105001 | L1: ДОХОДНОСТЬ | N1: БАЛАНС | P1: 109001 | R1: ДОХОДНОСТЬ
B2: БАЛАНС ACCOUNT HOLD | D2: 1 | H2: БАЛАНС ACCOUNT HOLD | J2: 1 | N2: БАЛАНС ACCOUNT HOLD | P2: 1
B3: СТРУКТУРНЫЙ БАЛАНС | D3: 1000000000 | H3: СТРУКТУРНЫЙ БАЛАНС | J3: 1000000000 | N3: СТРУКТУРНЫЙ БАЛАНС | P3: 1000000000
B4: ДНИ | C4: ГЕНЕЗИС | D4: ПАР | E4: /ДЕНЬ | F4: % В МЕСЯЦ | G4: % В ГОД | H4: ДНИ | I4: ГЕНЕЗИС | J4: ПАР | K4: /ДЕНЬ | L4: % В МЕСЯЦ | M4: % В ГОД | N4: ДНИ | O4: ГЕНЕЗИС | P4: ПАР | Q4: /ДЕНЬ | R4: % В МЕСЯЦ | S4: % В ГОД
B5: 352 | C5: 2940000000 | D5: =ABS(Paracalc($D$1,$D$2,$D$3,C5,B5,1)) -> 112026.94 | E5: =ABS(Paracalc($D$1,$D$2,$D$3,C5,B5+1,1))-D5 -> 318.26 | F5: =D5/(B5/30.416)/(D1-D2) -> 0.09680146043 | G5: =F5*12 -> 1.161617525 | H5: 352 | I5: 2940000000 | J5: =ABS(Paracalc($J$1,$J$2,$J$3,I5,H5,1)) -> 117628.28 | K5: =ABS(Paracalc($J$1,$J$2,$J$3,I5,H5+1,1))-J5 -> 334.18 | L5: =J5/(H5/30.416)/(J1-J2) -> 0.09680145467 | M5: =L5*12 -> 1.161617456 | N5: 352 | O5: 2940000000 | P5: =ABS(Paracalc($P$1,$P$2,$P$3,O5,N5,1)) -> 122109.36 | Q5: =ABS(Paracalc($P$1,$P$2,$P$3,O5,N5+1,1))-P5 -> 346.9 | R5: =P5/(N5/30.416)/(P1-P2) -> 0.09680145678 | S5: =R5*12 -> 1.161617481
B6: 350 | C6: =C5+60000000 -> 3000000000 | D6: 107065 | E6: 305.9 | F6: =D6/(B6/30.416)/(D1-D2) -> 0.093042544 | G6: =F6*12 -> 1.116510528 | H6: 350 | I6: =I5+60000000 -> 3000000000 | J6: =ABS(Paracalc($J$1,$J$2,$J$3,I6,H6,1)) -> 112418.25 | K6: 321.19 | L6: =J6/(H6/30.416)/(J1-J2) -> 0.093042544 | M6: =L6*12 -> 1.116510528 | N6: 350 | O6: =O5+60000000 -> 3000000000 | P6: 116700.85 | Q6: 333.43 | R6: =P6/(N6/30.416)/(P1-P2) -> 0.093042544 | S6: =R6*12 -> 1.116510528
B7: 348 | C7: 3060000000 | D7: 102237.65 | E7: 293.78 | F7: =D7/(B7/30.416)/(D1-D2) -> 0.08935805639 | G7: 1.072296677 | H7: 348 | I7: 3060000000 | J7: 107349.53 | K7: 308.48 | L7: =J7/(H7/30.416)/(J1-J2) -> 0.08935805431 | M7: 1.072296652 | N7: 348 | O7: 3060000000 | P7: 111439.04 | Q7: 320.22 | R7: =P7/(N7/30.416)/(P1-P2) -> 0.08935805759 | S7: 1.072296691
B8: 346 | C8: 3120000000 | D8: 97543.43 | E8: 281.92 | F8: =D8/(B8/30.416)/(D1-D2) -> 0.08574800482 | G8: 1.028976058 | H8: 346 | I8: 3120000000 | J8: 102420.6 | K8: 296.01 | L8: =J8/(H8/30.416)/(J1-J2) -> 0.08574800357 | M8: 1.028976043 | N8: 346 | O8: 3120000000 | P8: 106322.34 | Q8: 307.29 | R8: =P8/(N8/30.416)/(P1-P2) -> 0.08574800587 | S8: 1.02897607
B9: 344 | C9: 3180000000 | D9: 92980.87 | E9: 270.29 | F9: =D9/(B9/30.416)/(D1-D2) -> 0.08221238785 | G9: 0.9865486542 | H9: 344 | I9: 3180000000 | J9: 97629.91 | K9: 283.81 | L9: =J9/(H9/30.416)/(J1-J2) -> 0.0822123849 | M9: 0.9865486188 | N9: 344 | O9: 3180000000 | P9: 101349.15 | Q9: 294.62 | R9: =P9/(N9/30.416)/(P1-P2) -> 0.08221238923 | S9: 0.9865486707
B10: 342 | C10: 3240000000 | D10: 88548.5 | E10: 258.91 | F10: =D10/(B10/30.416)/(D1-D2) -> 0.07875120398 | G10: 0.9450144477 | H10: 342 | I10: 3240000000 | J10: 92975.93 | K10: 271.86 | L10: =J10/(H10/30.416)/(J1-J2) -> 0.07875120821 | M10: 0.9450144985 | N10: 342 | O10: 3240000000 | P10: 96517.87 | Q10: 282.21 | R10: =P10/(N10/30.416)/(P1-P2) -> 0.07875120806 | S10: 0.9450144967
B11: 339 | C11: 3300000000 | D11: 83997.08 | E11: 247.78 | F11: =D11/(B11/30.416)/(D1-D2) -> 0.07536445974 | G11: 0.9043735169 | H11: 339 | I11: 3300000000 | J11: 88196.93 | K11: 260.17 | L11: =J11/(H11/30.416)/(J1-J2) -> 0.07536445632 | M11: 0.9043734759 | N11: 339 | O11: 3300000000 | P11: 91556.81 | Q11: 270.08 | R11: =P11/(N11/30.416)/(P1-P2) -> 0.07536445382 | S11: 0.9043734458
B12: 337 | C12: 3360000000 | D12: 79831.57 | E12: 236.89 | F12: =D12/(B12/30.416)/(D1-D2) -> 0.07205213748 | G12: 0.8646256498 | H12: 337 | I12: 3360000000 | J12: 83823.15 | K12: 248.74 | L12: =J12/(H12/30.416)/(J1-J2) -> 0.07205213877 | M12: 0.8646256652 | N12: 337 | O12: 3360000000 | P12: 87016.42 | Q12: 258.21 | R12: =P12/(N12/30.416)/(P1-P2) -> 0.07205214469 | S12: 0.8646257362
B13: 335 | C13: 3420000000 | D13: 75791.61 | E13: 226.25 | F13: =D13/(B13/30.416)/(D1-D2) -> 0.06881425701 | G13: 0.8257710841 | H13: 335 | I13: 3420000000 | J13: 79581.2 | K13: 237.55 | L13: =J13/(H13/30.416)/(J1-J2) -> 0.06881426522 | M13: 0.8257711827 | N13: 335 | O13: 3420000000 | P13: 82612.86 | Q13: 246.61 | R13: =P13/(N13/30.416)/(P1-P2) -> 0.06881426126 | S13: 0.8257711351
B14: 332 | C14: 3480000000 | D14: 71659.88 | E14: 215.85 | F14: =D14/(B14/30.416)/(D1-D2) -> 0.06565081054 | G14: 0.7878097265 | H14: 332 | I14: 3480000000 | J14: 75242.88 | K14: 226.63 | L14: =J14/(H14/30.416)/(J1-J2) -> 0.06565081578 | M14: 0.7878097894 | N14: 332 | O14: 3480000000 | P14: 78109.27 | Q14: 235.27 | R14: =P14/(N14/30.416)/(P1-P2) -> 0.06565081122 | S14: 0.7878097346
B15: 330 | C15: 3540000000 | D15: 67876.76 | E15: 205.68 | F15: =D15/(B15/30.416)/(D1-D2) -> 0.062561804 | G15: 0.7507416481 | H15: 330 | I15: 3540000000 | J15: 71270.6 | K15: 215.97 | L15: =J15/(H15/30.416)/(J1-J2) -> 0.06256180576 | M15: 0.7507416691 | N15: 330 | O15: 3540000000 | P15: 73985.67 | Q15: 224.2 | R15: =P15/(N15/30.416)/(P1-P2) -> 0.06256180536 | S15: 0.7507416643
B16: 327 | C16: 3600000000 | D16: 64018.75 | E16: 195.77 | F16: =D16/(B16/30.416)/(D1-D2) -> 0.0595472263 | G16: 0.7145667156 | H16: 327 | I16: 3600000000 | J16: 67219.68 | K16: 205.57 | L16: =J16/(H16/30.416)/(J1-J2) -> 0.05954721966 | M16: 0.7145666359 | N16: 327 | O16: 3600000000 | P16: 69780.43 | Q16: 213.4 | R16: =P16/(N16/30.416)/(P1-P2) -> 0.0595472199 | S16: 0.7145666388
B17: 324 | C17: 3660000000 | D17: 60299.49 | E17: 186.11 | F17: =D17/(B17/30.416)/(D1-D2) -> 0.05660707679 | G17: 0.6792849214 | H17: 324 | I17: 3660000000 | J17: 63314.47 | K17: 195.41 | L17: =J17/(H17/30.416)/(J1-J2) -> 0.0566070817 | M17: 0.6792849804 | N17: 324 | O17: 3660000000 | P17: 65726.45 | Q17: 202.86 | R17: =P17/(N17/30.416)/(P1-P2) -> 0.05660708187 | S17: 0.6792849824
B18: 321 | C18: 3720000000 | D18: 56716.79 | E18: 176.69 | F18: =D18/(B18/30.416)/(D1-D2) -> 0.05374136712 | G18: 0.6448964055 | H18: 321 | I18: 3720000000 | J18: 59552.63 | K18: 185.52 | L18: =J18/(H18/30.416)/(J1-J2) -> 0.05374136757 | M18: 0.6448964109 | N18: 321 | O18: 3720000000 | P18: 61821.3 | Q18: 192.59 | R18: =P18/(N18/30.416)/(P1-P2) -> 0.05374136617 | S18: 0.644896394
B19: 319 | C19: 3780000000 | D19: 53435.95 | E19: 167.51 | F19: =D19/(B19/30.416)/(D1-D2) -> 0.0509500895 | G19: 0.6114010741 | H19: 319 | I19: 3780000000 | J19: 56107.75 | K19: 175.89 | L19: =J19/(H19/30.416)/(J1-J2) -> 0.05095009177 | M19: 0.6114011013 | N19: 319 | O19: 3780000000 | P19: 58245.19 | Q19: 182.59 | R19: =P19/(N19/30.416)/(P1-P2) -> 0.05095009344 | S19: 0.6114011213
B20: 316 | C20: 3840000000 | D20: 50110.82 | E20: 158.58 | F20: =D20/(B20/30.416)/(D1-D2) -> 0.04823325004 | G20: 0.5787990004 | H20: 316 | I20: 3840000000 | J20: 52616.36 | K20: 166.51 | L20: =J20/(H20/30.416)/(J1-J2) -> 0.04823324912 | M20: 0.5787989894 | N20: 316 | O20: 3840000000 | P20: 54620.79 | Q20: 172.85 | R20: =P20/(N20/30.416)/(P1-P2) -> 0.04823324668 | S20: 0.5787989602
B21: 313 | C21: 3900000000 | D21: 46915.88 | E21: 149.89 | F21: =D21/(B21/30.416)/(D1-D2) -> 0.04559084364 | G21: 0.5470901237 | H21: 313 | I21: 3900000000 | J21: 49261.67 | K21: 157.39 | L21: =J21/(H21/30.416)/(J1-J2) -> 0.04559083994 | M21: 0.5470900793 | N21: 313 | O21: 3900000000 | P21: 51138.31 | Q21: 163.38 | R21: =P21/(N21/30.416)/(P1-P2) -> 0.04559084436 | S21: 0.5470901323
B22: 309 | C22: 3960000000 | D22: 43707.48 | E22: 141.44 | F22: =D22/(B22/30.416)/(D1-D2) -> 0.04302287093 | G22: 0.5162744511 | H22: 309 | I22: 3960000000 | J22: 45892.85 | K22: 148.52 | L22: =J22/(H22/30.416)/(J1-J2) -> 0.04302286718 | M22: 0.5162744061 | N22: 309 | O22: 3960000000 | P22: 47641.15 | Q22: 154.18 | R22: =P22/(N22/30.416)/(P1-P2) -> 0.04302286804 | S22: 0.5162744165
B23: 306 | C23: 4020000000 | D23: 40774.51 | E23: 133.25 | F23: =D23/(B23/30.416)/(D1-D2) -> 0.04052932994 | G23: 0.4863519593 | H23: 306 | I23: 4020000000 | J23: 42813.23 | K23: 139.92 | L23: =J23/(H23/30.416)/(J1-J2) -> 0.04052932473 | M23: 0.4863518968 | N23: 306 | O23: 4020000000 | P23: 44444.21 | Q23: 145.25 | R23: =P23/(N23/30.416)/(P1-P2) -> 0.04052932456 | S23: 0.4863518947
B24: 303 | C24: 4080000000 | D24: 37964.88 | E24: 125.29 | F24: =D24/(B24/30.416)/(D1-D2) -> 0.0381102241 | G24: 0.4573226891 | H24: 303 | I24: 4080000000 | J24: 39863.12 | K24: 131.56 | L24: =J24/(H24/30.416)/(J1-J2) -> 0.03811022027 | M24: 0.4573226433 | N24: 303 | O24: 4080000000 | P24: 41381.72 | Q24: 136.57 | R24: =P24/(N24/30.416)/(P1-P2) -> 0.03811022483 | S24: 0.457322698
B25: 300 | C25: 4140000000 | D25: 35276.38 | E25: 117.59 | F25: =D25/(B25/30.416)/(D1-D2) -> 0.0357655458 | G25: 0.4291865496 | H25: 300 | I25: 4140000000 | J25: 37040.2 | K25: 123.47 | L25: =J25/(H25/30.416)/(J1-J2) -> 0.03576554677 | M25: 0.4291865612 | N25: 300 | O25: 4140000000 | P25: 38451.26 | Q25: 128.17 | R25: =P25/(N25/30.416)/(P1-P2) -> 0.0357655512 | S25: 0.4291866144
B26: 296 | C26: 4200000000 | D26: 32596.7 | E26: 110.12 | F26: =D26/(B26/30.416)/(D1-D2) -> 0.03349531173 | G26: 0.4019437408 | H26: 296 | I26: 4200000000 | J26: 34226.53 | K26: 115.63 | L26: =J26/(H26/30.416)/(J1-J2) -> 0.03349530684 | M26: 0.401943682 | N26: 296 | O26: 4200000000 | P26: 35530.4 | Q26: 120.04 | R26: =P26/(N26/30.416)/(P1-P2) -> 0.0334953089 | S26: 0.4019437068
B27: 292 | C27: 4260000000 | D27: 30048.18 | E27: 102.91 | F27: =D27/(B27/30.416)/(D1-D2) -> 0.03129950147 | G27: 0.3755940176 | H27: 292 | I27: 4260000000 | J27: 31550.59 | K27: 108.05 | L27: =J27/(H27/30.416)/(J1-J2) -> 0.03129950246 | M27: 0.3755940295 | N27: 292 | O27: 4260000000 | P27: 32752.52 | Q27: 112.17 | R27: =P27/(N27/30.416)/(P1-P2) -> 0.0312995051 | S27: 0.3755940612
B28: 288 | C28: 4320000000 | D28: 27627.9 | E28: 95.93 | F28: =D28/(B28/30.416)/(D1-D2) -> 0.02917813217 | G28: 0.350137586 | H28: 288 | I28: 4320000000 | J28: 29009.3 | K28: 100.73 | L28: =J28/(H28/30.416)/(J1-J2) -> 0.0291781372 | M28: 0.3501376463 | N28: 288 | O28: 4320000000 | P28: 30114.42 | Q28: 104.56 | R28: =P28/(N28/30.416)/(P1-P2) -> 0.02917814089 | S28: 0.3501376906
B29: 284 | C29: 4380000000 | D29: 25332.92 | E29: 89.2 | F29: =D29/(B29/30.416)/(D1-D2) -> 0.02713120052 | G29: 0.3255744062 | H29: 284 | I29: 4380000000 | J29: 26599.57 | K29: 93.66 | L29: =J29/(H29/30.416)/(J1-J2) -> 0.0271312046 | M29: 0.3255744552 | N29: 284 | O29: 4380000000 | P29: 27612.88 | Q29: 97.23 | R29: =P29/(N29/30.416)/(P1-P2) -> 0.02713119777 | S29: 0.3255743732
B30: 280 | C30: 4440000000 | D30: 23160.3 | E30: 82.71 | F30: =D30/(B30/30.416)/(D1-D2) -> 0.02515870303 | G30: 0.3019044363 | H30: 280 | I30: 4440000000 | J30: 24318.31 | K30: 86.85 | L30: =J30/(H30/30.416)/(J1-J2) -> 0.02515869786 | M30: 0.3019043743 | N30: 280 | O30: 4440000000 | P30: 25244.72 | Q30: 90.16 | R30: =P30/(N30/30.416)/(P1-P2) -> 0.02515869605 | S30: 0.3019043526
B31: 276 | C31: 4500000000 | D31: 21107.1 | E31: 76.47 | F31: =D31/(B31/30.416)/(D1-D2) -> 0.023260636 | G31: 0.279127632 | H31: 276 | I31: 4500000000 | J31: 22162.45 | K31: 80.3 | L31: =J31/(H31/30.416)/(J1-J2) -> 0.02326063075 | M31: 0.279127569 | N31: 276 | O31: 4500000000 | P31: 23006.73 | Q31: 83.36 | R31: =P31/(N31/30.416)/(P1-P2) -> 0.0232606269 | S31: 0.2791275228
B32: 271 | C32: 4560000000 | D32: 19099.9 | E32: 70.48 | F32: =D32/(B32/30.416)/(D1-D2) -> 0.02143699477 | G32: 0.2572439373 | H32: 271 | I32: 4560000000 | J32: 20054.9 | K32: 74 | L32: =J32/(H32/30.416)/(J1-J2) -> 0.02143700012 | M32: 0.2572440014 | N32: 271 | O32: 4560000000 | P32: 20818.89 | Q32: 76.83 | R32: =P32/(N32/30.416)/(P1-P2) -> 0.02143699375 | S32: 0.2572439249
B33: 267 | C33: 4620000000 | D33: 17282.49 | E33: 64.73 | F33: =D33/(B33/30.416)/(D1-D2) -> 0.01968779835 | G33: 0.2362535802 | H33: 267 | I33: 4620000000 | J33: 18146.61 | K33: 67.97 | L33: =J33/(H33/30.416)/(J1-J2) -> 0.01968779346 | M33: 0.2362535216 | N33: 267 | O33: 4620000000 | P33: 18837.91 | Q33: 70.56 | R33: =P33/(N33/30.416)/(P1-P2) -> 0.01968779406 | S33: 0.2362535287
B34: 262 | C34: 4680000000 | D34: 15516.22 | E34: 59.22 | F34: =D34/(B34/30.416)/(D1-D2) -> 0.01801302853 | G34: 0.2161563424 | H34: 262 | I34: 4680000000 | J34: 16292.03 | K34: 62.19 | L34: =J34/(H34/30.416)/(J1-J2) -> 0.01801302743 | M34: 0.2161563291 | N34: 262 | O34: 4680000000 | P34: 16912.68 | Q34: 64.55 | R34: =P34/(N34/30.416)/(P1-P2) -> 0.01801302874 | S34: 0.2161563449
B35: 256 | C35: 4740000000 | D35: 13813.95 | E35: 53.96 | F35: =D35/(B35/30.416)/(D1-D2) -> 0.01641269934 | G35: 0.1969523921 | H35: 256 | I35: 4740000000 | J35: 14504.65 | K35: 56.66 | L35: =J35/(H35/30.416)/(J1-J2) -> 0.01641270217 | M35: 0.1969524261 | N35: 256 | O35: 4740000000 | P35: 15057.21 | Q35: 58.81 | R35: =P35/(N35/30.416)/(P1-P2) -> 0.01641270425 | S35: 0.196952451
B36: 251 | C36: 4800000000 | D36: 12284.94 | E36: 48.94 | F36: =D36/(B36/30.416)/(D1-D2) -> 0.01488680219 | G36: 0.1786416263 | H36: 251 | I36: 4800000000 | J36: 12899.19 | K36: 51.39 | L36: =J36/(H36/30.416)/(J1-J2) -> 0.01488680566 | M36: 0.1786416679 | N36: 251 | O36: 4800000000 | P36: 13390.58 | Q36: 53.35 | R36: =P36/(N36/30.416)/(P1-P2) -> 0.01488679708 | S36: 0.1786415649
B37: 245 | C37: 4860000000 | D37: 10822.13 | E37: 44.17 | F37: =D37/(B37/30.416)/(D1-D2) -> 0.01343534311 | G37: 0.1612241173 | H37: 245 | I37: 4860000000 | J37: 11363.23 | K37: 46.38 | L37: =J37/(H37/30.416)/(J1-J2) -> 0.01343533542 | M37: 0.161224025 | N37: 245 | O37: 4860000000 | P37: 11796.12 | Q37: 48.14 | R37: =P37/(N37/30.416)/(P1-P2) -> 0.01343534117 | S37: 0.161224094
B38: 239 | C38: 4920000000 | D38: 9475.06 | E38: 39.65 | F38: =D38/(B38/30.416)/(D1-D2) -> 0.0120583023 | G38: 0.1446996276 | H38: 239 | I38: 4920000000 | J38: 9948.82 | K38: 41.62 | L38: =J38/(H38/30.416)/(J1-J2) -> 0.01205831078 | M38: 0.1446997294 | N38: 239 | O38: 4920000000 | P38: 10327.82 | Q38: 43.21 | R38: =P38/(N38/30.416)/(P1-P2) -> 0.01205830767 | S38: 0.144699692
B39: 232 | C39: 4980000000 | D39: 8203.99 | E39: 35.36 | F39: =D39/(B39/30.416)/(D1-D2) -> 0.01075571379 | G39: 0.1290685654 | H39: 232 | I39: 4980000000 | J39: 8614.19 | K39: 37.13 | L39: =J39/(H39/30.416)/(J1-J2) -> 0.01075571441 | M39: 0.1290685729 | N39: 232 | O39: 4980000000 | P39: 8942.35 | Q39: 38.54 | R39: =P39/(N39/30.416)/(P1-P2) -> 0.01075571487 | S39: 0.1290685784
B40: 225 | C40: 5040000000 | D40: 7047.93 | E40: 31.33 | F40: =D40/(B40/30.416)/(D1-D2) -> 0.009527548395 | G40: 0.1143305807 | H40: 225 | I40: 5040000000 | J40: 7400.33 | K40: 32.89 | L40: =J40/(H40/30.416)/(J1-J2) -> 0.009527552901 | M40: 0.1143306348 | N40: 225 | O40: 5040000000 | P40: 7682.25 | Q40: 34.14 | R40: =P40/(N40/30.416)/(P1-P2) -> 0.009527556208 | S40: 0.1143306745
B41: 218 | C41: 5100000000 | D41: 6001.75 | E41: 27.53 | F41: =D41/(B41/30.416)/(D1-D2) -> 0.008373817798 | G41: 0.1004858136 | H41: 218 | I41: 5100000000 | J41: 6301.84 | K41: 28.91 | L41: =J41/(H41/30.416)/(J1-J2) -> 0.00837382112 | M41: 0.1004858534 | N41: 218 | O41: 5100000000 | P41: 6541.91 | Q41: 30.01 | R41: =P41/(N41/30.416)/(P1-P2) -> 0.008373820998 | S41: 0.100485852
B42: 210 | C42: 5160000000 | D42: 5036.33 | E42: 23.99 | F42: =D42/(B42/30.416)/(D1-D2) -> 0.007294524442 | G42: 0.0875342933 | H42: 210 | I42: 5160000000 | J42: 5288.15 | K42: 25.18 | L42: =J42/(H42/30.416)/(J1-J2) -> 0.00729452927 | M42: 0.08753435124 | N42: 210 | O42: 5160000000 | P42: 5489.6 | Q42: 26.14 | R42: =P42/(N42/30.416)/(P1-P2) -> 0.007294524841 | S42: 0.08753429809
B43: 201 | C43: 5220000000 | D43: 4156.44 | E43: 20.68 | F43: =D43/(B43/30.416)/(D1-D2) -> 0.006289665624 | G43: 0.07547598749 | H43: 201 | I43: 5220000000 | J43: 4364.26 | K43: 21.72 | L43: =J43/(H43/30.416)/(J1-J2) -> 0.006289662742 | M43: 0.0754759529 | N43: 201 | O43: 5220000000 | P43: 4530.52 | Q43: 22.54 | R43: =P43/(N43/30.416)/(P1-P2) -> 0.006289666179 | S43: 0.07547599415
B44: 191 | C44: 5280000000 | D44: 3365.38 | E44: 17.62 | F44: =D44/(B44/30.416)/(D1-D2) -> 0.005359235502 | G44: 0.06431082602 | H44: 191 | I44: 5280000000 | J44: 3533.65 | K44: 18.5 | L44: =J44/(H44/30.416)/(J1-J2) -> 0.005359237018 | M44: 0.06431084422 | N44: 191 | O44: 5280000000 | P44: 3668.27 | Q44: 19.21 | R44: =P44/(N44/30.416)/(P1-P2) -> 0.005359243975 | S44: 0.0643109277
B45: 181 | C45: 5340000000 | D45: 2679.8 | E45: 14.81 | F45: =D45/(B45/30.416)/(D1-D2) -> 0.004503248442 | G45: 0.0540389813 | H45: 181 | I45: 5340000000 | J45: 2813.79 | K45: 15.55 | L45: =J45/(H45/30.416)/(J1-J2) -> 0.004503248442 | M45: 0.0540389813 | N45: 181 | O45: 5340000000 | P45: 2920.98 | Q45: 16.14 | R45: =P45/(N45/30.416)/(P1-P2) -> 0.004503245359 | S45: 0.0540389443
B46: 169 | C46: 5400000000 | D46: 2067.88 | E46: 12.24 | F46: =D46/(B46/30.416)/(D1-D2) -> 0.003721694561 | G46: 0.04466033473 | H46: 169 | I46: 5400000000 | J46: 2171.27 | K46: 12.85 | L46: =J46/(H46/30.416)/(J1-J2) -> 0.003721687705 | M46: 0.04466025246 | N46: 169 | O46: 5400000000 | P46: 2253.99 | Q46: 13.34 | R46: =P46/(N46/30.416)/(P1-P2) -> 0.003721695882 | S46: 0.04466035058
B47: 156 | C47: 5460000000 | D47: 1717.93 | E47: 11.01 | F47: =D47/(B47/30.416)/(D1-D2) -> 0.003349523005 | G47: 0.04019427606 | H47: 156 | I47: 5460000000 | J47: 1803.83 | K47: 11.56 | L47: =J47/(H47/30.416)/(J1-J2) -> 0.003349529504 | M47: 0.04019435405 | N47: 156 | O47: 5460000000 | P47: 1872.54 | Q47: 12.01 | R47: =P47/(N47/30.416)/(P1-P2) -> 0.003349516387 | S47: 0.04019419664
B48: 141 | C48: 5520000000 | D48: 1380.22 | E48: 9.78 | F48: =D48/(B48/30.416)/(D1-D2) -> 0.002977359682 | G48: 0.03572831619 | H48: 141 | I48: 5520000000 | J48: 1449.23 | K48: 10.28 | L48: =J48/(H48/30.416)/(J1-J2) -> 0.002977357628 | M48: 0.03572829153 | N48: 141 | O48: 5520000000 | P48: 1504.44 | Q48: 10.67 | R48: =P48/(N48/30.416)/(P1-P2) -> 0.002977360078 | S48: 0.03572832094
B49: 124 | C49: 5580000000 | D49: 1062.08 | E49: 8.57 | F49: =D49/(B49/30.416)/(D1-D2) -> 0.002605179458 | G49: 0.0312621535 | H49: 124 | I49: 5580000000 | J49: 1115.18 | K49: 9 | L49: =J49/(H49/30.416)/(J1-J2) -> 0.002605170114 | M49: 0.03126204136 | N49: 124 | O49: 5580000000 | P49: 1157.67 | Q49: 9.33 | R49: =P49/(N49/30.416)/(P1-P2) -> 0.002605185759 | S49: 0.03126222911
B50: 103 | C50: 5640000000 | D50: 756.18 | E50: 7.34 | F50: =D50/(B50/30.416)/(D1-D2) -> 0.002233006882 | G50: 0.02679608258 | H50: 103 | I50: 5640000000 | J50: 793.99 | K50: 7.71 | L50: =J50/(H50/30.416)/(J1-J2) -> 0.002233009694 | M50: 0.02679611633 | N50: 103 | O50: 5640000000 | P50: 824.24 | Q50: 8 | R50: =P50/(N50/30.416)/(P1-P2) -> 0.002233017176 | S50: 0.02679620612
B51: 78 | C51: 5700000000 | D51: 477.2 | E51: 6.12 | F51: =D51/(B51/30.416)/(D1-D2) -> 0.001860835282 | G51: 0.02233002338 | H51: 78 | I51: 5700000000 | J51: 501.06 | K51: 6.42 | L51: =J51/(H51/30.416)/(J1-J2) -> 0.001860835282 | M51: 0.02233002338 | N51: 78 | O51: 5700000000 | P51: 520.15 | Q51: 6.67 | R51: =P51/(N51/30.416)/(P1-P2) -> 0.001860842437 | S51: 0.02233010924
B52: 45 | C52: 5760000000 | D52: 220.24 | E52: 4.9 | F52: =D52/(B52/30.416)/(D1-D2) -> 0.001488626631 | G52: 0.01786351957 | H52: 45 | I52: 5760000000 | J52: 231.26 | K52: 5.13 | L52: =J52/(H52/30.416)/(J1-J2) -> 0.001488678129 | M52: 0.01786413755 | N52: 45 | O52: 5760000000 | P52: 240.07 | Q52: 5.33 | R52: =P52/(N52/30.416)/(P1-P2) -> 0.00148867872 | S52: 0.01786414464
B53: 1 | C53: 5820000000 | D53: 3.67 | E53: 3.67 | F53: =D53/(B53/30.416)/(D1-D2) -> 0.0011162672 | G53: 0.0133952064 | H53: 1 | I53: 5820000000 | J53: 3.85 | K53: 3.85 | L53: =J53/(H53/30.416)/(J1-J2) -> 0.001115253333 | M53: 0.01338304 | N53: 1 | O53: 5820000000 | P53: 4 | Q53: 4 | R53: =P53/(N53/30.416)/(P1-P2) -> 0.001116183486 | S53: 0.01339420183
B54: 1 | C54: 5880000000 | D54: 2.44 | E54: 2.45 | F54: =D54/(B54/30.416)/(D1-D2) -> 0.0007421504 | G54: 0.0089058048 | H54: 1 | I54: 5880000000 | J54: 2.56 | K54: 2.57 | L54: =J54/(H54/30.416)/(J1-J2) -> 0.0007415710476 | M54: 0.008898852571 | N54: 1 | O54: 5880000000 | P54: 2.66 | Q54: 2.67 | R54: =P54/(N54/30.416)/(P1-P2) -> 0.0007422620183 | S54: 0.00890714422
B55: 1 | C55: 5940000000 | D55: 1.22 | E55: 1.22 | F55: =D55/(B55/30.416)/(D1-D2) -> 0.0003710752 | G55: 0.0044529024 | H55: 1 | I55: 5940000000 | J55: 1.28 | K55: 1.28 | L55: =J55/(H55/30.416)/(J1-J2) -> 0.0003707855238 | M55: 0.004449426286 | N55: 1 | O55: 5940000000 | P55: 1.33 | Q55: 1.33 | R55: =P55/(N55/30.416)/(P1-P2) -> 0.0003711310092 | S55: 0.00445357211
B56: 0 | C56: 6000000000 | D56: 0 | E56: 0 | F56: 0 | G56: 0 | H56: 0 | I56: 6000000000 | J56: 0 | K56: 0 | L56: 0 | M56: 0 | N56: 0 | O56: 6000000000 | P56: 0 | Q56: 0 | R56: 0 | S56: 0

Sheet general
B1: ТАБЛИЦА ПРИМЕНИМА ДЛЯ КОШЕЛЬКОВ С БАЛАНСОМ ОТ 100 ТЫС ДО 109,99 ТЫС В ХОЛД-СТАТУСЕ
B2: ЭМИССИЯ В МЛРД | C2: СРОК ДЕЙСТВИЯ ЗЕЛЁНОЙ ЗОНЫ (В ДНЯХ) | K2: ЭМИССИЯ В МЛРД | L2: СРЕДНЕМЕСЯЧНАЯ ДОХОДНОСТЬ | T2: ЭМИССИЯ В МЛРД | U2: СРЕДНЕГОДОВАЯ ДОХОДНОСТЬ
C3: СТРУКТУРА | L3: СТРУКТУРА | U3: СТРУКТУРА
C4: 0 | D4: 1000 | E4: 10000 | F4: 100000 | G4: 1 МЛН | H4: 10 МЛН | I4: 100 МЛН | J4: 1 МЛРД | L4: 0 | M4: 1000 | N4: 10000 | O4: 100000 | P4: 1 МЛН | Q4: 10 МЛН | R4: 100 МЛН | S4: 1 МЛРД | U4: 0 | V4: 1000 | W4: 10000 | X4: 100000 | Y4: 1 МЛН | Z4: 10 МЛН | AA4: 100 МЛН | AB4: 1 МЛРД
B5: 2.94 | C5: 1539 | D5: 706 | E5: 652 | F5: 556 | G5: 505 | H5: 458 | I5: 397 | J5: 352 | K5: 2.94 | L5: 0.02215136408 | M5: 0.04828997102 | N5: 0.0522772201 | O5: 0.06135927449 | P5: 0.06756165745 | Q5: 0.0744285829 | R5: 0.08594728799 | S5: 0.09680146043 | T5: 2.94 | U5: 0.2658163557 | V5: 0.5794796527 | W5: 0.627326636 | X5: 0.7363113149 | Y5: 0.8107398894 | Z5: 0.8931429948 | AA5: 1.031367456 | AB5: 1.161617525
B6: =B5+0.06 -> 3 | C6: 1530 | D6: 702 | E6: 648 | F6: 553 | G6: 502 | H6: 456 | I6: 395 | J6: 350 | K6: =K5+0.06 -> 3 | L6: 0.0212912 | M6: 0.046414816 | N6: 0.050247232 | O6: 0.058976624 | P6: 0.06493816 | Q6: 0.07153842533 | R6: 0.082609856 | S6: 0.093042544 | T6: =T5+0.06 -> 3 | U6: 0.2554944 | V6: 0.5569777538 | W6: 0.6029667633 | X6: 0.7077194698 | Y6: 0.77925792 | Z6: 0.858461104 | AA6: 0.991318272 | AB6: 1.116510528
B7: 3.06 | C7: 1520 | D7: 698 | E7: 645 | F7: 549 | G7: 499 | H7: 453 | I7: 392 | J7: 348 | K7: 3.06 | L7: 0.02044806848 | M7: 0.04457678758 | N7: 0.04825744086 | O7: 0.05664114612 | P7: 0.06236660606 | Q7: 0.06870550725 | R7: 0.07933849881 | S7: 0.08935805639 | T7: 3.06 | U7: 0.2453768209 | V7: 0.534921437 | W7: 0.579089283 | X7: 0.6796937736 | Y7: 0.7483992727 | Z7: 0.824466087 | AA7: 0.9520619857 | AB7: 1.072296677
B8: 3.12 | C8: 1511 | D8: 693 | E8: 641 | F8: 546 | G8: 496 | H8: 450 | I8: 390 | J8: 346 | K8: 3.12 | L8: 0.01962196952 | M8: 0.04277589053 | N8: 0.04630784753 | O8: 0.05435285164 | P8: 0.05984700605 | Q8: 0.06592981623 | R8: 0.07613323674 | S8: 0.08574800482 | T8: 3.12 | U8: 0.2354636194 | V8: 0.5133107032 | W8: 0.5556941427 | X8: 0.6522342767 | Y8: 0.7181640726 | Z8: 0.7911577947 | AA8: 0.9135988409 | AB8: 1.028976058
B9: 3.18 | C9: 1501 | D9: 689 | E9: 636 | F9: 542 | G9: 493 | H9: 447 | I9: 387 | J9: 344 | K9: 3.18 | L9: 0.01881290391 | M9: 0.04101213096 | N9: 0.04439845041 | O9: 0.05211174402 | P9: 0.05737935213 | Q9: 0.06321135454 | R9: 0.07299406159 | S9: 0.08221238785 | T9: 3.18 | U9: 0.2257548325 | V9: 0.4921455491 | W9: 0.5327814402 | X9: 0.6253409332 | Y9: 0.6885522256 | Z9: 0.7585362545 | AA9: 0.8759287391 | AB9: 0.9865486542
B10: 3.24 | C10: 1491 | D10: 684 | E10: 632 | F10: 539 | G10: 489 | H10: 444 | I10: 385 | J10: 342 | K10: 3.24 | L10: 0.01802087005 | M10: 0.03928549681 | N10: 0.04252925382 | O10: 0.04991781374 | P10: 0.05496365265 | Q10: 0.06055012452 | R10: 0.06992098022 | S10: 0.07875120398 | T10: 3.24 | U10: 0.2162504442 | V10: 0.4714259701 | W10: 0.5103510389 | X10: 0.5990137425 | Y10: 0.6595638318 | Z10: 0.7266014942 | AA10: 0.8390517627 | AB10: 0.9450144477
B11: 3.3 | C11: 1481 | D11: 680 | E11: 628 | F11: 535 | G11: 486 | H11: 441 | I11: 382 | J11: 339 | K11: 3.3 | L11: 0.017245872 | M11: 0.03759600096 | N11: 0.04070025501 | O11: 0.0477710626 | P11: 0.0525999096 | Q11: 0.05794612854 | R11: 0.06691398177 | S11: 0.07536445974 | T11: 3.3 | U11: 0.2069504572 | V11: 0.4511519761 | W11: 0.4884030938 | X11: 0.5732527487 | Y11: 0.6311989152 | Z11: 0.6953535425 | AA11: 0.8029677812 | AB11: 0.9043735169
B12: 3.36 | C12: 1471 | D12: 675 | E12: 624 | F12: 531 | G12: 483 | H12: 438 | I12: 379 | J12: 337 | K12: 3.36 | L12: 0.01648790363 | M12: 0.03594363261 | N12: 0.03891145202 | O12: 0.04567149708 | P12: 0.05028810783 | Q12: 0.05539935519 | R12: 0.06397306594 | S12: 0.07205213748 | T12: 3.36 | U12: 0.1978548517 | V12: 0.4313235601 | W12: 0.4669374381 | X12: 0.5480579473 | Y12: 0.603457294 | Z12: 0.6647922622 | AA12: 0.7676767913 | AB12: 0.8646256498
B13: 3.42 | C13: 1460 | D13: 670 | E13: 619 | F13: 528 | G13: 479 | H13: 435 | I13: 377 | J13: 335 | K13: 3.42 | L13: 0.01574697152 | M13: 0.03432839646 | N13: 0.03716284862 | O13: 0.04361910747 | P13: 0.04802826098 | Q13: 0.05290982067 | R13: 0.06109824892 | S13: 0.06881425701 | T13: 3.42 | U13: 0.1889636564 | V13: 0.4119407265 | W13: 0.4459542159 | X13: 0.5234292991 | Y13: 0.5763391317 | Z13: 0.6349178481 | AA13: 0.733178987 | AB13: 0.8257710841
B14: 3.48 | C14: 1449 | D14: 665 | E14: 614 | F14: 524 | G14: 475 | H14: 432 | I14: 374 | J14: 332 | K14: 3.48 | L14: 0.01502306904 | M14: 0.03275029307 | N14: 0.03545444508 | O14: 0.0416139058 | P14: 0.04580437008 | Q14: 0.05047751351 | R14: 0.05828950704 | S14: 0.06565081054 | T14: 3.48 | U14: 0.1802768285 | V14: 0.3930035058 | W14: 0.4254533507 | X14: 0.4993668377 | Y14: 0.549652441 | Z14: 0.6057301621 | AA14: 0.6994740845 | AB14: 0.7878097265
B15: 3.54 | C15: 1438 | D15: 660 | E15: 610 | F15: 520 | G15: 472 | H15: 428 | I15: 371 | J15: 330 | K15: 3.54 | L15: 0.01431620203 | M15: 0.03120931841 | N15: 0.0337862374 | O15: 0.03965587777 | P15: 0.04366441698 | Q15: 0.04810243497 | R15: 0.05554686337 | S15: 0.062561804 | T15: 3.54 | U15: 0.1717944239 | V15: 0.3745118275 | W15: 0.4054348592 | X15: 0.4758705551 | Y15: 0.5239730038 | Z15: 0.5772292196 | AA15: 0.6665623604 | AB15: 0.7507416481
B16: 3.6 | C16: 1427 | D16: 655 | E16: 605 | F16: 515 | G16: 468 | H16: 425 | I16: 368 | J16: 327 | K16: 3.6 | L16: 0.013626368 | M16: 0.02970548224 | N16: 0.03215822848 | O16: 0.03774503936 | P16: 0.0415604224 | Q16: 0.04578459648 | R16: 0.05287030619 | S16: 0.0595472263 | T16: 3.6 | U16: 0.1635164066 | V16: 0.3564657726 | W16: 0.3858986886 | X16: 0.4529404099 | Y16: 0.4987250688 | Z16: 0.5494151578 | AA16: 0.6344436742 | AB16: 0.7145667156
B17: 3.66 | C17: 1415 | D17: 649 | E17: 600 | F17: 511 | G17: 464 | H17: 421 | I17: 365 | J17: 324 | K17: 3.66 | L17: 0.01295356608 | M17: 0.0282387721 | N17: 0.03057041189 | O17: 0.03588137426 | P17: 0.03950837156 | Q17: 0.0435239811 | R17: 0.05025983172 | S17: 0.05660707679 | T17: 3.66 | U17: 0.1554427887 | V17: 0.3388652575 | W17: 0.3668449762 | X17: 0.4305764734 | Y17: 0.4741004587 | Z17: 0.5222877732 | AA17: 0.6031179807 | AB17: 0.6792849214
B18: 3.72 | C18: 1403 | D18: 644 | E18: 595 | F18: 507 | G18: 460 | H18: 418 | I18: 362 | J18: 321 | K18: 3.72 | L18: 0.01229779582 | M18: 0.0268091961 | N18: 0.02902279895 | O18: 0.03406489413 | P18: 0.03750827725 | Q18: 0.04132059442 | R18: 0.04771544449 | S18: 0.05374136712 | T18: 3.72 | U18: 0.1475735544 | V18: 0.3217103214 | W18: 0.3482735599 | X18: 0.4087787554 | Y18: 0.450099327 | Z18: 0.4958471331 | AA18: 0.5725853339 | AB18: 0.6448964055
B19: 3.78 | C19: 1390 | D19: 638 | E19: 589 | F19: 502 | G19: 456 | H19: 414 | I19: 359 | J19: 319 | K19: 3.78 | L19: 0.01165906112 | M19: 0.02541674901 | N19: 0.02751538255 | O19: 0.03229559368 | P19: 0.03556013268 | Q19: 0.03917444148 | R19: 0.04523714915 | S19: 0.0509500895 | T19: 3.78 | U19: 0.1399087257 | V19: 0.3050009865 | W19: 0.3301845855 | X19: 0.3875471555 | Y19: 0.4267215922 | Z19: 0.4700932978 | AA19: 0.5428457898 | AB19: 0.6114010741
B20: 3.84 | C20: 1378 | D20: 632 | E20: 584 | F20: 498 | G20: 452 | H20: 410 | I20: 355 | J20: 316 | K20: 3.84 | L20: 0.0110373572 | M20: 0.02406143827 | N20: 0.02604816344 | O20: 0.03057347915 | P20: 0.03366393757 | Q20: 0.03708551662 | R20: 0.04282494832 | S20: 0.04823325004 | T20: 3.84 | U20: 0.1324482927 | V20: 0.2887372406 | W20: 0.3125779539 | X20: 0.3668817793 | Y20: 0.4039672508 | Z20: 0.4450261994 | AA20: 0.5138993799 | AB20: 0.5787990004
B21: 3.9 | C21: 1364 | D21: 626 | E21: 578 | F21: 493 | G21: 448 | H21: 406 | I21: 352 | J21: 313 | K21: 3.9 | L21: 0.010432688 | M21: 0.0227432579 | N21: 0.02462114158 | O21: 0.02889854391 | P21: 0.03181969161 | Q21: 0.03505382569 | R21: 0.04047882253 | S21: 0.04559084364 | T21: 3.9 | U21: 0.1251922364 | V21: 0.2729191119 | W21: 0.2954536723 | X21: 0.3467825419 | Y21: 0.3818362993 | Z21: 0.4206459082 | AA21: 0.4857458703 | AB21: 0.5470901237
B22: 3.96 | C22: 1351 | D22: 620 | E22: 573 | F22: 488 | G22: 443 | H22: 402 | I22: 349 | J22: 309 | K22: 3.96 | L22: 0.009845049079 | M22: 0.0214622066 | N22: 0.02323431528 | O22: 0.02727078615 | P22: 0.03002740299 | Q22: 0.0330793672 | R22: 0.03819879205 | S22: 0.04302287093 | T22: 3.96 | U22: 0.1181406028 | V22: 0.2575465213 | W22: 0.2788118237 | X22: 0.3272494448 | Y22: 0.3603288358 | Z22: 0.3969524064 | AA22: 0.4583855046 | AB22: 0.5162744511
B23: 4.02 | C23: 1337 | D23: 613 | E23: 567 | F23: 483 | G23: 439 | H23: 398 | I23: 345 | J23: 306 | K23: 4.02 | L23: 0.00927444581 | M23: 0.02021828925 | N23: 0.02188769156 | O23: 0.02569021633 | P23: 0.02828706014 | Q23: 0.03116213963 | R23: 0.03598485222 | S23: 0.04052932994 | T23: 4.02 | U23: 0.1112933447 | V23: 0.2426195239 | W23: 0.2626523252 | X23: 0.3082825994 | Y23: 0.3394447217 | Z23: 0.3739456756 | AA23: 0.4318182266 | AB23: 0.4863519593
B24: 4.08 | C24: 1322 | D24: 607 | E24: 561 | F24: 478 | G24: 434 | H24: 394 | I24: 341 | J24: 303 | K24: 4.08 | L24: 0.0087208746 | M24: 0.01901150827 | N24: 0.02058126562 | O24: 0.0241568199 | P24: 0.02659866585 | Q24: 0.02930214138 | R24: 0.03383698831 | S24: 0.0381102241 | T24: 4.08 | U24: 0.1046504846 | V24: 0.2281380667 | W24: 0.2469751743 | X24: 0.2898818416 | Y24: 0.3191839902 | Z24: 0.3516256965 | AA24: 0.4060438597 | AB24: 0.4573226891
B25: 4.14 | C25: 1307 | D25: 600 | E25: 554 | F25: 472 | G25: 429 | H25: 389 | I25: 337 | J25: 300 | K25: 4.14 | L25: 0.008184335884 | M25: 0.01784185324 | N25: 0.01931503295 | O25: 0.02267061071 | P25: 0.02496222686 | Q25: 0.02749937145 | R25: 0.0317552246 | S25: 0.0357655458 | T25: 4.14 | U25: 0.09821203701 | V25: 0.2141022423 | W25: 0.2317803767 | X25: 0.2720473065 | Y25: 0.2995467223 | Z25: 0.3299924574 | AA25: 0.3810626952 | AB25: 0.4291865496
B26: 4.2 | C26: 1292 | D26: 593 | E26: 548 | F26: 467 | G26: 424 | H26: 385 | I26: 333 | J26: 296 | K26: 4.2 | L26: 0.007664832 | M26: 0.01670932966 | N26: 0.01808900019 | O26: 0.02123157943 | P26: 0.0233777376 | Q26: 0.02575382762 | R26: 0.02973954085 | S26: 0.03349531173 | T26: 4.2 | U26: 0.09197796845 | V26: 0.200511992 | W26: 0.2170680114 | X26: 0.2547790148 | Y26: 0.2805328512 | Z26: 0.3090459314 | AA26: 0.3568744902 | AB26: 0.4019437408
B27: 4.26 | C27: 1275 | D27: 585 | E27: 541 | F27: 461 | G27: 418 | H27: 380 | I27: 329 | J27: 292 | K27: 4.26 | L27: 0.00716235968 | M27: 0.01561394181 | N27: 0.01690316633 | O27: 0.01983973001 | P27: 0.02184458929 | Q27: 0.0240655234 | R27: 0.02778995282 | S27: 0.03129950147 | T27: 4.26 | U27: 0.08594830828 | V27: 0.1873673109 | W27: 0.2028379798 | X27: 0.2380767804 | Y27: 0.2621350714 | Z27: 0.2887862808 | AA27: 0.3334794339 | AB27: 0.3755940176
B28: 4.32 | C28: 1259 | D28: 578 | E28: 534 | F28: 455 | G28: 413 | H28: 375 | I28: 325 | J28: 288 | K28: 4.32 | L28: 0.006676918387 | M28: 0.01455568205 | N28: 0.01575752713 | O28: 0.01849506715 | P28: 0.02036460197 | Q28: 0.02243445228 | R28: 0.02590644897 | S28: 0.02917813217 | T28: 4.32 | U28: 0.08012301958 | V28: 0.1746682129 | W28: 0.1890903242 | X28: 0.2219408205 | Y28: 0.2443752236 | Z28: 0.2692134273 | AA28: 0.3108773876 | AB28: 0.350137586
B29: 4.38 | C29: 1241 | D29: 570 | E29: 526 | F29: 448 | G29: 407 | H29: 370 | I29: 320 | J29: 284 | K29: 4.38 | L29: 0.00620851343 | M29: 0.01353455971 | N29: 0.01465209267 | O29: 0.01719757981 | P29: 0.01893596282 | Q29: 0.02086059987 | R29: 0.02408902527 | S29: 0.02713120052 | T29: 4.38 | U29: 0.0745021447 | V29: 0.1624146842 | W29: 0.1758250636 | X29: 0.2063709405 | Y29: 0.2272315539 | Z29: 0.2503271984 | AA29: 0.2890683032 | AB29: 0.3255744062
B30: 4.44 | C30: 1223 | D30: 561 | E30: 519 | F30: 442 | G30: 401 | H30: 364 | I30: 316 | J30: 280 | K30: 4.44 | L30: 0.005757139485 | M30: 0.0125505633 | N30: 0.01358685064 | O30: 0.01594727395 | P30: 0.01755927816 | Q30: 0.01934399108 | R30: 0.02233770291 | S30: 0.02515870303 | T30: 4.44 | U30: 0.06908566123 | V30: 0.1506067572 | W30: 0.1630422122 | X30: 0.1913673102 | Y30: 0.2107113379 | Z30: 0.2321278929 | AA30: 0.2680524349 | AB30: 0.3019044363
B31: 4.5 | C31: 1204 | D31: 553 | E31: 511 | F31: 435 | G31: 395 | H31: 359 | I31: 311 | J31: 276 | K31: 4.5 | L31: 0.0053228 | M31: 0.011603704 | N31: 0.012561808 | O31: 0.0147441525 | P31: 0.01623453615 | Q31: 0.01788459953 | R31: 0.020652464 | S31: 0.023260636 | T31: 4.5 | U31: 0.0638736 | V31: 0.1392444147 | W31: 0.1507416501 | X31: 0.1769298624 | Y31: 0.1948144338 | Z31: 0.2146151943 | AA31: 0.247829568 | AB31: 0.279127632
B32: 4.56 | C32: 1184 | D32: 544 | E32: 502 | F32: 428 | G32: 389 | H32: 353 | I32: 306 | J32: 271 | K32: 4.56 | L32: 0.004905491966 | M32: 0.01069396927 | N32: 0.01157695973 | O32: 0.01358821298 | P32: 0.01496174769 | Q32: 0.01648244763 | R32: 0.01903330899 | S32: 0.02143699477 | T32: 4.56 | U32: 0.05886590501 | V32: 0.1283276564 | W32: 0.1389234874 | X32: 0.1630585252 | Y32: 0.1795409722 | Z32: 0.1977893716 | AA32: 0.2283997079 | AB32: 0.2572439373
B33: 4.62 | C33: 1164 | D33: 534 | E33: 493 | F33: 420 | G33: 382 | H33: 347 | I33: 300 | J33: 267 | K33: 4.62 | L33: 0.00450521583 | M33: 0.009821371967 | N33: 0.01063231074 | O33: 0.01247945306 | P33: 0.0137409137 | Q33: 0.01513752604 | R33: 0.01748023742 | S33: 0.01968779835 | T33: 4.62 | U33: 0.05406260606 | V33: 0.1178564975 | W33: 0.1275877193 | X33: 0.1497533953 | Y33: 0.1648909644 | Z33: 0.1816503125 | AA33: 0.209762849 | AB33: 0.2362535802
B34: 4.68 | C34: 1142 | D34: 524 | E34: 484 | F34: 413 | G34: 375 | H34: 340 | I34: 295 | J34: 262 | K34: 4.68 | L34: 0.004121975255 | M34: 0.008985908006 | N34: 0.009727860043 | O34: 0.01141787181 | P34: 0.01257202778 | Q34: 0.01384983614 | R34: 0.01599325864 | S34: 0.01801302853 | T34: 4.68 | U34: 0.04946369074 | V34: 0.1078308654 | W34: 0.1167343433 | X34: 0.1370144147 | Y34: 0.1508643333 | Z34: 0.1661980337 | AA34: 0.1919191036 | AB34: 0.2161563424
B35: 4.74 | C35: 1119 | D35: 514 | E35: 475 | F35: 404 | G35: 367 | H35: 337 | I35: 289 | J35: 256 | K35: 4.74 | L35: 0.003755767136 | M35: 0.008187572974 | N35: 0.008863606602 | O35: 0.01040346907 | P35: 0.01145508827 | Q35: 0.01261937276 | R35: 0.01457236875 | S35: 0.01641269934 | T35: 4.74 | U35: 0.04506918499 | V35: 0.0982508353 | W35: 0.1063632863 | X35: 0.1248416694 | Y35: 0.1374610593 | Z35: 0.1514324731 | AA35: 0.174868425 | AB35: 0.1969523921
B36: 4.8 | C36: 1095 | D36: 503 | E36: 464 | F36: 396 | G36: 359 | H36: 326 | I36: 283 | J36: 251 | K36: 4.8 | L36: 0.003406592 | M36: 0.007426365722 | N36: 0.008039551876 | O36: 0.009436256768 | P36: 0.0103901056 | Q36: 0.01144614725 | R36: 0.01321756836 | S36: 0.01488680219 | T36: 4.8 | U36: 0.040879104 | V36: 0.08911644459 | W36: 0.0964746254 | X36: 0.1132350389 | Y36: 0.1246812672 | Z36: 0.137353767 | AA36: 0.1586108203 | AB36: 0.1786416263
B37: 4.86 | C37: 1070 | D37: 491 | E37: 454 | F37: 386 | G37: 351 | H37: 319 | I37: 276 | J37: 245 | K37: 4.86 | L37: 0.00307444928 | M37: 0.006702298786 | N37: 0.007255696603 | O37: 0.008516219967 | P37: 0.009377062158 | Q37: 0.01033014127 | R37: 0.01192885765 | S37: 0.01343534311 | T37: 4.86 | U37: 0.03689339011 | V37: 0.08042754451 | W37: 0.08706835997 | X37: 0.102194637 | Y37: 0.1125247459 | Z37: 0.1239616952 | AA37: 0.1431462918 | AB37: 0.1612241173
B38: 4.92 | C38: 1043 | D38: 479 | E38: 442 | F38: 377 | G38: 342 | H38: 311 | I38: 269 | J38: 239 | K38: 4.92 | L38: 0.00275933777 | M38: 0.006015357715 | N38: 0.006512038074 | O38: 0.007643363306 | P38: 0.00841598269 | Q38: 0.009271373824 | R38: 0.01070622847 | S38: 0.0120583023 | T38: 4.92 | U38: 0.03311205934 | V38: 0.07218426182 | W38: 0.07814448568 | X38: 0.09172043872 | Y38: 0.1009917923 | Z38: 0.1112564859 | AA38: 0.1284747417 | AB38: 0.1446996276
B39: 4.98 | C39: 1014 | D39: 465 | E39: 430 | F39: 366 | G39: 333 | H39: 302 | I39: 262 | J39: 232 | K39: 4.98 | L39: 0.00246126032 | M39: 0.005365552468 | N39: 0.005808578887 | O39: 0.006817696538 | P39: 0.007506842345 | Q39: 0.008269838469 | R39: 0.009549695267 | S39: 0.01075571379 | T39: 4.98 | U39: 0.02953513969 | V39: 0.06438657633 | W39: 0.06970295911 | X39: 0.08181231545 | Y39: 0.09008210814 | Z39: 0.09923806163 | AA39: 0.1145963432 | AB39: 0.1290685654
B40: 5.04 | C40: 983 | D40: 451 | E40: 417 | F40: 355 | G40: 323 | H40: 293 | I40: 254 | J40: 225 | K40: 5.04 | L40: 0.002180217642 | M40: 0.004752874299 | N40: 0.005145314981 | O40: 0.006039203899 | P40: 0.006649662687 | Q40: 0.007325532696 | R40: 0.008459240441 | S40: 0.009527548395 | T40: 5.04 | U40: 0.02616260285 | V40: 0.05703450124 | W40: 0.06174373722 | X40: 0.07247046093 | Y40: 0.07979595225 | Z40: 0.08790639235 | AA40: 0.1015108853 | AB40: 0.1143305807
B41: 5.1 | C41: 951 | D41: 436 | E41: 403 | F41: 344 | G41: 312 | H41: 283 | I41: 245 | J41: 218 | K41: 5.1 | L41: 0.001916208 | M41: 0.00417733065 | N41: 0.004522247861 | O41: 0.005307892623 | P41: 0.0058444344 | Q41: 0.006438454581 | R41: 0.007434874625 | S41: 0.008373817798 | T41: 5.1 | U41: 0.02299447135 | V41: 0.05012795397 | W41: 0.05426695771 | X41: 0.06369468617 | Y41: 0.0701332128 | Z41: 0.07726145497 | AA41: 0.0892184955 | AB41: 0.1004858136
B42: 5.16 | C42: 915 | D42: 420 | E42: 388 | F42: 331 | G42: 300 | H42: 273 | I42: 236 | J42: 210 | K42: 5.16 | L42: 0.00166923008 | M42: 0.003638919547 | N42: 0.003939381546 | O42: 0.004623764969 | P42: 0.005091151744 | Q42: 0.005608610127 | R42: 0.006476610339 | S42: 0.007294524442 | T42: 5.16 | U42: 0.02003073607 | V42: 0.04366701144 | W42: 0.04727255698 | X42: 0.05548517761 | Y42: 0.06109382093 | Z42: 0.06730332153 | AA42: 0.07771932407 | AB42: 0.0875342933
B43: 5.22 | C43: 877 | D43: 403 | E43: 372 | F43: 317 | G43: 288 | H43: 261 | I43: 226 | J43: 201 | K43: 5.22 | L43: 0.001439283733 | M43: 0.003137640596 | N43: 0.0033967068 | O43: 0.003986817979 | P43: 0.004389810322 | Q43: 0.004835992503 | R43: 0.005584417975 | S43: 0.006289665624 | T43: 5.22 | U43: 0.01727141854 | V43: 0.03765166637 | W43: 0.0407605005 | X43: 0.04784180729 | Y43: 0.05267772387 | Z43: 0.05803191003 | AA43: 0.0670130157 | AB43: 0.07547598749
B44: 5.28 | C44: 835 | D44: 383 | E44: 354 | F44: 302 | G44: 274 | H44: 249 | I44: 216 | J44: 191 | K44: 5.28 | L44: 0.00122637312 | M44: 0.002673486985 | N44: 0.002894237058 | O44: 0.003397044196 | P44: 0.003740435352 | Q44: 0.004120610654 | R44: 0.004758315652 | S44: 0.005359235502 | T44: 5.28 | U44: 0.01471645819 | V44: 0.03208191114 | W44: 0.03473080591 | X44: 0.04076461019 | Y44: 0.04488522422 | Z44: 0.04944732785 | AA44: 0.05709978782 | AB44: 0.06431082602
B45: 5.34 | C45: 789 | D45: 362 | E45: 335 | F45: 285 | G45: 258 | H45: 235 | I45: 204 | J45: 181 | K45: 5.34 | L45: 0.001030493309 | M45: 0.002246473666 | N45: 0.002431963487 | O45: 0.002854461558 | P45: 0.003133720397 | Q45: 0.003462453896 | R45: 0.003998302478 | S45: 0.004503248442 | T45: 5.34 | U45: 0.01236591249 | V45: 0.02695768122 | W45: 0.02918356684 | X45: 0.03425355632 | Y45: 0.03760464476 | Z45: 0.04154944675 | AA45: 0.04797962974 | AB45: 0.0540389813
B46: 5.4 | C46: 738 | D46: 339 | E46: 313 | F46: 267 | G46: 242 | H46: 220 | I46: 191 | J46: 169 | K46: 5.4 | L46: 0.000851648 | M46: 0.001856587257 | N46: 0.002009885393 | O46: 0.002359062682 | P46: 0.0025975264 | Q46: 0.00286153728 | R46: 0.00330438787 | S46: 0.003721694561 | T46: 5.4 | U46: 0.01021974878 | V46: 0.02227902239 | W46: 0.02411865681 | X46: 0.02830867066 | Y46: 0.0311703168 | Z46: 0.03433844736 | AA46: 0.03965265444 | AB46: 0.04466033473
B47: 5.46 | C47: 680 | D47: 312 | E47: 289 | F47: 246 | G47: 223 | H47: 203 | I47: 176 | J47: 156 | K47: 5.46 | L47: 0.0007664832 | M47: 0.001670930256 | N47: 0.00180889951 | O47: 0.002123148078 | P47: 0.002337762848 | Q47: 0.002575381155 | R47: 0.002973941682 | S47: 0.003349523005 | T47: 5.46 | U47: 0.009197778703 | V47: 0.02005116308 | W47: 0.02170671765 | X47: 0.02547784091 | Y47: 0.02805315418 | Z47: 0.03090457386 | AA47: 0.03568730018 | AB47: 0.04019427606
B48: 5.52 | C48: 615 | D48: 282 | E48: 261 | F48: 222 | G48: 202 | H48: 183 | I48: 159 | J48: 141 | K48: 5.52 | L48: 0.0006813184 | M48: 0.001485271523 | N48: 0.001607910958 | O48: 0.001887244295 | P48: 0.002078015097 | Q48: 0.00228922783 | R48: 0.002643513862 | S48: 0.002977359682 | T48: 5.52 | U48: 0.008175799021 | V48: 0.01782319416 | W48: 0.01929483527 | X48: 0.02264691043 | Y48: 0.02493618116 | Z48: 0.02747073395 | AA48: 0.03172216634 | AB48: 0.03572831619
B49: 5.58 | C49: 539 | D49: 248 | E49: 229 | F49: 195 | G49: 177 | H49: 161 | I49: 139 | J49: 124 | K49: 5.58 | L49: 0.0005961536 | M49: 0.001299609452 | N49: 0.001406919308 | O49: 0.001651339233 | P49: 0.001818258169 | Q49: 0.002003073073 | R49: 0.002313060213 | S49: 0.002605179458 | T49: 5.58 | U49: 0.00715378356 | V49: 0.01559533367 | W49: 0.01688298198 | X49: 0.01981603473 | Y49: 0.02181909803 | Z49: 0.02403687688 | AA49: 0.02775672256 | AB49: 0.0312621535
B50: 5.64 | C50: 449 | D50: 206 | E50: 191 | F50: 162 | G50: 148 | H50: 134 | I50: 116 | J50: 103 | K50: 5.64 | L50: 0.0005109888 | M50: 0.001113949087 | N50: 0.001205922739 | O50: 0.001415432968 | P50: 0.00155851173 | Q50: 0.001716915104 | R50: 0.001982625007 | S50: 0.002233006882 | T50: 5.64 | U50: 0.006131799971 | V50: 0.01336738092 | W50: 0.0144711728 | X50: 0.01698521215 | Y50: 0.01870214076 | Z50: 0.02060298125 | AA50: 0.02379150008 | AB50: 0.02679608258
B51: 5.7 | C51: 339 | D51: 156 | E51: 144 | F51: 123 | G51: 111 | H51: 101 | I51: 88 | J51: 78 | K51: 5.7 | L51: 0.000425824 | M51: 0.0009282924205 | N51: 0.001004931967 | O51: 0.001179522589 | P51: 0.0012987632 | Q51: 0.001430756594 | R51: 0.001652176382 | S51: 0.001860835282 | T51: 5.7 | U51: 0.005109848489 | V51: 0.01113951119 | W51: 0.01205919988 | X51: 0.01415429557 | Y51: 0.0155851584 | Z51: 0.01716907913 | AA51: 0.01982611658 | AB51: 0.02233002338
B52: 5.76 | C52: 197 | D52: 91 | E52: 84 | F52: 71 | G52: 65 | H52: 59 | I52: 51 | J52: 45 | K52: 5.76 | L52: 0.0003406592 | M52: 0.0007426183385 | N52: 0.0008039238476 | O52: 0.0009436242704 | P52: 0.00103901056 | Q52: 0.001144569546 | R52: 0.001321724298 | S52: 0.001488626631 | T52: 5.76 | U52: 0.004087781217 | V52: 0.008911559891 | W52: 0.009647413054 | X52: 0.01132328845 | Y52: 0.01246812672 | Z52: 0.01373483455 | AA52: 0.01586069158 | AB52: 0.01786351957
B53: 5.82 | C53: - | D53: - | E53: - | F53: - | G53: - | H53: - | I53: - | J53: - | K53: 5.82 | L53: 0.0002554944 | M53: 0.0005566128 | N53: 0.0006022368 | O53: 0.0007056512 | P53: 0.0007786496 | Q53: 0.0008577312 | R53: 0.00098852 | S53: 0.0011162672 | T53: 5.82 | U53: 0.003047180917 | V53: 0.006663615413 | W53: 0.007232868991 | X53: 0.008471832661 | Y53: 0.0093437952 | Z53: 0.0102927744 | AA53: 0.01186224 | AB53: 0.0133952064
B54: 5.88 | C54: - | D54: - | E54: - | F54: - | G54: - | H54: - | I54: - | J54: - | K54: 5.88 | L54: 0.0001703296 | M54: 0.0003710752 | N54: 0.0004014912 | O54: 0.000471448 | P54: 0.000517072 | Q54: 0.0005718208 | R54: 0.0006600272 | S54: 0.0007421504 | T54: 5.88 | U54: 0.00204261578 | V54: 0.00445357211 | W54: 0.004821912661 | X54: 0.005659050275 | Y54: 0.006204864 | Z54: 0.0068618496 | AA54: 0.0079203264 | AB54: 0.0089058048
B55: 5.94 | C55: - | D55: - | E55: - | F55: - | G55: - | H55: - | I55: - | J55: - | K55: 5.94 | L55: 8.51648e-05 | M55: 0.0001855376 | N55: 0.0002007456 | O55: 0.0002342032 | P55: 0.000258536 | Q55: 0.0002859104 | R55: 0.0003284928 | S55: 0.0003710752 | T55: 5.94 | U55: 0.001004565138 | V55: 0.002210043303 | W55: 0.00241095633 | X55: 0.002812782385 | Y55: 0.003102432 | Z55: 0.0034309248 | AA55: 0.0039419136 | AB55: 0.0044529024
B56: 6 | C56: 0 | D56: 0 | E56: 0 | F56: 0 | G56: 0 | H56: 0 | I56: 0 | J56: 0 | K56: 6 | L56: 0 | M56: 0 | N56: 0 | O56: 0 | P56: 0 | Q56: 0 | R56: 0 | S56: 0 | T56: 6 | U56: 0 | V56: 0 | W56: 0 | X56: 0 | Y56: 0 | Z56: 0 | AA56: 0 | AB56: 0
